Workbook

Sheet A1
A3: A1 | B3: - | C3: HÔTEL DE VILLE (Place d'Armes)
D7: INSCRITS | E7: 949 | F7: %
D8: Émargements | E8: 508
D9: Votants (participation) | E9: 508 | F9: =IF(E7=0,0,E9/E7) -> 0.5353003161 | G9: (1)
D10: Nuls | E10: 12 | F10: =IF(E9=0,0,E10/E9) -> 0.02362204724 | G10: (2)
D11: Exprimés | E11: 496 | F11: =IF(E7=0,0,E11/E7) -> 0.5226554268 | G11: (3)
D12: =Candidats!$A2&" "&Candidats!$B2 -> Bertrand CHEVALIER | E12: 20 | F12: =IF(E$11=0,0,E12/E$11) -> 0.04032258065 | G12: (4)
D13: =Candidats!$A3&" "&Candidats!$B3 -> Marc ARCHAMBAULT | E13: 32 | F13: 0.06451612903
D14: =Candidats!$A4&" "&Candidats!$B4 -> Étienne BUTZBACH | E14: 104 | F14: 0.2096774194
D15: =Candidats!$A5&" "&Candidats!$B5 -> Bastien FAUDOT | E15: 60 | F15: 0.1209677419
D16: =Candidats!$A6&" "&Candidats!$B6 -> Christophe GRUDLER | E16: 105 | F16: 0.2116935484
D17: =Candidats!$A7&" "&Candidats!$B7 -> Jean-Marie PHEULPIN | E17: 8 | F17: 0.01612903226
D18: =Candidats!$A8&" "&Candidats!$B8 -> Damien MESLOT | E18: 167 | F18: 0.3366935484
E19: =IF(SUM(E12:E18)<>E11,"!!! FAUX","") -> 
D20: TOTAL : | E20: =SUM(E12:E18) -> 496
F22: (1) Votants / Inscrits
F23: (2) Nuls / Votants
F24: (3) Exprimés / Inscrits
F25: (4) Score / Exprimés

Sheet A2
A3: A2 | B3: - | C3: SALLE DES FÊTES (Place de la République)
D7: INSCRITS | E7: 956 | F7: %
D8: Émargements | E8: 610
D9: Votants (participation) | E9: 610 | F9: =IF(E7=0,0,E9/E7) -> 0.6380753138 | G9: (1)
D10: Nuls | E10: 18 | F10: =IF(E9=0,0,E10/E9) -> 0.02950819672 | G10: (2)
D11: Exprimés | E11: 592 | F11: =IF(E7=0,0,E11/E7) -> 0.6192468619 | G11: (3)
D12: =Candidats!$A2&" "&Candidats!$B2 -> Bertrand CHEVALIER | E12: 29 | F12: =IF(E$11=0,0,E12/E$11) -> 0.04898648649 | G12: (4)
D13: =Candidats!$A3&" "&Candidats!$B3 -> Marc ARCHAMBAULT | E13: 42 | F13: 0.07094594595
D14: =Candidats!$A4&" "&Candidats!$B4 -> Étienne BUTZBACH | E14: 107 | F14: 0.1807432432
D15: =Candidats!$A5&" "&Candidats!$B5 -> Bastien FAUDOT | E15: 69 | F15: 0.1165540541
D16: =Candidats!$A6&" "&Candidats!$B6 -> Christophe GRUDLER | E16: 105 | F16: 0.1773648649
D17: =Candidats!$A7&" "&Candidats!$B7 -> Jean-Marie PHEULPIN | E17: 7 | F17: 0.01182432432
D18: =Candidats!$A8&" "&Candidats!$B8 -> Damien MESLOT | E18: 233 | F18: 0.3935810811
E19: =IF(SUM(E12:E18)<>E11,"!!! FAUX","") -> 
D20: TOTAL : | E20: =SUM(E12:E18) -> 592
F22: (1) Votants / Inscrits
F23: (2) Nuls / Votants
F24: (3) Exprimés / Inscrits
F25: (4) Score / Exprimés

Sheet B1
A3: B1 | B3: - | C3: GROUPE SCOLAIRE VICTOR HUGO (Faubourg de Montbéliard)
D7: INSCRITS | E7: 1096 | F7: %
D8: Émargements | E8: 623
D9: Votants (participation) | E9: 622 | F9: =IF(E7=0,0,E9/E7) -> 0.5675182482 | G9: (1)
D10: Nuls | E10: 11 | F10: =IF(E9=0,0,E10/E9) -> 0.01768488746 | G10: (2)
D11: Exprimés | E11: 611 | F11: =IF(E7=0,0,E11/E7) -> 0.5574817518 | G11: (3)
D12: =Candidats!$A2&" "&Candidats!$B2 -> Bertrand CHEVALIER | E12: 26 | F12: =IF(E$11=0,0,E12/E$11) -> 0.04255319149 | G12: (4)
D13: =Candidats!$A3&" "&Candidats!$B3 -> Marc ARCHAMBAULT | E13: 46 | F13: 0.07528641571
D14: =Candidats!$A4&" "&Candidats!$B4 -> Étienne BUTZBACH | E14: 132 | F14: 0.2160392799
D15: =Candidats!$A5&" "&Candidats!$B5 -> Bastien FAUDOT | E15: 71 | F15: 0.116202946
D16: =Candidats!$A6&" "&Candidats!$B6 -> Christophe GRUDLER | E16: 115 | F16: 0.1882160393
D17: =Candidats!$A7&" "&Candidats!$B7 -> Jean-Marie PHEULPIN | E17: 9 | F17: 0.0147299509
D18: =Candidats!$A8&" "&Candidats!$B8 -> Damien MESLOT | E18: 212 | F18: 0.3469721768
E19: =IF(SUM(E12:E18)<>E11,"!!! FAUX","") -> 
D20: TOTAL : | E20: =SUM(E12:E18) -> 611
F22: (1) Votants / Inscrits
F23: (2) Nuls / Votants
F24: (3) Exprimés / Inscrits
F25: (4) Score / Exprimés

Sheet B2
A3: B2 | B3: - | C3: GROUPE SCOLAIRE VICTOR HUGO (Faubourg de Montbéliard)
D7: INSCRITS | E7: 1167 | F7: %
D8: Émargements | E8: 715
D9: Votants (participation) | E9: 715 | F9: =IF(E7=0,0,E9/E7) -> 0.6126820908 | G9: (1)
D10: Nuls | E10: 15 | F10: =IF(E9=0,0,E10/E9) -> 0.02097902098 | G10: (2)
D11: Exprimés | E11: 700 | F11: =IF(E7=0,0,E11/E7) -> 0.5998286204 | G11: (3)
D12: =Candidats!$A2&" "&Candidats!$B2 -> Bertrand CHEVALIER | E12: 37 | F12: =IF(E$11=0,0,E12/E$11) -> 0.05285714286 | G12: (4)
D13: =Candidats!$A3&" "&Candidats!$B3 -> Marc ARCHAMBAULT | E13: 57 | F13: 0.08142857143
D14: =Candidats!$A4&" "&Candidats!$B4 -> Étienne BUTZBACH | E14: 126 | F14: 0.18
D15: =Candidats!$A5&" "&Candidats!$B5 -> Bastien FAUDOT | E15: 87 | F15: 0.1242857143
D16: =Candidats!$A6&" "&Candidats!$B6 -> Christophe GRUDLER | E16: 126 | F16: 0.18
D17: =Candidats!$A7&" "&Candidats!$B7 -> Jean-Marie PHEULPIN | E17: 12 | F17: 0.01714285714
D18: =Candidats!$A8&" "&Candidats!$B8 -> Damien MESLOT | E18: 255 | F18: 0.3642857143
E19: =IF(SUM(E12:E18)<>E11,"!!! FAUX","") -> 
D20: TOTAL : | E20: =SUM(E12:E18) -> 700
F22: (1) Votants / Inscrits
F23: (2) Nuls / Votants
F24: (3) Exprimés / Inscrits
F25: (4) Score / Exprimés

Sheet M1
A3: M1 | B3: - | C3: ÉCOLE MATERNELLE SAINT-EXUPÉRY (Rue de la Paix)
D7: INSCRITS | E7: 1306 | F7: %
D8: Émargements | E8: 599
D9: Votants (participation) | E9: 599 | F9: =IF(E7=0,0,E9/E7) -> 0.4586523737 | G9: (1)
D10: Nuls | E10: 18 | F10: =IF(E9=0,0,E10/E9) -> 0.03005008347 | G10: (2)
D11: Exprimés | E11: 581 | F11: =IF(E7=0,0,E11/E7) -> 0.4448698315 | G11: (3)
D12: =Candidats!$A2&" "&Candidats!$B2 -> Bertrand CHEVALIER | E12: 23 | F12: =IF(E$11=0,0,E12/E$11) -> 0.0395869191 | G12: (4)
D13: =Candidats!$A3&" "&Candidats!$B3 -> Marc ARCHAMBAULT | E13: 50 | F13: 0.08605851979
D14: =Candidats!$A4&" "&Candidats!$B4 -> Étienne BUTZBACH | E14: 215 | F14: 0.3700516351
D15: =Candidats!$A5&" "&Candidats!$B5 -> Bastien FAUDOT | E15: 50 | F15: 0.08605851979
D16: =Candidats!$A6&" "&Candidats!$B6 -> Christophe GRUDLER | E16: 112 | F16: 0.1927710843
D17: =Candidats!$A7&" "&Candidats!$B7 -> Jean-Marie PHEULPIN | E17: 8 | F17: 0.01376936317
D18: =Candidats!$A8&" "&Candidats!$B8 -> Damien MESLOT | E18: 123 | F18: 0.2117039587
E19: =IF(SUM(E12:E18)<>E11,"!!! FAUX","") -> 
D20: TOTAL : | E20: =SUM(E12:E18) -> 581
F22: (1) Votants / Inscrits
F23: (2) Nuls / Votants
F24: (3) Exprimés / Inscrits
F25: (4) Score / Exprimés

Sheet N1
A3: N1 | B3: - | C3: ÉCOLE JEAN MOULIN (Rue Steiner)
D7: INSCRITS | E7: 1456 | F7: %
D8: Émargements | E8: 825
D9: Votants (participation) | E9: 825 | F9: =IF(E7=0,0,E9/E7) -> 0.5666208791 | G9: (1)
D10: Nuls | E10: 17 | F10: =IF(E9=0,0,E10/E9) -> 0.02060606061 | G10: (2)
D11: Exprimés | E11: 808 | F11: =IF(E7=0,0,E11/E7) -> 0.5549450549 | G11: (3)
D12: =Candidats!$A2&" "&Candidats!$B2 -> Bertrand CHEVALIER | E12: 32 | F12: =IF(E$11=0,0,E12/E$11) -> 0.0396039604 | G12: (4)
D13: =Candidats!$A3&" "&Candidats!$B3 -> Marc ARCHAMBAULT | E13: 111 | F13: 0.1373762376
D14: =Candidats!$A4&" "&Candidats!$B4 -> Étienne BUTZBACH | E14: 150 | F14: 0.1856435644
D15: =Candidats!$A5&" "&Candidats!$B5 -> Bastien FAUDOT | E15: 78 | F15: 0.09653465347
D16: =Candidats!$A6&" "&Candidats!$B6 -> Christophe GRUDLER | E16: 176 | F16: 0.2178217822
D17: =Candidats!$A7&" "&Candidats!$B7 -> Jean-Marie PHEULPIN | E17: 12 | F17: 0.01485148515
D18: =Candidats!$A8&" "&Candidats!$B8 -> Damien MESLOT | E18: 249 | F18: 0.3081683168
E19: =IF(SUM(E12:E18)<>E11,"!!! FAUX","") -> 
D20: TOTAL : | E20: =SUM(E12:E18) -> 808
F22: (1) Votants / Inscrits
F23: (2) Nuls / Votants
F24: (3) Exprimés / Inscrits
F25: (4) Score / Exprimés

Sheet N2
A3: N2 | B3: - | C3: CITÉ DES ASSOCIATIONS (Rue Jean Pierre Melville)
D7: INSCRITS | E7: 905 | F7: %
D8: Émargements | E8: 577
D9: Votants (participation) | E9: 577 | F9: =IF(E7=0,0,E9/E7) -> 0.6375690608 | G9: (1)
D10: Nuls | E10: 11 | F10: =IF(E9=0,0,E10/E9) -> 0.01906412478 | G10: (2)
D11: Exprimés | E11: 566 | F11: =IF(E7=0,0,E11/E7) -> 0.6254143646 | G11: (3)
D12: =Candidats!$A2&" "&Candidats!$B2 -> Bertrand CHEVALIER | E12: 25 | F12: =IF(E$11=0,0,E12/E$11) -> 0.04416961131 | G12: (4)
D13: =Candidats!$A3&" "&Candidats!$B3 -> Marc ARCHAMBAULT | E13: 44 | F13: 0.0777385159
D14: =Candidats!$A4&" "&Candidats!$B4 -> Étienne BUTZBACH | E14: 113 | F14: 0.1996466431
D15: =Candidats!$A5&" "&Candidats!$B5 -> Bastien FAUDOT | E15: 67 | F15: 0.1183745583
D16: =Candidats!$A6&" "&Candidats!$B6 -> Christophe GRUDLER | E16: 167 | F16: 0.2950530035
D17: =Candidats!$A7&" "&Candidats!$B7 -> Jean-Marie PHEULPIN | E17: 5 | F17: 0.008833922261
D18: =Candidats!$A8&" "&Candidats!$B8 -> Damien MESLOT | E18: 145 | F18: 0.2561837456
E19: =IF(SUM(E12:E18)<>E11,"!!! FAUX","") -> 
D20: TOTAL : | E20: =SUM(E12:E18) -> 566
F22: (1) Votants / Inscrits
F23: (2) Nuls / Votants
F24: (3) Exprimés / Inscrits
F25: (4) Score / Exprimés

Sheet C1
A3: C1 | B3: - | C3: ÉCOLE VICTOR SCHOELCHER (Rue Gaston Deferre)
D7: INSCRITS | E7: 1210 | F7: %
D8: Émargements | E8: 719
D9: Votants (participation) | E9: 719 | F9: =IF(E7=0,0,E9/E7) -> 0.594214876 | G9: (1)
D10: Nuls | E10: 17 | F10: =IF(E9=0,0,E10/E9) -> 0.02364394993 | G10: (2)
D11: Exprimés | E11: 702 | F11: =IF(E7=0,0,E11/E7) -> 0.5801652893 | G11: (3)
D12: =Candidats!$A2&" "&Candidats!$B2 -> Bertrand CHEVALIER | E12: 24 | F12: =IF(E$11=0,0,E12/E$11) -> 0.03418803419 | G12: (4)
D13: =Candidats!$A3&" "&Candidats!$B3 -> Marc ARCHAMBAULT | E13: 65 | F13: 0.09259259259
D14: =Candidats!$A4&" "&Candidats!$B4 -> Étienne BUTZBACH | E14: 153 | F14: 0.2179487179
D15: =Candidats!$A5&" "&Candidats!$B5 -> Bastien FAUDOT | E15: 89 | F15: 0.1267806268
D16: =Candidats!$A6&" "&Candidats!$B6 -> Christophe GRUDLER | E16: 92 | F16: 0.1310541311
D17: =Candidats!$A7&" "&Candidats!$B7 -> Jean-Marie PHEULPIN | E17: 9 | F17: 0.01282051282
D18: =Candidats!$A8&" "&Candidats!$B8 -> Damien MESLOT | E18: 270 | F18: 0.3846153846
E19: =IF(SUM(E12:E18)<>E11,"!!! FAUX","") -> 
D20: TOTAL : | E20: =SUM(E12:E18) -> 702
F22: (1) Votants / Inscrits
F23: (2) Nuls / Votants
F24: (3) Exprimés / Inscrits
F25: (4) Score / Exprimés

Sheet C2
A3: C2 | B3: - | C3: MAISON DU PEUPLE (Place de la Résistance)
D7: INSCRITS | E7: 763 | F7: %
D8: Émargements | E8: 474
D9: Votants (participation) | E9: 474 | F9: =IF(E7=0,0,E9/E7) -> 0.621231979 | G9: (1)
D10: Nuls | E10: 11 | F10: =IF(E9=0,0,E10/E9) -> 0.02320675105 | G10: (2)
D11: Exprimés | E11: 463 | F11: =IF(E7=0,0,E11/E7) -> 0.6068152031 | G11: (3)
D12: =Candidats!$A2&" "&Candidats!$B2 -> Bertrand CHEVALIER | E12: 23 | F12: =IF(E$11=0,0,E12/E$11) -> 0.04967602592 | G12: (4)
D13: =Candidats!$A3&" "&Candidats!$B3 -> Marc ARCHAMBAULT | E13: 43 | F13: 0.09287257019
D14: =Candidats!$A4&" "&Candidats!$B4 -> Étienne BUTZBACH | E14: 82 | F14: 0.1771058315
D15: =Candidats!$A5&" "&Candidats!$B5 -> Bastien FAUDOT | E15: 54 | F15: 0.1166306695
D16: =Candidats!$A6&" "&Candidats!$B6 -> Christophe GRUDLER | E16: 58 | F16: 0.1252699784
D17: =Candidats!$A7&" "&Candidats!$B7 -> Jean-Marie PHEULPIN | E17: 5 | F17: 0.01079913607
D18: =Candidats!$A8&" "&Candidats!$B8 -> Damien MESLOT | E18: 198 | F18: 0.4276457883
E19: =IF(SUM(E12:E18)<>E11,"!!! FAUX","") -> 
D20: TOTAL : | E20: =SUM(E12:E18) -> 463
F22: (1) Votants / Inscrits
F23: (2) Nuls / Votants
F24: (3) Exprimés / Inscrits
F25: (4) Score / Exprimés

Sheet C3
A3: C3 | B3: - | C3: MAISON DU PEUPLE (Place de la Résistance)
D7: INSCRITS | E7: 921 | F7: %
D8: Émargements | E8: 564
D9: Votants (participation) | E9: 564 | F9: =IF(E7=0,0,E9/E7) -> 0.6123778502 | G9: (1)
D10: Nuls | E10: 12 | F10: =IF(E9=0,0,E10/E9) -> 0.02127659574 | G10: (2)
D11: Exprimés | E11: 552 | F11: =IF(E7=0,0,E11/E7) -> 0.5993485342 | G11: (3)
D12: =Candidats!$A2&" "&Candidats!$B2 -> Bertrand CHEVALIER | E12: 19 | F12: =IF(E$11=0,0,E12/E$11) -> 0.03442028986 | G12: (4)
D13: =Candidats!$A3&" "&Candidats!$B3 -> Marc ARCHAMBAULT | E13: 48 | F13: 0.08695652174
D14: =Candidats!$A4&" "&Candidats!$B4 -> Étienne BUTZBACH | E14: 105 | F14: 0.1902173913
D15: =Candidats!$A5&" "&Candidats!$B5 -> Bastien FAUDOT | E15: 56 | F15: 0.1014492754
D16: =Candidats!$A6&" "&Candidats!$B6 -> Christophe GRUDLER | E16: 62 | F16: 0.1123188406
D17: =Candidats!$A7&" "&Candidats!$B7 -> Jean-Marie PHEULPIN | E17: 6 | F17: 0.01086956522
D18: =Candidats!$A8&" "&Candidats!$B8 -> Damien MESLOT | E18: 256 | F18: 0.4637681159
E19: =IF(SUM(E12:E18)<>E11,"!!! FAUX","") -> 
D20: TOTAL : | E20: =SUM(E12:E18) -> 552
F22: (1) Votants / Inscrits
F23: (2) Nuls / Votants
F24: (3) Exprimés / Inscrits
F25: (4) Score / Exprimés

Sheet D1
A3: D1 | B3: - | C3: GROUPE SCOLAIRE CHÂTEAUDUN (Rue de Châteaudun)
D7: INSCRITS | E7: 1074 | F7: %
D8: Émargements | E8: 613
D9: Votants (participation) | E9: 613 | F9: =IF(E7=0,0,E9/E7) -> 0.5707635009 | G9: (1)
D10: Nuls | E10: 17 | F10: =IF(E9=0,0,E10/E9) -> 0.0277324633 | G10: (2)
D11: Exprimés | E11: 596 | F11: =IF(E7=0,0,E11/E7) -> 0.5549348231 | G11: (3)
D12: =Candidats!$A2&" "&Candidats!$B2 -> Bertrand CHEVALIER | E12: 14 | F12: =IF(E$11=0,0,E12/E$11) -> 0.02348993289 | G12: (4)
D13: =Candidats!$A3&" "&Candidats!$B3 -> Marc ARCHAMBAULT | E13: 70 | F13: 0.1174496644
D14: =Candidats!$A4&" "&Candidats!$B4 -> Étienne BUTZBACH | E14: 103 | F14: 0.1728187919
D15: =Candidats!$A5&" "&Candidats!$B5 -> Bastien FAUDOT | E15: 51 | F15: 0.0855704698
D16: =Candidats!$A6&" "&Candidats!$B6 -> Christophe GRUDLER | E16: 80 | F16: 0.1342281879
D17: =Candidats!$A7&" "&Candidats!$B7 -> Jean-Marie PHEULPIN | E17: 7 | F17: 0.01174496644
D18: =Candidats!$A8&" "&Candidats!$B8 -> Damien MESLOT | E18: 271 | F18: 0.4546979866
E19: =IF(SUM(E12:E18)<>E11,"!!! FAUX","") -> 
D20: TOTAL : | E20: =SUM(E12:E18) -> 596
F22: (1) Votants / Inscrits
F23: (2) Nuls / Votants
F24: (3) Exprimés / Inscrits
F25: (4) Score / Exprimés

Sheet D2
A3: D2 | B3: - | C3: GROUPE SCOLAIRE CHÂTEAUDUN (Rue de Châteaudun)
D7: INSCRITS | E7: 838 | F7: %
D8: Émargements | E8: 503
D9: Votants (participation) | E9: 503 | F9: =IF(E7=0,0,E9/E7) -> 0.6002386635 | G9: (1)
D10: Nuls | E10: 22 | F10: =IF(E9=0,0,E10/E9) -> 0.04373757455 | G10: (2)
D11: Exprimés | E11: 481 | F11: =IF(E7=0,0,E11/E7) -> 0.5739856802 | G11: (3)
D12: =Candidats!$A2&" "&Candidats!$B2 -> Bertrand CHEVALIER | E12: 20 | F12: =IF(E$11=0,0,E12/E$11) -> 0.04158004158 | G12: (4)
D13: =Candidats!$A3&" "&Candidats!$B3 -> Marc ARCHAMBAULT | E13: 56 | F13: 0.1164241164
D14: =Candidats!$A4&" "&Candidats!$B4 -> Étienne BUTZBACH | E14: 67 | F14: 0.1392931393
D15: =Candidats!$A5&" "&Candidats!$B5 -> Bastien FAUDOT | E15: 56 | F15: 0.1164241164
D16: =Candidats!$A6&" "&Candidats!$B6 -> Christophe GRUDLER | E16: 78 | F16: 0.1621621622
D17: =Candidats!$A7&" "&Candidats!$B7 -> Jean-Marie PHEULPIN | E17: 7 | F17: 0.01455301455
D18: =Candidats!$A8&" "&Candidats!$B8 -> Damien MESLOT | E18: 197 | F18: 0.4095634096
E19: =IF(SUM(E12:E18)<>E11,"!!! FAUX","") -> 
D20: TOTAL : | E20: =SUM(E12:E18) -> 481
F22: (1) Votants / Inscrits
F23: (2) Nuls / Votants
F24: (3) Exprimés / Inscrits
F25: (4) Score / Exprimés

Sheet D3
A3: D3 | B3: - | C3: GROUPE SCOLAIRE CHÂTEAUDUN (Rue de Châteaudun)
D7: INSCRITS | E7: 912 | F7: %
D8: Émargements | E8: 554
D9: Votants (participation) | E9: 554 | F9: =IF(E7=0,0,E9/E7) -> 0.6074561404 | G9: (1)
D10: Nuls | E10: 18 | F10: =IF(E9=0,0,E10/E9) -> 0.03249097473 | G10: (2)
D11: Exprimés | E11: 536 | F11: =IF(E7=0,0,E11/E7) -> 0.5877192982 | G11: (3)
D12: =Candidats!$A2&" "&Candidats!$B2 -> Bertrand CHEVALIER | E12: 37 | F12: =IF(E$11=0,0,E12/E$11) -> 0.06902985075 | G12: (4)
D13: =Candidats!$A3&" "&Candidats!$B3 -> Marc ARCHAMBAULT | E13: 91 | F13: 0.1697761194
D14: =Candidats!$A4&" "&Candidats!$B4 -> Étienne BUTZBACH | E14: 70 | F14: 0.1305970149
D15: =Candidats!$A5&" "&Candidats!$B5 -> Bastien FAUDOT | E15: 47 | F15: 0.08768656716
D16: =Candidats!$A6&" "&Candidats!$B6 -> Christophe GRUDLER | E16: 76 | F16: 0.1417910448
D17: =Candidats!$A7&" "&Candidats!$B7 -> Jean-Marie PHEULPIN | E17: 16 | F17: 0.02985074627
D18: =Candidats!$A8&" "&Candidats!$B8 -> Damien MESLOT | E18: 199 | F18: 0.3712686567
E19: =IF(SUM(E12:E18)<>E11,"!!! FAUX","") -> 
D20: TOTAL : | E20: =SUM(E12:E18) -> 536
F22: (1) Votants / Inscrits
F23: (2) Nuls / Votants
F24: (3) Exprimés / Inscrits
F25: (4) Score / Exprimés

Sheet E1
A3: E1 | B3: - | C3: GROUPE SCOLAIRE RAYMOND AUBERT (Rue de la 1ère Armée Française)
D7: INSCRITS | E7: 1181 | F7: %
D8: Émargements | E8: 668
D9: Votants (participation) | E9: 668 | F9: =IF(E7=0,0,E9/E7) -> 0.5656223539 | G9: (1)
D10: Nuls | E10: 19 | F10: =IF(E9=0,0,E10/E9) -> 0.02844311377 | G10: (2)
D11: Exprimés | E11: 649 | F11: =IF(E7=0,0,E11/E7) -> 0.549534293 | G11: (3)
D12: =Candidats!$A2&" "&Candidats!$B2 -> Bertrand CHEVALIER | E12: 23 | F12: =IF(E$11=0,0,E12/E$11) -> 0.03543913713 | G12: (4)
D13: =Candidats!$A3&" "&Candidats!$B3 -> Marc ARCHAMBAULT | E13: 96 | F13: 0.1479198767
D14: =Candidats!$A4&" "&Candidats!$B4 -> Étienne BUTZBACH | E14: 88 | F14: 0.1355932203
D15: =Candidats!$A5&" "&Candidats!$B5 -> Bastien FAUDOT | E15: 88 | F15: 0.1355932203
D16: =Candidats!$A6&" "&Candidats!$B6 -> Christophe GRUDLER | E16: 92 | F16: 0.1417565485
D17: =Candidats!$A7&" "&Candidats!$B7 -> Jean-Marie PHEULPIN | E17: 18 | F17: 0.02773497689
D18: =Candidats!$A8&" "&Candidats!$B8 -> Damien MESLOT | E18: 244 | F18: 0.37596302
E19: =IF(SUM(E12:E18)<>E11,"!!! FAUX","") -> 
D20: TOTAL : | E20: =SUM(E12:E18) -> 649
F22: (1) Votants / Inscrits
F23: (2) Nuls / Votants
F24: (3) Exprimés / Inscrits
F25: (4) Score / Exprimés

Sheet E2
A3: E2 | B3: - | C3: GROUPE SCOLAIRE RAYMOND AUBERT (Rue de la 1ère Armée Française)
D7: INSCRITS | E7: 1212 | F7: %
D8: Émargements | E8: 680
D9: Votants (participation) | E9: 681 | F9: =IF(E7=0,0,E9/E7) -> 0.5618811881 | G9: (1)
D10: Nuls | E10: 28 | F10: =IF(E9=0,0,E10/E9) -> 0.04111600587 | G10: (2)
D11: Exprimés | E11: 653 | F11: =IF(E7=0,0,E11/E7) -> 0.5387788779 | G11: (3)
D12: =Candidats!$A2&" "&Candidats!$B2 -> Bertrand CHEVALIER | E12: 18 | F12: =IF(E$11=0,0,E12/E$11) -> 0.02756508423 | G12: (4)
D13: =Candidats!$A3&" "&Candidats!$B3 -> Marc ARCHAMBAULT | E13: 115 | F13: 0.1761102603
D14: =Candidats!$A4&" "&Candidats!$B4 -> Étienne BUTZBACH | E14: 122 | F14: 0.1868300153
D15: =Candidats!$A5&" "&Candidats!$B5 -> Bastien FAUDOT | E15: 51 | F15: 0.07810107198
D16: =Candidats!$A6&" "&Candidats!$B6 -> Christophe GRUDLER | E16: 92 | F16: 0.1408882083
D17: =Candidats!$A7&" "&Candidats!$B7 -> Jean-Marie PHEULPIN | E17: 14 | F17: 0.02143950995
D18: =Candidats!$A8&" "&Candidats!$B8 -> Damien MESLOT | E18: 241 | F18: 0.3690658499
E19: =IF(SUM(E12:E18)<>E11,"!!! FAUX","") -> 
D20: TOTAL : | E20: =SUM(E12:E18) -> 653
F22: (1) Votants / Inscrits
F23: (2) Nuls / Votants
F24: (3) Exprimés / Inscrits
F25: (4) Score / Exprimés

Sheet E3
A3: E3 | B3: - | C3: GROUPE SCOLAIRE RAYMOND AUBERT (Rue de la 1ère Armée Française)
D7: INSCRITS | E7: 1038 | F7: %
D8: Émargements | E8: 564
D9: Votants (participation) | E9: 564 | F9: =IF(E7=0,0,E9/E7) -> 0.5433526012 | G9: (1)
D10: Nuls | E10: 24 | F10: =IF(E9=0,0,E10/E9) -> 0.04255319149 | G10: (2)
D11: Exprimés | E11: 540 | F11: =IF(E7=0,0,E11/E7) -> 0.5202312139 | G11: (3)
D12: =Candidats!$A2&" "&Candidats!$B2 -> Bertrand CHEVALIER | E12: 21 | F12: =IF(E$11=0,0,E12/E$11) -> 0.03888888889 | G12: (4)
D13: =Candidats!$A3&" "&Candidats!$B3 -> Marc ARCHAMBAULT | E13: 94 | F13: 0.1740740741
D14: =Candidats!$A4&" "&Candidats!$B4 -> Étienne BUTZBACH | E14: 121 | F14: 0.2240740741
D15: =Candidats!$A5&" "&Candidats!$B5 -> Bastien FAUDOT | E15: 60 | F15: 0.1111111111
D16: =Candidats!$A6&" "&Candidats!$B6 -> Christophe GRUDLER | E16: 61 | F16: 0.112962963
D17: =Candidats!$A7&" "&Candidats!$B7 -> Jean-Marie PHEULPIN | E17: 16 | F17: 0.02962962963
D18: =Candidats!$A8&" "&Candidats!$B8 -> Damien MESLOT | E18: 167 | F18: 0.3092592593
E19: =IF(SUM(E12:E18)<>E11,"!!! FAUX","") -> 
D20: TOTAL : | E20: =SUM(E12:E18) -> 540
F22: (1) Votants / Inscrits
F23: (2) Nuls / Votants
F24: (3) Exprimés / Inscrits
F25: (4) Score / Exprimés

Sheet F1
A3: F1 | B3: - | C3: MAISON DE L'ENFANT (Rue Salvador Allendé)
D7: INSCRITS | E7: 776 | F7: %
D8: Émargements | E8: 459
D9: Votants (participation) | E9: 459 | F9: =IF(E7=0,0,E9/E7) -> 0.5914948454 | G9: (1)
D10: Nuls | E10: 18 | F10: =IF(E9=0,0,E10/E9) -> 0.03921568627 | G10: (2)
D11: Exprimés | E11: 441 | F11: =IF(E7=0,0,E11/E7) -> 0.5682989691 | G11: (3)
D12: =Candidats!$A2&" "&Candidats!$B2 -> Bertrand CHEVALIER | E12: 29 | F12: =IF(E$11=0,0,E12/E$11) -> 0.06575963719 | G12: (4)
D13: =Candidats!$A3&" "&Candidats!$B3 -> Marc ARCHAMBAULT | E13: 57 | F13: 0.1292517007
D14: =Candidats!$A4&" "&Candidats!$B4 -> Étienne BUTZBACH | E14: 106 | F14: 0.2403628118
D15: =Candidats!$A5&" "&Candidats!$B5 -> Bastien FAUDOT | E15: 31 | F15: 0.07029478458
D16: =Candidats!$A6&" "&Candidats!$B6 -> Christophe GRUDLER | E16: 94 | F16: 0.2131519274
D17: =Candidats!$A7&" "&Candidats!$B7 -> Jean-Marie PHEULPIN | E17: 9 | F17: 0.02040816327
D18: =Candidats!$A8&" "&Candidats!$B8 -> Damien MESLOT | E18: 115 | F18: 0.2607709751
E19: =IF(SUM(E12:E18)<>E11,"!!! FAUX","") -> 
D20: TOTAL : | E20: =SUM(E12:E18) -> 441
F22: (1) Votants / Inscrits
F23: (2) Nuls / Votants
F24: (3) Exprimés / Inscrits
F25: (4) Score / Exprimés

Sheet F2
A3: F2 | B3: - | C3: GROUPE SCOLAIRE ÉMILE GEHANT (Avenue des Frères Lumière)
D7: INSCRITS | E7: 522 | F7: %
D8: Émargements | E8: 299
D9: Votants (participation) | E9: 299 | F9: =IF(E7=0,0,E9/E7) -> 0.5727969349 | G9: (1)
D10: Nuls | E10: 13 | F10: =IF(E9=0,0,E10/E9) -> 0.04347826087 | G10: (2)
D11: Exprimés | E11: 286 | F11: =IF(E7=0,0,E11/E7) -> 0.5478927203 | G11: (3)
D12: =Candidats!$A2&" "&Candidats!$B2 -> Bertrand CHEVALIER | E12: 27 | F12: =IF(E$11=0,0,E12/E$11) -> 0.09440559441 | G12: (4)
D13: =Candidats!$A3&" "&Candidats!$B3 -> Marc ARCHAMBAULT | E13: 53 | F13: 0.1853146853
D14: =Candidats!$A4&" "&Candidats!$B4 -> Étienne BUTZBACH | E14: 49 | F14: 0.1713286713
D15: =Candidats!$A5&" "&Candidats!$B5 -> Bastien FAUDOT | E15: 34 | F15: 0.1188811189
D16: =Candidats!$A6&" "&Candidats!$B6 -> Christophe GRUDLER | E16: 40 | F16: 0.1398601399
D17: =Candidats!$A7&" "&Candidats!$B7 -> Jean-Marie PHEULPIN | E17: 24 | F17: 0.08391608392
D18: =Candidats!$A8&" "&Candidats!$B8 -> Damien MESLOT | E18: 59 | F18: 0.2062937063
E19: =IF(SUM(E12:E18)<>E11,"!!! FAUX","") -> 
D20: TOTAL : | E20: =SUM(E12:E18) -> 286
F22: (1) Votants / Inscrits
F23: (2) Nuls / Votants
F24: (3) Exprimés / Inscrits
F25: (4) Score / Exprimés

Sheet G1
A3: G1 | B3: - | C3: GROUPE SCOLAIRE HUBERT METZGER (La Pépinière - Rue Cuvier)
D7: INSCRITS | E7: 653 | F7: %
D8: Émargements | E8: 414
D9: Votants (participation) | E9: 414 | F9: =IF(E7=0,0,E9/E7) -> 0.6339969372 | G9: (1)
D10: Nuls | E10: 18 | F10: =IF(E9=0,0,E10/E9) -> 0.04347826087 | G10: (2)
D11: Exprimés | E11: 396 | F11: =IF(E7=0,0,E11/E7) -> 0.606431853 | G11: (3)
D12: =Candidats!$A2&" "&Candidats!$B2 -> Bertrand CHEVALIER | E12: 36 | F12: =IF(E$11=0,0,E12/E$11) -> 0.09090909091 | G12: (4)
D13: =Candidats!$A3&" "&Candidats!$B3 -> Marc ARCHAMBAULT | E13: 54 | F13: 0.1363636364
D14: =Candidats!$A4&" "&Candidats!$B4 -> Étienne BUTZBACH | E14: 97 | F14: 0.2449494949
D15: =Candidats!$A5&" "&Candidats!$B5 -> Bastien FAUDOT | E15: 33 | F15: 0.08333333333
D16: =Candidats!$A6&" "&Candidats!$B6 -> Christophe GRUDLER | E16: 68 | F16: 0.1717171717
D17: =Candidats!$A7&" "&Candidats!$B7 -> Jean-Marie PHEULPIN | E17: 9 | F17: 0.02272727273
D18: =Candidats!$A8&" "&Candidats!$B8 -> Damien MESLOT | E18: 99 | F18: 0.25
E19: =IF(SUM(E12:E18)<>E11,"!!! FAUX","") -> 
D20: TOTAL : | E20: =SUM(E12:E18) -> 396
F22: (1) Votants / Inscrits
F23: (2) Nuls / Votants
F24: (3) Exprimés / Inscrits
F25: (4) Score / Exprimés

Sheet G2
A3: G2 | B3: - | C3: GROUPE SCOLAIRE HUBERT METZGER (La Pépinière - Rue Claude Bernard)
D7: INSCRITS | E7: 755 | F7: %
D8: Émargements | E8: 419
D9: Votants (participation) | E9: 419 | F9: =IF(E7=0,0,E9/E7) -> 0.5549668874 | G9: (1)
D10: Nuls | E10: 15 | F10: =IF(E9=0,0,E10/E9) -> 0.03579952267 | G10: (2)
D11: Exprimés | E11: 404 | F11: =IF(E7=0,0,E11/E7) -> 0.5350993377 | G11: (3)
D12: =Candidats!$A2&" "&Candidats!$B2 -> Bertrand CHEVALIER | E12: 59 | F12: =IF(E$11=0,0,E12/E$11) -> 0.146039604 | G12: (4)
D13: =Candidats!$A3&" "&Candidats!$B3 -> Marc ARCHAMBAULT | E13: 64 | F13: 0.1584158416
D14: =Candidats!$A4&" "&Candidats!$B4 -> Étienne BUTZBACH | E14: 97 | F14: 0.2400990099
D15: =Candidats!$A5&" "&Candidats!$B5 -> Bastien FAUDOT | E15: 31 | F15: 0.07673267327
D16: =Candidats!$A6&" "&Candidats!$B6 -> Christophe GRUDLER | E16: 50 | F16: 0.1237623762
D17: =Candidats!$A7&" "&Candidats!$B7 -> Jean-Marie PHEULPIN | E17: 6 | F17: 0.01485148515
D18: =Candidats!$A8&" "&Candidats!$B8 -> Damien MESLOT | E18: 97 | F18: 0.2400990099
E19: =IF(SUM(E12:E18)<>E11,"!!! FAUX","") -> 
D20: TOTAL : | E20: =SUM(E12:E18) -> 404
F22: (1) Votants / Inscrits
F23: (2) Nuls / Votants
F24: (3) Exprimés / Inscrits
F25: (4) Score / Exprimés

Sheet H1
A3: H1 | B3: - | C3: ANNEXE DU COLLÈGE LÉONARD DE VINCI (Faubourg de Lyon)
D7: INSCRITS | E7: 1042 | F7: %
D8: Émargements | E8: 574
D9: Votants (participation) | E9: 574 | F9: =IF(E7=0,0,E9/E7) -> 0.5508637236 | G9: (1)
D10: Nuls | E10: 26 | F10: =IF(E9=0,0,E10/E9) -> 0.04529616725 | G10: (2)
D11: Exprimés | E11: 548 | F11: =IF(E7=0,0,E11/E7) -> 0.5259117083 | G11: (3)
D12: =Candidats!$A2&" "&Candidats!$B2 -> Bertrand CHEVALIER | E12: 29 | F12: =IF(E$11=0,0,E12/E$11) -> 0.05291970803 | G12: (4)
D13: =Candidats!$A3&" "&Candidats!$B3 -> Marc ARCHAMBAULT | E13: 64 | F13: 0.1167883212
D14: =Candidats!$A4&" "&Candidats!$B4 -> Étienne BUTZBACH | E14: 133 | F14: 0.2427007299
D15: =Candidats!$A5&" "&Candidats!$B5 -> Bastien FAUDOT | E15: 61 | F15: 0.1113138686
D16: =Candidats!$A6&" "&Candidats!$B6 -> Christophe GRUDLER | E16: 64 | F16: 0.1167883212
D17: =Candidats!$A7&" "&Candidats!$B7 -> Jean-Marie PHEULPIN | E17: 15 | F17: 0.02737226277
D18: =Candidats!$A8&" "&Candidats!$B8 -> Damien MESLOT | E18: 182 | F18: 0.3321167883
E19: =IF(SUM(E12:E18)<>E11,"!!! FAUX","") -> 
D20: TOTAL : | E20: =SUM(E12:E18) -> 548
F22: (1) Votants / Inscrits
F23: (2) Nuls / Votants
F24: (3) Exprimés / Inscrits
F25: (4) Score / Exprimés

Sheet J1
A3: J1 | B3: - | C3: GROUPE SCOLAIRE RENÉ RUCKLIN (Rue Braille)
D7: INSCRITS | E7: 597 | F7: %
D8: Émargements | E8: 266
D9: Votants (participation) | E9: 266 | F9: =IF(E7=0,0,E9/E7) -> 0.445561139 | G9: (1)
D10: Nuls | E10: 9 | F10: =IF(E9=0,0,E10/E9) -> 0.03383458647 | G10: (2)
D11: Exprimés | E11: 257 | F11: =IF(E7=0,0,E11/E7) -> 0.4304857621 | G11: (3)
D12: =Candidats!$A2&" "&Candidats!$B2 -> Bertrand CHEVALIER | E12: 7 | F12: =IF(E$11=0,0,E12/E$11) -> 0.02723735409 | G12: (4)
D13: =Candidats!$A3&" "&Candidats!$B3 -> Marc ARCHAMBAULT | E13: 50 | F13: 0.1945525292
D14: =Candidats!$A4&" "&Candidats!$B4 -> Étienne BUTZBACH | E14: 63 | F14: 0.2451361868
D15: =Candidats!$A5&" "&Candidats!$B5 -> Bastien FAUDOT | E15: 28 | F15: 0.1089494163
D16: =Candidats!$A6&" "&Candidats!$B6 -> Christophe GRUDLER | E16: 43 | F16: 0.1673151751
D17: =Candidats!$A7&" "&Candidats!$B7 -> Jean-Marie PHEULPIN | E17: 3 | F17: 0.01167315175
D18: =Candidats!$A8&" "&Candidats!$B8 -> Damien MESLOT | E18: 63 | F18: 0.2451361868
E19: =IF(SUM(E12:E18)<>E11,"!!! FAUX","") -> 
D20: TOTAL : | E20: =SUM(E12:E18) -> 257
F22: (1) Votants / Inscrits
F23: (2) Nuls / Votants
F24: (3) Exprimés / Inscrits
F25: (4) Score / Exprimés

Sheet J2
A3: J2 | B3: - | C3: GROUPE SCOLAIRE RENÉ RUCKLIN (Rue Braille)
D7: INSCRITS | E7: 818 | F7: %
D8: Émargements | E8: 438
D9: Votants (participation) | E9: 438 | F9: =IF(E7=0,0,E9/E7) -> 0.5354523227 | G9: (1)
D10: Nuls | E10: 14 | F10: =IF(E9=0,0,E10/E9) -> 0.03196347032 | G10: (2)
D11: Exprimés | E11: 424 | F11: =IF(E7=0,0,E11/E7) -> 0.5183374083 | G11: (3)
D12: =Candidats!$A2&" "&Candidats!$B2 -> Bertrand CHEVALIER | E12: 8 | F12: =IF(E$11=0,0,E12/E$11) -> 0.01886792453 | G12: (4)
D13: =Candidats!$A3&" "&Candidats!$B3 -> Marc ARCHAMBAULT | E13: 42 | F13: 0.09905660377
D14: =Candidats!$A4&" "&Candidats!$B4 -> Étienne BUTZBACH | E14: 102 | F14: 0.2405660377
D15: =Candidats!$A5&" "&Candidats!$B5 -> Bastien FAUDOT | E15: 43 | F15: 0.1014150943
D16: =Candidats!$A6&" "&Candidats!$B6 -> Christophe GRUDLER | E16: 79 | F16: 0.1863207547
D17: =Candidats!$A7&" "&Candidats!$B7 -> Jean-Marie PHEULPIN | E17: 13 | F17: 0.03066037736
D18: =Candidats!$A8&" "&Candidats!$B8 -> Damien MESLOT | E18: 137 | F18: 0.3231132075
E19: =IF(SUM(E12:E18)<>E11,"!!! FAUX","") -> 
D20: TOTAL : | E20: =SUM(E12:E18) -> 424
F22: (1) Votants / Inscrits
F23: (2) Nuls / Votants
F24: (3) Exprimés / Inscrits
F25: (4) Score / Exprimés

Sheet J3
A3: J3 | B3: - | C3: GROUPE SCOLAIRE RENÉ RUCKLIN (Rue de Rome)
D7: INSCRITS | E7: 562 | F7: %
D8: Émargements | E8: 277
D9: Votants (participation) | E9: 277 | F9: =IF(E7=0,0,E9/E7) -> 0.4928825623 | G9: (1)
D10: Nuls | E10: 20 | F10: =IF(E9=0,0,E10/E9) -> 0.07220216606 | G10: (2)
D11: Exprimés | E11: 257 | F11: =IF(E7=0,0,E11/E7) -> 0.4572953737 | G11: (3)
D12: =Candidats!$A2&" "&Candidats!$B2 -> Bertrand CHEVALIER | E12: 17 | F12: =IF(E$11=0,0,E12/E$11) -> 0.06614785992 | G12: (4)
D13: =Candidats!$A3&" "&Candidats!$B3 -> Marc ARCHAMBAULT | E13: 26 | F13: 0.1011673152
D14: =Candidats!$A4&" "&Candidats!$B4 -> Étienne BUTZBACH | E14: 88 | F14: 0.3424124514
D15: =Candidats!$A5&" "&Candidats!$B5 -> Bastien FAUDOT | E15: 35 | F15: 0.1361867704
D16: =Candidats!$A6&" "&Candidats!$B6 -> Christophe GRUDLER | E16: 29 | F16: 0.1128404669
D17: =Candidats!$A7&" "&Candidats!$B7 -> Jean-Marie PHEULPIN | E17: 2 | F17: 0.007782101167
D18: =Candidats!$A8&" "&Candidats!$B8 -> Damien MESLOT | E18: 60 | F18: 0.233463035
E19: =IF(SUM(E12:E18)<>E11,"!!! FAUX","") -> 
D20: TOTAL : | E20: =SUM(E12:E18) -> 257
F22: (1) Votants / Inscrits
F23: (2) Nuls / Votants
F24: (3) Exprimés / Inscrits
F25: (4) Score / Exprimés

Sheet K1
A3: K1 | B3: - | C3: GROUPE SCOLAIRE LOUIS PERGAUD (Rue de Zaporojie - Primaire)
D7: INSCRITS | E7: 959 | F7: %
D8: Émargements | E8: 487
D9: Votants (participation) | E9: 487 | F9: =IF(E7=0,0,E9/E7) -> 0.5078206465 | G9: (1)
D10: Nuls | E10: 18 | F10: =IF(E9=0,0,E10/E9) -> 0.03696098563 | G10: (2)
D11: Exprimés | E11: 469 | F11: =IF(E7=0,0,E11/E7) -> 0.4890510949 | G11: (3)
D12: =Candidats!$A2&" "&Candidats!$B2 -> Bertrand CHEVALIER | E12: 11 | F12: =IF(E$11=0,0,E12/E$11) -> 0.02345415778 | G12: (4)
D13: =Candidats!$A3&" "&Candidats!$B3 -> Marc ARCHAMBAULT | E13: 53 | F13: 0.1130063966
D14: =Candidats!$A4&" "&Candidats!$B4 -> Étienne BUTZBACH | E14: 153 | F14: 0.3262260128
D15: =Candidats!$A5&" "&Candidats!$B5 -> Bastien FAUDOT | E15: 39 | F15: 0.08315565032
D16: =Candidats!$A6&" "&Candidats!$B6 -> Christophe GRUDLER | E16: 30 | F16: 0.06396588486
D17: =Candidats!$A7&" "&Candidats!$B7 -> Jean-Marie PHEULPIN | E17: 10 | F17: 0.02132196162
D18: =Candidats!$A8&" "&Candidats!$B8 -> Damien MESLOT | E18: 173 | F18: 0.368869936
E19: =IF(SUM(E12:E18)<>E11,"!!! FAUX","") -> 
D20: TOTAL : | E20: =SUM(E12:E18) -> 469
F22: (1) Votants / Inscrits
F23: (2) Nuls / Votants
F24: (3) Exprimés / Inscrits
F25: (4) Score / Exprimés

Sheet K2
A3: K2 | B3: - | C3: GROUPE SCOLAIRE LOUIS PERGAUD (Rue de Zaporojie - Maternelle)
D7: INSCRITS | E7: 789 | F7: %
D8: Émargements | E8: 395
D9: Votants (participation) | E9: 395 | F9: =IF(E7=0,0,E9/E7) -> 0.5006337136 | G9: (1)
D10: Nuls | E10: 12 | F10: =IF(E9=0,0,E10/E9) -> 0.03037974684 | G10: (2)
D11: Exprimés | E11: 383 | F11: =IF(E7=0,0,E11/E7) -> 0.4854245881 | G11: (3)
D12: =Candidats!$A2&" "&Candidats!$B2 -> Bertrand CHEVALIER | E12: 9 | F12: =IF(E$11=0,0,E12/E$11) -> 0.02349869452 | G12: (4)
D13: =Candidats!$A3&" "&Candidats!$B3 -> Marc ARCHAMBAULT | E13: 46 | F13: 0.1201044386
D14: =Candidats!$A4&" "&Candidats!$B4 -> Étienne BUTZBACH | E14: 128 | F14: 0.3342036554
D15: =Candidats!$A5&" "&Candidats!$B5 -> Bastien FAUDOT | E15: 30 | F15: 0.07832898172
D16: =Candidats!$A6&" "&Candidats!$B6 -> Christophe GRUDLER | E16: 28 | F16: 0.07310704961
D17: =Candidats!$A7&" "&Candidats!$B7 -> Jean-Marie PHEULPIN | E17: 9 | F17: 0.02349869452
D18: =Candidats!$A8&" "&Candidats!$B8 -> Damien MESLOT | E18: 133 | F18: 0.3472584856
E19: =IF(SUM(E12:E18)<>E11,"!!! FAUX","") -> 
D20: TOTAL : | E20: =SUM(E12:E18) -> 383
F22: (1) Votants / Inscrits
F23: (2) Nuls / Votants
F24: (3) Exprimés / Inscrits
F25: (4) Score / Exprimés

Sheet L1
A3: L1 | B3: - | C3: LES BARRES - MATERNELLE (Via d'Auxelles)
D7: INSCRITS | E7: 1336 | F7: %
D8: Émargements | E8: 759
D9: Votants (participation) | E9: 759 | F9: =IF(E7=0,0,E9/E7) -> 0.5681137725 | G9: (1)
D10: Nuls | E10: 19 | F10: =IF(E9=0,0,E10/E9) -> 0.02503293808 | G10: (2)
D11: Exprimés | E11: 740 | F11: =IF(E7=0,0,E11/E7) -> 0.5538922156 | G11: (3)
D12: =Candidats!$A2&" "&Candidats!$B2 -> Bertrand CHEVALIER | E12: 34 | F12: =IF(E$11=0,0,E12/E$11) -> 0.04594594595 | G12: (4)
D13: =Candidats!$A3&" "&Candidats!$B3 -> Marc ARCHAMBAULT | E13: 108 | F13: 0.1459459459
D14: =Candidats!$A4&" "&Candidats!$B4 -> Étienne BUTZBACH | E14: 143 | F14: 0.1932432432
D15: =Candidats!$A5&" "&Candidats!$B5 -> Bastien FAUDOT | E15: 132 | F15: 0.1783783784
D16: =Candidats!$A6&" "&Candidats!$B6 -> Christophe GRUDLER | E16: 97 | F16: 0.1310810811
D17: =Candidats!$A7&" "&Candidats!$B7 -> Jean-Marie PHEULPIN | E17: 16 | F17: 0.02162162162
D18: =Candidats!$A8&" "&Candidats!$B8 -> Damien MESLOT | E18: 210 | F18: 0.2837837838
E19: =IF(SUM(E12:E18)<>E11,"!!! FAUX","") -> 
D20: TOTAL : | E20: =SUM(E12:E18) -> 740
F22: (1) Votants / Inscrits
F23: (2) Nuls / Votants
F24: (3) Exprimés / Inscrits
F25: (4) Score / Exprimés

Sheet L2
A3: L2 | B3: - | C3: LES BARRES - PRIMAIRE (Rue Ernest Duvillard)
D7: INSCRITS | E7: 1155 | F7: %
D8: Émargements | E8: 709
D9: Votants (participation) | E9: 709 | F9: =IF(E7=0,0,E9/E7) -> 0.6138528139 | G9: (1)
D10: Nuls | E10: 35 | F10: =IF(E9=0,0,E10/E9) -> 0.04936530324 | G10: (2)
D11: Exprimés | E11: 674 | F11: =IF(E7=0,0,E11/E7) -> 0.5835497835 | G11: (3)
D12: =Candidats!$A2&" "&Candidats!$B2 -> Bertrand CHEVALIER | E12: 47 | F12: =IF(E$11=0,0,E12/E$11) -> 0.06973293769 | G12: (4)
D13: =Candidats!$A3&" "&Candidats!$B3 -> Marc ARCHAMBAULT | E13: 103 | F13: 0.1528189911
D14: =Candidats!$A4&" "&Candidats!$B4 -> Étienne BUTZBACH | E14: 148 | F14: 0.2195845697
D15: =Candidats!$A5&" "&Candidats!$B5 -> Bastien FAUDOT | E15: 86 | F15: 0.1275964392
D16: =Candidats!$A6&" "&Candidats!$B6 -> Christophe GRUDLER | E16: 102 | F16: 0.1513353116
D17: =Candidats!$A7&" "&Candidats!$B7 -> Jean-Marie PHEULPIN | E17: 18 | F17: 0.02670623145
D18: =Candidats!$A8&" "&Candidats!$B8 -> Damien MESLOT | E18: 170 | F18: 0.2522255193
E19: =IF(SUM(E12:E18)<>E11,"!!! FAUX","") -> 
D20: TOTAL : | E20: =SUM(E12:E18) -> 674
F22: (1) Votants / Inscrits
F23: (2) Nuls / Votants
F24: (3) Exprimés / Inscrits
F25: (4) Score / Exprimés

Sheet EST
H2: CANTON EST
P8: =Candidats!A2 -> Bertrand | S8: =Candidats!A3 -> Marc | V8: =Candidats!A4 -> Étienne | Y8: =Candidats!A5 -> Bastien | AB8: =Candidats!A6 -> Christophe | AE8: =Candidats!A7 -> Jean-Marie | AH8: =Candidats!A8 -> Damien
D9: BUREAUX | G9: Inscrits | I9: Votants | K9: Particip. | L9: Nuls | N9: Exprimés | P9: =Candidats!B2 -> CHEVALIER | R9: % | S9: =Candidats!B3 -> ARCHAMBAULT | U9: % | V9: =Candidats!B4 -> BUTZBACH | X9: % | Y9: =Candidats!B5 -> FAUDOT | AA9: % | AB9: =Candidats!B6 -> GRUDLER | AD9: % | AE9: =Candidats!B7 -> PHEULPIN | AG9: % | AH9: =Candidats!B8 -> MESLOT | AJ9: %
B12: A1 | C12: - | D12: Hôtel de Ville | E12: E | G12: =IF('A1'!$E7="","",'A1'!$E7) -> 949 | I12: =IF('A1'!$E9="","",'A1'!$E9) -> 508 | K12: =IF(I12=""," ",I12/$G12) -> 0.5353003161 | L12: =IF('A1'!$E10="","",'A1'!$E10) -> 12 | N12: =IF('A1'!$E11="","",'A1'!$E11) -> 496 | P12: =IF('A1'!$E12="","",'A1'!$E12) -> 20 | R12: =IF(P12=""," ",P12/$N12) -> 0.04032258065 | S12: =IF('A1'!$E13="","",'A1'!$E13) -> 32 | U12: =IF(S12=""," ",S12/$N12) -> 0.06451612903 | V12: =IF('A1'!$E14="","",'A1'!$E14) -> 104 | X12: =IF(V12=""," ",V12/$N12) -> 0.2096774194 | Y12: =IF('A1'!$E15="","",'A1'!$E15) -> 60 | AA12: =IF(Y12=""," ",Y12/$N12) -> 0.1209677419 | AB12: =IF('A1'!$E16="","",'A1'!$E16) -> 105 | AD12: =IF(AB12=""," ",AB12/$N12) -> 0.2116935484 | AE12: =IF('A1'!$E17="","",'A1'!$E17) -> 8 | AG12: =IF(AE12=""," ",AE12/$N12) -> 0.01612903226 | AH12: =IF('A1'!$E18="","",'A1'!$E18) -> 167 | AJ12: =IF(AH12=""," ",AH12/$N12) -> 0.3366935484
B13: A2 | C13: - | D13: Salle des fêtes | E13: E | G13: =IF('A2'!$E7="","",'A2'!$E7) -> 956 | I13: =IF('A2'!$E9="","",'A2'!$E9) -> 610 | K13: =IF(I13=""," ",I13/$G13) -> 0.6380753138 | L13: =IF('A2'!$E10="","",'A2'!$E10) -> 18 | N13: =IF('A2'!$E11="","",'A2'!$E11) -> 592 | P13: =IF('A2'!$E12="","",'A2'!$E12) -> 29 | R13: 0.04898648649 | S13: =IF('A2'!$E13="","",'A2'!$E13) -> 42 | U13: 0.07094594595 | V13: =IF('A2'!$E14="","",'A2'!$E14) -> 107 | X13: 0.1807432432 | Y13: =IF('A2'!$E15="","",'A2'!$E15) -> 69 | AA13: 0.1165540541 | AB13: =IF('A2'!$E16="","",'A2'!$E16) -> 105 | AD13: 0.1773648649 | AE13: =IF('A2'!$E17="","",'A2'!$E17) -> 7 | AG13: 0.01182432432 | AH13: =IF('A2'!$E18="","",'A2'!$E18) -> 233 | AJ13: 0.3935810811
B14: B1 | C14: - | D14: Victor Hugo | E14: E | G14: =IF('B1'!$E7="","",'B1'!$E7) -> 1096 | I14: =IF('B1'!$E9="","",'B1'!$E9) -> 622 | K14: 0.5675182482 | L14: =IF('B1'!$E10="","",'B1'!$E10) -> 11 | N14: =IF('B1'!$E11="","",'B1'!$E11) -> 611 | P14: =IF('B1'!$E12="","",'B1'!$E12) -> 26 | R14: 0.04255319149 | S14: =IF('B1'!$E13="","",'B1'!$E13) -> 46 | U14: 0.07528641571 | V14: =IF('B1'!$E14="","",'B1'!$E14) -> 132 | X14: 0.2160392799 | Y14: =IF('B1'!$E15="","",'B1'!$E15) -> 71 | AA14: 0.116202946 | AB14: =IF('B1'!$E16="","",'B1'!$E16) -> 115 | AD14: 0.1882160393 | AE14: =IF('B1'!$E17="","",'B1'!$E17) -> 9 | AG14: 0.0147299509 | AH14: =IF('B1'!$E18="","",'B1'!$E18) -> 212 | AJ14: 0.3469721768
B15: B2 | C15: - | D15: Victor Hugo | E15: E | G15: =IF('B2'!$E7="","",'B2'!$E7) -> 1167 | I15: =IF('B2'!$E9="","",'B2'!$E9) -> 715 | K15: 0.6126820908 | L15: =IF('B2'!$E10="","",'B2'!$E10) -> 15 | N15: =IF('B2'!$E11="","",'B2'!$E11) -> 700 | P15: =IF('B2'!$E12="","",'B2'!$E12) -> 37 | R15: 0.05285714286 | S15: =IF('B2'!$E13="","",'B2'!$E13) -> 57 | U15: 0.08142857143 | V15: =IF('B2'!$E14="","",'B2'!$E14) -> 126 | X15: 0.18 | Y15: =IF('B2'!$E15="","",'B2'!$E15) -> 87 | AA15: 0.1242857143 | AB15: =IF('B2'!$E16="","",'B2'!$E16) -> 126 | AD15: 0.18 | AE15: =IF('B2'!$E17="","",'B2'!$E17) -> 12 | AG15: 0.01714285714 | AH15: =IF('B2'!$E18="","",'B2'!$E18) -> 255 | AJ15: 0.3642857143
B16: M1 | C16: - | D16: Saint-Exupéry | E16: E | G16: =IF('M1'!$E7="","",'M1'!$E7) -> 1306 | I16: =IF('M1'!$E9="","",'M1'!$E9) -> 599 | K16: 0.4586523737 | L16: =IF('M1'!$E10="","",'M1'!$E10) -> 18 | N16: =IF('M1'!$E11="","",'M1'!$E11) -> 581 | P16: =IF('M1'!$E12="","",'M1'!$E12) -> 23 | R16: 0.0395869191 | S16: =IF('M1'!$E13="","",'M1'!$E13) -> 50 | U16: 0.08605851979 | V16: =IF('M1'!$E14="","",'M1'!$E14) -> 215 | X16: 0.3700516351 | Y16: =IF('M1'!$E15="","",'M1'!$E15) -> 50 | AA16: 0.08605851979 | AB16: =IF('M1'!$E16="","",'M1'!$E16) -> 112 | AD16: 0.1927710843 | AE16: =IF('M1'!$E17="","",'M1'!$E17) -> 8 | AG16: 0.01376936317 | AH16: =IF('M1'!$E18="","",'M1'!$E18) -> 123 | AJ16: 0.2117039587
B17: N1 | C17: - | D17: Jean Moulin | E17: E | G17: =IF('N1'!$E7="","",'N1'!$E7) -> 1456 | I17: =IF('N1'!$E9="","",'N1'!$E9) -> 825 | K17: 0.5666208791 | L17: =IF('N1'!$E10="","",'N1'!$E10) -> 17 | N17: =IF('N1'!$E11="","",'N1'!$E11) -> 808 | P17: =IF('N1'!$E12="","",'N1'!$E12) -> 32 | R17: 0.0396039604 | S17: =IF('N1'!$E13="","",'N1'!$E13) -> 111 | U17: 0.1373762376 | V17: =IF('N1'!$E14="","",'N1'!$E14) -> 150 | X17: 0.1856435644 | Y17: =IF('N1'!$E15="","",'N1'!$E15) -> 78 | AA17: 0.09653465347 | AB17: =IF('N1'!$E16="","",'N1'!$E16) -> 176 | AD17: 0.2178217822 | AE17: =IF('N1'!$E17="","",'N1'!$E17) -> 12 | AG17: 0.01485148515 | AH17: =IF('N1'!$E18="","",'N1'!$E18) -> 249 | AJ17: 0.3081683168
B18: N2 | C18: - | D18: Cité des Associations | E18: E | G18: =IF('N2'!$E7="","",'N2'!$E7) -> 905 | I18: =IF('N2'!$E9="","",'N2'!$E9) -> 577 | K18: 0.6375690608 | L18: =IF('N2'!$E10="","",'N2'!$E10) -> 11 | N18: =IF('N2'!$E11="","",'N2'!$E11) -> 566 | P18: =IF('N2'!$E12="","",'N2'!$E12) -> 25 | R18: 0.04416961131 | S18: =IF('N2'!$E13="","",'N2'!$E13) -> 44 | U18: 0.0777385159 | V18: =IF('N2'!$E14="","",'N2'!$E14) -> 113 | X18: 0.1996466431 | Y18: =IF('N2'!$E15="","",'N2'!$E15) -> 67 | AA18: 0.1183745583 | AB18: =IF('N2'!$E16="","",'N2'!$E16) -> 167 | AD18: 0.2950530035 | AE18: =IF('N2'!$E17="","",'N2'!$E17) -> 5 | AG18: 0.008833922261 | AH18: =IF('N2'!$E18="","",'N2'!$E18) -> 145 | AJ18: 0.2561837456
B20: Total Canton EST | G20: =SUM(G$12:G$18) -> 7835 | I20: =SUM(I12:I18) -> 4456 | K20: 0.5687300574 | L20: =SUM(L12:L18) -> 102 | N20: =SUM(N12:N18) -> 4354 | P20: =SUM(P12:P18) -> 192 | R20: =IF(P20=0," ",P20/$N20) -> 0.04409738172 | S20: =SUM(S12:S18) -> 382 | U20: =IF(S20=0," ",S20/$N20) -> 0.08773541571 | V20: =SUM(V12:V18) -> 947 | X20: =IF(V20=0," ",V20/$N20) -> 0.2175011484 | Y20: =SUM(Y12:Y18) -> 482 | AA20: =IF(Y20=0," ",Y20/$N20) -> 0.110702802 | AB20: =SUM(AB12:AB18) -> 906 | AD20: =IF(AB20=0," ",AB20/$N20) -> 0.20808452 | AE20: =SUM(AE12:AE18) -> 61 | AG20: =IF(AE20=0," ",AE20/$N20) -> 0.01401010565 | AH20: =SUM(AH12:AH18) -> 1384 | AJ20: =IF(AH20=0," ",AH20/$N20) -> 0.3178686266
B23: % par rapport aux VOTANTS | L23: =IF(L20=0," ",L20/$I20) -> 0.02289048474 | N23: =IF(N20=0," ",N20/$I20) -> 0.9771095153
B24: % par rapport aux INSCRITS | L24: =IF(L20=0," ",L20/$G20) -> 0.0130185067 | N24: =IF(N20=0," ",N20/$G20) -> 0.5557115507 | P24: =IF(P20=0," ",P20/$G20) -> 0.02450542438 | S24: =IF(S20=0," ",S20/$G20) -> 0.04875558392 | V24: =IF(V20=0," ",V20/$G20) -> 0.1208679004 | Y24: =IF(Y20=0," ",Y20/$G20) -> 0.06151882578 | AB24: =IF(AB20=0," ",AB20/$G20) -> 0.1156349713 | AE24: =IF(AE20=0," ",AE20/$G20) -> 0.007785577537 | AH24: =IF(AH20=0," ",AH20/$G20) -> 0.1766432674

Sheet CENTRE
H2: CANTON CENTRE
P8: =Candidats!A2 -> Bertrand | S8: =Candidats!A3 -> Marc | V8: =Candidats!A4 -> Étienne | Y8: =Candidats!A5 -> Bastien | AB8: =Candidats!A6 -> Christophe | AE8: =Candidats!A7 -> Jean-Marie | AH8: =Candidats!A8 -> Damien
D9: BUREAUX | G9: Inscrits | I9: Votants | K9: Particip. | L9: Nuls | N9: Exprimés | P9: =Candidats!B2 -> CHEVALIER | R9: % | S9: =Candidats!B3 -> ARCHAMBAULT | U9: % | V9: =Candidats!B4 -> BUTZBACH | X9: % | Y9: =Candidats!B5 -> FAUDOT | AA9: % | AB9: =Candidats!B6 -> GRUDLER | AD9: % | AE9: =Candidats!B7 -> PHEULPIN | AG9: % | AH9: =Candidats!B8 -> MESLOT | AJ9: %
B12: C1 | C12: - | D12: Victor Schoelcher | E12: C | G12: =IF('C1'!$E7="","",'C1'!$E7) -> 1210 | I12: =IF('C1'!$E9="","",'C1'!$E9) -> 719 | K12: =IF(I12=""," ",I12/$G12) -> 0.594214876 | L12: =IF('C1'!$E10="","",'C1'!$E10) -> 17 | N12: =IF('C1'!$E11="","",'C1'!$E11) -> 702 | P12: =IF('C1'!$E12="","",'C1'!$E12) -> 24 | R12: =IF(P12=""," ",P12/$N12) -> 0.03418803419 | S12: =IF('C1'!$E13="","",'C1'!$E13) -> 65 | U12: =IF(S12=""," ",S12/$N12) -> 0.09259259259 | V12: =IF('C1'!$E14="","",'C1'!$E14) -> 153 | X12: =IF(V12=""," ",V12/$N12) -> 0.2179487179 | Y12: =IF('C1'!$E15="","",'C1'!$E15) -> 89 | AA12: =IF(Y12=""," ",Y12/$N12) -> 0.1267806268 | AB12: =IF('C1'!$E16="","",'C1'!$E16) -> 92 | AD12: =IF(AB12=""," ",AB12/$N12) -> 0.1310541311 | AE12: =IF('C1'!$E17="","",'C1'!$E17) -> 9 | AG12: =IF(AE12=""," ",AE12/$N12) -> 0.01282051282 | AH12: =IF('C1'!$E18="","",'C1'!$E18) -> 270 | AJ12: =IF(AH12=""," ",AH12/$N12) -> 0.3846153846
B13: C2 | C13: - | D13: Maison du Peuple | E13: C | G13: =IF('C2'!$E7="","",'C2'!$E7) -> 763 | I13: =IF('C2'!$E9="","",'C2'!$E9) -> 474 | K13: 0.621231979 | L13: =IF('C2'!$E10="","",'C2'!$E10) -> 11 | N13: =IF('C2'!$E11="","",'C2'!$E11) -> 463 | P13: =IF('C2'!$E12="","",'C2'!$E12) -> 23 | R13: 0.04967602592 | S13: =IF('C2'!$E13="","",'C2'!$E13) -> 43 | U13: 0.09287257019 | V13: =IF('C2'!$E14="","",'C2'!$E14) -> 82 | X13: 0.1771058315 | Y13: =IF('C2'!$E15="","",'C2'!$E15) -> 54 | AA13: 0.1166306695 | AB13: =IF('C2'!$E16="","",'C2'!$E16) -> 58 | AD13: 0.1252699784 | AE13: =IF('C2'!$E17="","",'C2'!$E17) -> 5 | AG13: 0.01079913607 | AH13: =IF('C2'!$E18="","",'C2'!$E18) -> 198 | AJ13: 0.4276457883
B14: C3 | C14: - | D14: Maison du Peuple | E14: C | G14: =IF('C3'!$E7="","",'C3'!$E7) -> 921 | I14: =IF('C3'!$E9="","",'C3'!$E9) -> 564 | K14: 0.6123778502 | L14: =IF('C3'!$E10="","",'C3'!$E10) -> 12 | N14: =IF('C3'!$E11="","",'C3'!$E11) -> 552 | P14: =IF('C3'!$E12="","",'C3'!$E12) -> 19 | R14: 0.03442028986 | S14: =IF('C3'!$E13="","",'C3'!$E13) -> 48 | U14: =IF(S14=""," ",S14/$N14) -> 0.08695652174 | V14: =IF('C3'!$E14="","",'C3'!$E14) -> 105 | X14: 0.1902173913 | Y14: =IF('C3'!$E15="","",'C3'!$E15) -> 56 | AA14: 0.1014492754 | AB14: =IF('C3'!$E16="","",'C3'!$E16) -> 62 | AD14: 0.1123188406 | AE14: =IF('C3'!$E17="","",'C3'!$E17) -> 6 | AG14: 0.01086956522 | AH14: =IF('C3'!$E18="","",'C3'!$E18) -> 256 | AJ14: 0.4637681159
B15: D1 | C15: - | D15: Châteaudun | E15: C | G15: =IF('D1'!$E7="","",'D1'!$E7) -> 1074 | I15: =IF('D1'!$E9="","",'D1'!$E9) -> 613 | K15: 0.5707635009 | L15: =IF('D1'!$E10="","",'D1'!$E10) -> 17 | N15: =IF('D1'!$E11="","",'D1'!$E11) -> 596 | P15: =IF('D1'!$E12="","",'D1'!$E12) -> 14 | R15: 0.02348993289 | S15: =IF('D1'!$E13="","",'D1'!$E13) -> 70 | U15: 0.1174496644 | V15: =IF('D1'!$E14="","",'D1'!$E14) -> 103 | X15: 0.1728187919 | Y15: =IF('D1'!$E15="","",'D1'!$E15) -> 51 | AA15: 0.0855704698 | AB15: =IF('D1'!$E16="","",'D1'!$E16) -> 80 | AD15: 0.1342281879 | AE15: =IF('D1'!$E17="","",'D1'!$E17) -> 7 | AG15: 0.01174496644 | AH15: =IF('D1'!$E18="","",'D1'!$E18) -> 271 | AJ15: 0.4546979866
B16: D2 | C16: - | D16: Châteaudun | E16: C | G16: =IF('D2'!$E7="","",'D2'!$E7) -> 838 | I16: =IF('D2'!$E9="","",'D2'!$E9) -> 503 | K16: 0.6002386635 | L16: =IF('D2'!$E10="","",'D2'!$E10) -> 22 | N16: =IF('D2'!$E11="","",'D2'!$E11) -> 481 | P16: =IF('D2'!$E12="","",'D2'!$E12) -> 20 | R16: 0.04158004158 | S16: =IF('D2'!$E13="","",'D2'!$E13) -> 56 | U16: 0.1164241164 | V16: =IF('D2'!$E14="","",'D2'!$E14) -> 67 | X16: 0.1392931393 | Y16: =IF('D2'!$E15="","",'D2'!$E15) -> 56 | AA16: 0.1164241164 | AB16: =IF('D2'!$E16="","",'D2'!$E16) -> 78 | AD16: 0.1621621622 | AE16: =IF('D2'!$E17="","",'D2'!$E17) -> 7 | AG16: 0.01455301455 | AH16: =IF('D2'!$E18="","",'D2'!$E18) -> 197 | AJ16: 0.4095634096
B17: D3 | C17: - | D17: Châteaudun | E17: C | G17: =IF('D3'!$E7="","",'D3'!$E7) -> 912 | I17: =IF('D3'!$E9="","",'D3'!$E9) -> 554 | K17: 0.6074561404 | L17: =IF('D3'!$E10="","",'D3'!$E10) -> 18 | N17: =IF('D3'!$E11="","",'D3'!$E11) -> 536 | P17: =IF('D3'!$E12="","",'D3'!$E12) -> 37 | R17: 0.06902985075 | S17: =IF('D3'!$E13="","",'D3'!$E13) -> 91 | U17: 0.1697761194 | V17: =IF('D3'!$E14="","",'D3'!$E14) -> 70 | X17: 0.1305970149 | Y17: =IF('D3'!$E15="","",'D3'!$E15) -> 47 | AA17: 0.08768656716 | AB17: =IF('D3'!$E16="","",'D3'!$E16) -> 76 | AD17: 0.1417910448 | AE17: =IF('D3'!$E17="","",'D3'!$E17) -> 16 | AG17: 0.02985074627 | AH17: =IF('D3'!$E18="","",'D3'!$E18) -> 199 | AJ17: 0.3712686567
B19: Total Canton CENTRE | G19: =SUM(G$12:G$17) -> 5718 | I19: =SUM(I12:I17) -> 3427 | K19: =IF(I19=""," ",I19/$G19) -> 0.599335432 | L19: =SUM(L12:L17) -> 97 | N19: =SUM(N12:N17) -> 3330 | P19: =SUM(P12:P17) -> 137 | R19: =IF(P19=0," ",P19/$N19) -> 0.04114114114 | S19: =SUM(S12:S17) -> 373 | U19: =IF(S19=0," ",S19/$N19) -> 0.112012012 | V19: =SUM(V12:V17) -> 580 | X19: =IF(V19=0," ",V19/$N19) -> 0.1741741742 | Y19: =SUM(Y12:Y17) -> 353 | AA19: =IF(Y19=0," ",Y19/$N19) -> 0.106006006 | AB19: =SUM(AB12:AB17) -> 446 | AD19: =IF(AB19=0," ",AB19/$N19) -> 0.1339339339 | AE19: =SUM(AE12:AE17) -> 50 | AG19: =IF(AE19=0," ",AE19/$N19) -> 0.01501501502 | AH19: =SUM(AH12:AH17) -> 1391 | AJ19: =IF(AH19=0," ",AH19/$N19) -> 0.4177177177
B22: % par rapport aux VOTANTS | L22: =IF(L19=0," ",L19/$I19) -> 0.02830463963 | N22: =IF(N19=0," ",N19/$I19) -> 0.9716953604
B23: % par rapport aux INSCRITS | L23: =IF(L19=0," ",L19/$G19) -> 0.01696397342 | N23: =IF(N19=0," ",N19/$G19) -> 0.5823714586 | P23: =IF(P19=0," ",P19/$G19) -> 0.02395942637 | S23: =IF(S19=0," ",S19/$G19) -> 0.06523259881 | V23: =IF(V19=0," ",V19/$G19) -> 0.1014340679 | Y23: =IF(Y19=0," ",Y19/$G19) -> 0.06173487233 | AB23: =IF(AB19=0," ",AB19/$G19) -> 0.07799930045 | AE23: =IF(AE19=0," ",AE19/$G19) -> 0.008744316194 | AH23: =IF(AH19=0," ",AH19/$G19) -> 0.2432668765

Sheet NORD
H2: CANTON NORD
P8: =Candidats!A2 -> Bertrand | S8: =Candidats!A3 -> Marc | V8: =Candidats!A4 -> Étienne | Y8: =Candidats!A5 -> Bastien | AB8: =Candidats!A6 -> Christophe | AE8: =Candidats!A7 -> Jean-Marie | AH8: =Candidats!A8 -> Damien
D9: BUREAUX | G9: Inscrits | I9: Votants | K9: Particip. | L9: Nuls | N9: Exprimés | P9: =Candidats!B2 -> CHEVALIER | R9: % | S9: =Candidats!B3 -> ARCHAMBAULT | U9: % | V9: =Candidats!B4 -> BUTZBACH | X9: % | Y9: =Candidats!B5 -> FAUDOT | AA9: % | AB9: =Candidats!B6 -> GRUDLER | AD9: % | AE9: =Candidats!B7 -> PHEULPIN | AG9: % | AH9: =Candidats!B8 -> MESLOT | AJ9: %
B12: E1 | C12: - | D12: Raymond Aubert | E12: N | G12: =IF('E1'!$E7="","",'E1'!$E7) -> 1181 | I12: =IF('E1'!$E9="","",'E1'!$E9) -> 668 | K12: =IF(I12=""," ",I12/$G12) -> 0.5656223539 | L12: =IF('E1'!$E10="","",'E1'!$E10) -> 19 | N12: =IF('E1'!$E11="","",'E1'!$E11) -> 649 | P12: =IF('E1'!$E12="","",'E1'!$E12) -> 23 | R12: =IF(P12=""," ",P12/$N12) -> 0.03543913713 | S12: =IF('E1'!$E13="","",'E1'!$E13) -> 96 | U12: =IF(S12=""," ",S12/$N12) -> 0.1479198767 | V12: =IF('E1'!$E14="","",'E1'!$E14) -> 88 | X12: =IF(V12=""," ",V12/$N12) -> 0.1355932203 | Y12: =IF('E1'!$E15="","",'E1'!$E15) -> 88 | AA12: =IF(Y12=""," ",Y12/$N12) -> 0.1355932203 | AB12: =IF('E1'!$E16="","",'E1'!$E16) -> 92 | AD12: =IF(AB12=""," ",AB12/$N12) -> 0.1417565485 | AE12: =IF('E1'!$E17="","",'E1'!$E17) -> 18 | AG12: =IF(AE12=""," ",AE12/$N12) -> 0.02773497689 | AH12: =IF('E1'!$E18="","",'E1'!$E18) -> 244 | AJ12: =IF(AH12=""," ",AH12/$N12) -> 0.37596302
B13: E2 | C13: - | D13: Raymond Aubert | E13: N | G13: =IF('E2'!$E7="","",'E2'!$E7) -> 1212 | I13: =IF('E2'!$E9="","",'E2'!$E9) -> 681 | K13: =IF(I13=""," ",I13/$G13) -> 0.5618811881 | L13: =IF('E2'!$E10="","",'E2'!$E10) -> 28 | N13: =IF('E2'!$E11="","",'E2'!$E11) -> 653 | P13: =IF('E2'!$E12="","",'E2'!$E12) -> 18 | R13: =IF(P13=""," ",P13/$N13) -> 0.02756508423 | S13: =IF('E2'!$E13="","",'E2'!$E13) -> 115 | U13: =IF(S13=""," ",S13/$N13) -> 0.1761102603 | V13: =IF('E2'!$E14="","",'E2'!$E14) -> 122 | X13: =IF(V13=""," ",V13/$N13) -> 0.1868300153 | Y13: =IF('E2'!$E15="","",'E2'!$E15) -> 51 | AA13: =IF(Y13=""," ",Y13/$N13) -> 0.07810107198 | AB13: =IF('E2'!$E16="","",'E2'!$E16) -> 92 | AD13: =IF(AB13=""," ",AB13/$N13) -> 0.1408882083 | AE13: =IF('E2'!$E17="","",'E2'!$E17) -> 14 | AG13: =IF(AE13=""," ",AE13/$N13) -> 0.02143950995 | AH13: =IF('E2'!$E18="","",'E2'!$E18) -> 241 | AJ13: =IF(AH13=""," ",AH13/$N13) -> 0.3690658499
B14: E3 | C14: - | D14: Raymond Aubert | E14: N | G14: =IF('E3'!$E7="","",'E3'!$E7) -> 1038 | I14: =IF('E3'!$E9="","",'E3'!$E9) -> 564 | K14: =IF(I14=""," ",I14/$G14) -> 0.5433526012 | L14: =IF('E3'!$E10="","",'E3'!$E10) -> 24 | N14: =IF('E3'!$E11="","",'E3'!$E11) -> 540 | P14: =IF('E3'!$E12="","",'E3'!$E12) -> 21 | R14: =IF(P14=""," ",P14/$N14) -> 0.03888888889 | S14: =IF('E3'!$E13="","",'E3'!$E13) -> 94 | U14: =IF(S14=""," ",S14/$N14) -> 0.1740740741 | V14: =IF('E3'!$E14="","",'E3'!$E14) -> 121 | X14: =IF(V14=""," ",V14/$N14) -> 0.2240740741 | Y14: =IF('E3'!$E15="","",'E3'!$E15) -> 60 | AA14: =IF(Y14=""," ",Y14/$N14) -> 0.1111111111 | AB14: =IF('E3'!$E16="","",'E3'!$E16) -> 61 | AD14: =IF(AB14=""," ",AB14/$N14) -> 0.112962963 | AE14: =IF('E3'!$E17="","",'E3'!$E17) -> 16 | AG14: =IF(AE14=""," ",AE14/$N14) -> 0.02962962963 | AH14: =IF('E3'!$E18="","",'E3'!$E18) -> 167 | AJ14: =IF(AH14=""," ",AH14/$N14) -> 0.3092592593
B15: F1 | C15: - | D15: Maison de l'enfant | E15: N | G15: =IF('F1'!$E7="","",'F1'!$E7) -> 776 | I15: =IF('F1'!$E9="","",'F1'!$E9) -> 459 | K15: =IF(I15=""," ",I15/$G15) -> 0.5914948454 | L15: =IF('F1'!$E10="","",'F1'!$E10) -> 18 | N15: =IF('F1'!$E11="","",'F1'!$E11) -> 441 | P15: =IF('F1'!$E12="","",'F1'!$E12) -> 29 | R15: =IF(P15=""," ",P15/$N15) -> 0.06575963719 | S15: =IF('F1'!$E13="","",'F1'!$E13) -> 57 | U15: =IF(S15=""," ",S15/$N15) -> 0.1292517007 | V15: =IF('F1'!$E14="","",'F1'!$E14) -> 106 | X15: =IF(V15=""," ",V15/$N15) -> 0.2403628118 | Y15: =IF('F1'!$E15="","",'F1'!$E15) -> 31 | AA15: =IF(Y15=""," ",Y15/$N15) -> 0.07029478458 | AB15: =IF('F1'!$E16="","",'F1'!$E16) -> 94 | AD15: =IF(AB15=""," ",AB15/$N15) -> 0.2131519274 | AE15: =IF('F1'!$E17="","",'F1'!$E17) -> 9 | AG15: =IF(AE15=""," ",AE15/$N15) -> 0.02040816327 | AH15: =IF('F1'!$E18="","",'F1'!$E18) -> 115 | AJ15: =IF(AH15=""," ",AH15/$N15) -> 0.2607709751
B16: F2 | C16: - | D16: Émile Géhant | E16: N | G16: =IF('F2'!$E7="","",'F2'!$E7) -> 522 | I16: =IF('F2'!$E9="","",'F2'!$E9) -> 299 | K16: =IF(I16=""," ",I16/$G16) -> 0.5727969349 | L16: =IF('F2'!$E10="","",'F2'!$E10) -> 13 | N16: =IF('F2'!$E11="","",'F2'!$E11) -> 286 | P16: =IF('F2'!$E12="","",'F2'!$E12) -> 27 | R16: =IF(P16=""," ",P16/$N16) -> 0.09440559441 | S16: =IF('F2'!$E13="","",'F2'!$E13) -> 53 | U16: =IF(S16=""," ",S16/$N16) -> 0.1853146853 | V16: =IF('F2'!$E14="","",'F2'!$E14) -> 49 | X16: =IF(V16=""," ",V16/$N16) -> 0.1713286713 | Y16: =IF('F2'!$E15="","",'F2'!$E15) -> 34 | AA16: =IF(Y16=""," ",Y16/$N16) -> 0.1188811189 | AB16: =IF('F2'!$E16="","",'F2'!$E16) -> 40 | AD16: =IF(AB16=""," ",AB16/$N16) -> 0.1398601399 | AE16: =IF('F2'!$E17="","",'F2'!$E17) -> 24 | AG16: =IF(AE16=""," ",AE16/$N16) -> 0.08391608392 | AH16: =IF('F2'!$E18="","",'F2'!$E18) -> 59 | AJ16: =IF(AH16=""," ",AH16/$N16) -> 0.2062937063
B18: Total Canton NORD | G18: =SUM(G$12:G$16) -> 4729 | I18: =SUM(I12:I16) -> 2671 | K18: =IF(I18=""," ",I18/$G18) -> 0.5648128568 | L18: =SUM(L12:L16) -> 102 | N18: =SUM(N12:N16) -> 2569 | P18: =SUM(P12:P16) -> 118 | R18: =IF(P18=0," ",P18/$N18) -> 0.04593226937 | S18: =SUM(S12:S16) -> 415 | U18: =IF(S18=0," ",S18/$N18) -> 0.1615414558 | V18: =SUM(V12:V16) -> 486 | X18: =IF(V18=0," ",V18/$N18) -> 0.1891786687 | Y18: =SUM(Y12:Y16) -> 264 | AA18: =IF(Y18=0," ",Y18/$N18) -> 0.1027637213 | AB18: =SUM(AB12:AB16) -> 379 | AD18: =IF(AB18=0," ",AB18/$N18) -> 0.1475282211 | AE18: =SUM(AE12:AE16) -> 81 | AG18: =IF(AE18=0," ",AE18/$N18) -> 0.03152977812 | AH18: =SUM(AH12:AH16) -> 826 | AJ18: =IF(AH18=0," ",AH18/$N18) -> 0.3215258856
B21: % par rapport aux VOTANTS | L21: =IF(L18=0," ",L18/$I18) -> 0.03818794459 | N21: =IF(N18=0," ",N18/$I18) -> 0.9618120554
B22: % par rapport aux INSCRITS | L22: =IF(L18=0," ",L18/$G18) -> 0.02156904208 | N22: =IF(N18=0," ",N18/$G18) -> 0.5432438148 | P22: =IF(P18=0," ",P18/$G18) -> 0.02495242123 | S22: =IF(S18=0," ",S18/$G18) -> 0.0877563967 | V22: =IF(V18=0," ",V18/$G18) -> 0.1027701417 | Y22: =IF(Y18=0," ",Y18/$G18) -> 0.05582575597 | AB22: =IF(AB18=0," ",AB18/$G18) -> 0.08014379361 | AE22: =IF(AE18=0," ",AE18/$G18) -> 0.01712835695 | AH22: =IF(AH18=0," ",AH18/$G18) -> 0.1746669486

Sheet SUD
H2: CANTON SUD
P8: =Candidats!A2 -> Bertrand | S8: =Candidats!A3 -> Marc | V8: =Candidats!A4 -> Étienne | Y8: =Candidats!A5 -> Bastien | AB8: =Candidats!A6 -> Christophe | AE8: =Candidats!A7 -> Jean-Marie | AH8: =Candidats!A8 -> Damien
D9: BUREAUX | G9: Inscrits | I9: Votants | K9: Particip. | L9: Nuls | N9: Exprimés | P9: =Candidats!B2 -> CHEVALIER | R9: % | S9: =Candidats!B3 -> ARCHAMBAULT | U9: % | V9: =Candidats!B4 -> BUTZBACH | X9: % | Y9: =Candidats!B5 -> FAUDOT | AA9: % | AB9: =Candidats!B6 -> GRUDLER | AD9: % | AE9: =Candidats!B7 -> PHEULPIN | AG9: % | AH9: =Candidats!B8 -> MESLOT | AJ9: %
B12: G1 | C12: - | D12: Hubert Metzger | E12: S | G12: =IF('G1'!$E7="","",'G1'!$E7) -> 653 | I12: =IF('G1'!$E9="","",'G1'!$E9) -> 414 | K12: =IF(I12=""," ",I12/$G12) -> 0.6339969372 | L12: =IF('G1'!$E10="","",'G1'!$E10) -> 18 | N12: =IF('G1'!$E11="","",'G1'!$E11) -> 396 | P12: =IF('G1'!$E12="","",'G1'!$E12) -> 36 | R12: =IF(P12=""," ",P12/$N12) -> 0.09090909091 | S12: =IF('G1'!$E13="","",'G1'!$E13) -> 54 | U12: =IF(S12=""," ",S12/$N12) -> 0.1363636364 | V12: =IF('G1'!$E14="","",'G1'!$E14) -> 97 | X12: =IF(V12=""," ",V12/$N12) -> 0.2449494949 | Y12: =IF('G1'!$E15="","",'G1'!$E15) -> 33 | AA12: =IF(Y12=""," ",Y12/$N12) -> 0.08333333333 | AB12: =IF('G1'!$E16="","",'G1'!$E16) -> 68 | AD12: =IF(AB12=""," ",AB12/$N12) -> 0.1717171717 | AE12: =IF('G1'!$E17="","",'G1'!$E17) -> 9 | AG12: =IF(AE12=""," ",AE12/$N12) -> 0.02272727273 | AH12: =IF('G1'!$E18="","",'G1'!$E18) -> 99 | AJ12: =IF(AH12=""," ",AH12/$N12) -> 0.25
B13: G2 | C13: - | D13: Hubert Metzger | E13: S | G13: =IF('G2'!$E7="","",'G2'!$E7) -> 755 | I13: =IF('G2'!$E9="","",'G2'!$E9) -> 419 | K13: 0.5549668874 | L13: =IF('G2'!$E10="","",'G2'!$E10) -> 15 | N13: =IF('G2'!$E11="","",'G2'!$E11) -> 404 | P13: =IF('G2'!$E12="","",'G2'!$E12) -> 59 | R13: 0.146039604 | S13: =IF('G2'!$E13="","",'G2'!$E13) -> 64 | U13: 0.1584158416 | V13: =IF('G2'!$E14="","",'G2'!$E14) -> 97 | X13: 0.2400990099 | Y13: =IF('G2'!$E15="","",'G2'!$E15) -> 31 | AA13: 0.07673267327 | AB13: =IF('G2'!$E16="","",'G2'!$E16) -> 50 | AD13: 0.1237623762 | AE13: =IF('G2'!$E17="","",'G2'!$E17) -> 6 | AG13: 0.01485148515 | AH13: =IF('G2'!$E18="","",'G2'!$E18) -> 97 | AJ13: 0.2400990099
B14: H1 | C14: - | D14: Léonard de Vinci | E14: S | G14: =IF('H1'!$E7="","",'H1'!$E7) -> 1042 | I14: =IF('H1'!$E9="","",'H1'!$E9) -> 574 | K14: 0.5508637236 | L14: =IF('H1'!$E10="","",'H1'!$E10) -> 26 | N14: =IF('H1'!$E11="","",'H1'!$E11) -> 548 | P14: =IF('H1'!$E12="","",'H1'!$E12) -> 29 | R14: 0.05291970803 | S14: =IF('H1'!$E13="","",'H1'!$E13) -> 64 | U14: 0.1167883212 | V14: =IF('H1'!$E14="","",'H1'!$E14) -> 133 | X14: 0.2427007299 | Y14: =IF('H1'!$E15="","",'H1'!$E15) -> 61 | AA14: 0.1113138686 | AB14: =IF('H1'!$E16="","",'H1'!$E16) -> 64 | AD14: 0.1167883212 | AE14: =IF('H1'!$E17="","",'H1'!$E17) -> 15 | AG14: 0.02737226277 | AH14: =IF('H1'!$E18="","",'H1'!$E18) -> 182 | AJ14: 0.3321167883
B15: J1 | C15: - | D15: René Rucklin | E15: S | G15: =IF('J1'!$E7="","",'J1'!$E7) -> 597 | I15: =IF('J1'!$E9="","",'J1'!$E9) -> 266 | K15: 0.445561139 | L15: =IF('J1'!$E10="","",'J1'!$E10) -> 9 | N15: =IF('J1'!$E11="","",'J1'!$E11) -> 257 | P15: =IF('J1'!$E12="","",'J1'!$E12) -> 7 | R15: 0.02723735409 | S15: =IF('J1'!$E13="","",'J1'!$E13) -> 50 | U15: 0.1945525292 | V15: =IF('J1'!$E14="","",'J1'!$E14) -> 63 | X15: 0.2451361868 | Y15: =IF('J1'!$E15="","",'J1'!$E15) -> 28 | AA15: 0.1089494163 | AB15: =IF('J1'!$E16="","",'J1'!$E16) -> 43 | AD15: 0.1673151751 | AE15: =IF('J1'!$E17="","",'J1'!$E17) -> 3 | AG15: 0.01167315175 | AH15: =IF('J1'!$E18="","",'J1'!$E18) -> 63 | AJ15: 0.2451361868
B16: J2 | C16: - | D16: René Rucklin | E16: S | G16: =IF('J2'!$E7="","",'J2'!$E7) -> 818 | I16: =IF('J2'!$E9="","",'J2'!$E9) -> 438 | K16: 0.5354523227 | L16: =IF('J2'!$E10="","",'J2'!$E10) -> 14 | N16: =IF('J2'!$E11="","",'J2'!$E11) -> 424 | P16: =IF('J2'!$E12="","",'J2'!$E12) -> 8 | R16: 0.01886792453 | S16: =IF('J2'!$E13="","",'J2'!$E13) -> 42 | U16: 0.09905660377 | V16: =IF('J2'!$E14="","",'J2'!$E14) -> 102 | X16: 0.2405660377 | Y16: =IF('J2'!$E15="","",'J2'!$E15) -> 43 | AA16: 0.1014150943 | AB16: =IF('J2'!$E16="","",'J2'!$E16) -> 79 | AD16: 0.1863207547 | AE16: =IF('J2'!$E17="","",'J2'!$E17) -> 13 | AG16: 0.03066037736 | AH16: =IF('J2'!$E18="","",'J2'!$E18) -> 137 | AJ16: 0.3231132075
B17: J3 | C17: - | D17: René Rucklin | E17: S | G17: =IF('J3'!$E7="","",'J3'!$E7) -> 562 | I17: =IF('J3'!$E9="","",'J3'!$E9) -> 277 | K17: 0.4928825623 | L17: =IF('J3'!$E10="","",'J3'!$E10) -> 20 | N17: =IF('J3'!$E11="","",'J3'!$E11) -> 257 | P17: =IF('J3'!$E12="","",'J3'!$E12) -> 17 | R17: 0.06614785992 | S17: =IF('J3'!$E13="","",'J3'!$E13) -> 26 | U17: 0.1011673152 | V17: =IF('J3'!$E14="","",'J3'!$E14) -> 88 | X17: 0.3424124514 | Y17: =IF('J3'!$E15="","",'J3'!$E15) -> 35 | AA17: 0.1361867704 | AB17: =IF('J3'!$E16="","",'J3'!$E16) -> 29 | AD17: 0.1128404669 | AE17: =IF('J3'!$E17="","",'J3'!$E17) -> 2 | AG17: 0.007782101167 | AH17: =IF('J3'!$E18="","",'J3'!$E18) -> 60 | AJ17: 0.233463035
B19: Total Canton SUD | G19: =SUM(G$12:G$17) -> 4427 | I19: =SUM(I12:I17) -> 2388 | K19: =IF(I19=""," ",I19/$G19) -> 0.5394172126 | L19: =SUM(L12:L17) -> 102 | N19: =SUM(N12:N17) -> 2286 | P19: =SUM(P12:P17) -> 156 | R19: =IF(P19=0," ",P19/$N19) -> 0.06824146982 | S19: =SUM(S12:S17) -> 300 | U19: =IF(S19=0," ",S19/$N19) -> 0.1312335958 | V19: =SUM(V12:V17) -> 580 | X19: =IF(V19=0," ",V19/$N19) -> 0.2537182852 | Y19: =SUM(Y12:Y17) -> 231 | AA19: =IF(Y19=0," ",Y19/$N19) -> 0.1010498688 | AB19: =SUM(AB12:AB17) -> 333 | AD19: =IF(AB19=0," ",AB19/$N19) -> 0.1456692913 | AE19: =SUM(AE12:AE17) -> 48 | AG19: =IF(AE19=0," ",AE19/$N19) -> 0.02099737533 | AH19: =SUM(AH12:AH17) -> 638 | AJ19: =IF(AH19=0," ",AH19/$N19) -> 0.2790901137
B22: % par rapport aux VOTANTS | L22: =IF(L19=0," ",L19/$I19) -> 0.04271356784 | N22: =IF(N19=0," ",N19/$I19) -> 0.9572864322
B23: % par rapport aux INSCRITS | L23: =IF(L19=0," ",L19/$G19) -> 0.0230404337 | N23: =IF(N19=0," ",N19/$G19) -> 0.5163767789 | P23: =IF(P19=0," ",P19/$G19) -> 0.03523831037 | S23: =IF(S19=0," ",S19/$G19) -> 0.06776598148 | V23: =IF(V19=0," ",V19/$G19) -> 0.1310142309 | Y23: =IF(Y19=0," ",Y19/$G19) -> 0.05217980574 | AB23: =IF(AB19=0," ",AB19/$G19) -> 0.07522023944 | AE23: =IF(AE19=0," ",AE19/$G19) -> 0.01084255704 | AH23: =IF(AH19=0," ",AH19/$G19) -> 0.1441156539

Sheet OUEST
H2: CANTON OUEST
P8: =Candidats!A2 -> Bertrand | S8: =Candidats!A3 -> Marc | V8: =Candidats!A4 -> Étienne | Y8: =Candidats!A5 -> Bastien | AB8: =Candidats!A6 -> Christophe | AE8: =Candidats!A7 -> Jean-Marie | AH8: =Candidats!A8 -> Damien
D9: BUREAUX | G9: Inscrits | I9: Votants | K9: Particip. | L9: Nuls | N9: Exprimés | P9: =Candidats!B2 -> CHEVALIER | R9: % | S9: =Candidats!B3 -> ARCHAMBAULT | U9: % | V9: =Candidats!B4 -> BUTZBACH | X9: % | Y9: =Candidats!B5 -> FAUDOT | AA9: % | AB9: =Candidats!B6 -> GRUDLER | AD9: % | AE9: =Candidats!B7 -> PHEULPIN | AG9: % | AH9: =Candidats!B8 -> MESLOT | AJ9: %
B12: K1 | C12: - | D12: Louis Pergaud | E12: O | G12: =IF('K1'!$E7="","",'K1'!$E7) -> 959 | I12: =IF('K1'!$E9="","",'K1'!$E9) -> 487 | K12: =IF(I12=""," ",I12/$G12) -> 0.5078206465 | L12: =IF('K1'!$E10="","",'K1'!$E10) -> 18 | N12: =IF('K1'!$E11="","",'K1'!$E11) -> 469 | P12: =IF('K1'!$E12="","",'K1'!$E12) -> 11 | R12: =IF(P12=""," ",P12/$N12) -> 0.02345415778 | S12: =IF('K1'!$E13="","",'K1'!$E13) -> 53 | U12: =IF(S12=""," ",S12/$N12) -> 0.1130063966 | V12: =IF('K1'!$E14="","",'K1'!$E14) -> 153 | X12: =IF(V12=""," ",V12/$N12) -> 0.3262260128 | Y12: =IF('K1'!$E15="","",'K1'!$E15) -> 39 | AA12: =IF(Y12=""," ",Y12/$N12) -> 0.08315565032 | AB12: =IF('K1'!$E16="","",'K1'!$E16) -> 30 | AD12: =IF(AB12=""," ",AB12/$N12) -> 0.06396588486 | AE12: =IF('K1'!$E17="","",'K1'!$E17) -> 10 | AG12: =IF(AE12=""," ",AE12/$N12) -> 0.02132196162 | AH12: =IF('K1'!$E18="","",'K1'!$E18) -> 173 | AJ12: =IF(AH12=""," ",AH12/$N12) -> 0.368869936
B13: K2 | C13: - | D13: Louis Pergaud | E13: O | G13: =IF('K2'!$E7="","",'K2'!$E7) -> 789 | I13: =IF('K2'!$E9="","",'K2'!$E9) -> 395 | K13: =IF(I13=""," ",I13/$G13) -> 0.5006337136 | L13: =IF('K2'!$E10="","",'K2'!$E10) -> 12 | N13: =IF('K2'!$E11="","",'K2'!$E11) -> 383 | P13: =IF('K2'!$E12="","",'K2'!$E12) -> 9 | R13: =IF(P13=""," ",P13/$N13) -> 0.02349869452 | S13: =IF('K2'!$E13="","",'K2'!$E13) -> 46 | U13: =IF(S13=""," ",S13/$N13) -> 0.1201044386 | V13: =IF('K2'!$E14="","",'K2'!$E14) -> 128 | X13: =IF(V13=""," ",V13/$N13) -> 0.3342036554 | Y13: =IF('K2'!$E15="","",'K2'!$E15) -> 30 | AA13: =IF(Y13=""," ",Y13/$N13) -> 0.07832898172 | AB13: =IF('K2'!$E16="","",'K2'!$E16) -> 28 | AD13: =IF(AB13=""," ",AB13/$N13) -> 0.07310704961 | AE13: =IF('K2'!$E17="","",'K2'!$E17) -> 9 | AG13: =IF(AE13=""," ",AE13/$N13) -> 0.02349869452 | AH13: =IF('K2'!$E18="","",'K2'!$E18) -> 133 | AJ13: =IF(AH13=""," ",AH13/$N13) -> 0.3472584856
B14: L1 | C14: - | D14: Les Barres - Maternelle | E14: O | G14: =IF('L1'!$E7="","",'L1'!$E7) -> 1336 | I14: =IF('L1'!$E9="","",'L1'!$E9) -> 759 | K14: =IF(I14=""," ",I14/$G14) -> 0.5681137725 | L14: =IF('L1'!$E10="","",'L1'!$E10) -> 19 | N14: =IF('L1'!$E11="","",'L1'!$E11) -> 740 | P14: =IF('L1'!$E12="","",'L1'!$E12) -> 34 | R14: =IF(P14=""," ",P14/$N14) -> 0.04594594595 | S14: =IF('L1'!$E13="","",'L1'!$E13) -> 108 | U14: =IF(S14=""," ",S14/$N14) -> 0.1459459459 | V14: =IF('L1'!$E14="","",'L1'!$E14) -> 143 | X14: =IF(V14=""," ",V14/$N14) -> 0.1932432432 | Y14: =IF('L1'!$E15="","",'L1'!$E15) -> 132 | AA14: =IF(Y14=""," ",Y14/$N14) -> 0.1783783784 | AB14: =IF('L1'!$E16="","",'L1'!$E16) -> 97 | AD14: =IF(AB14=""," ",AB14/$N14) -> 0.1310810811 | AE14: =IF('L1'!$E17="","",'L1'!$E17) -> 16 | AG14: =IF(AE14=""," ",AE14/$N14) -> 0.02162162162 | AH14: =IF('L1'!$E18="","",'L1'!$E18) -> 210 | AJ14: =IF(AH14=""," ",AH14/$N14) -> 0.2837837838
B15: L2 | C15: - | D15: Les Barres - Primaire | E15: O | G15: =IF('L2'!$E7="","",'L2'!$E7) -> 1155 | I15: =IF('L2'!$E9="","",'L2'!$E9) -> 709 | K15: =IF(I15=""," ",I15/$G15) -> 0.6138528139 | L15: =IF('L2'!$E10="","",'L2'!$E10) -> 35 | N15: =IF('L2'!$E11="","",'L2'!$E11) -> 674 | P15: =IF('L2'!$E12="","",'L2'!$E12) -> 47 | R15: =IF(P15=""," ",P15/$N15) -> 0.06973293769 | S15: =IF('L2'!$E13="","",'L2'!$E13) -> 103 | U15: =IF(S15=""," ",S15/$N15) -> 0.1528189911 | V15: =IF('L2'!$E14="","",'L2'!$E14) -> 148 | X15: =IF(V15=""," ",V15/$N15) -> 0.2195845697 | Y15: =IF('L2'!$E15="","",'L2'!$E15) -> 86 | AA15: =IF(Y15=""," ",Y15/$N15) -> 0.1275964392 | AB15: =IF('L2'!$E16="","",'L2'!$E16) -> 102 | AD15: =IF(AB15=""," ",AB15/$N15) -> 0.1513353116 | AE15: =IF('L2'!$E17="","",'L2'!$E17) -> 18 | AG15: =IF(AE15=""," ",AE15/$N15) -> 0.02670623145 | AH15: =IF('L2'!$E18="","",'L2'!$E18) -> 170 | AJ15: =IF(AH15=""," ",AH15/$N15) -> 0.2522255193
B17: Total Canton OUEST | G17: =SUM(G$12:G$15) -> 4239 | I17: =SUM(I12:I15) -> 2350 | K17: =IF(I17=""," ",I17/$G17) -> 0.5543760321 | L17: =SUM(L12:L15) -> 84 | N17: =SUM(N12:N15) -> 2266 | P17: =SUM(P12:P15) -> 101 | R17: =IF(P17=0," ",P17/$N17) -> 0.04457193292 | S17: =SUM(S12:S15) -> 310 | U17: =IF(S17=0," ",S17/$N17) -> 0.1368049426 | V17: =SUM(V12:V15) -> 572 | X17: =IF(V17=0," ",V17/$N17) -> 0.2524271845 | Y17: =SUM(Y12:Y15) -> 287 | AA17: =IF(Y17=0," ",Y17/$N17) -> 0.1266548985 | AB17: =SUM(AB12:AB15) -> 257 | AD17: =IF(AB17=0," ",AB17/$N17) -> 0.1134157105 | AE17: =SUM(AE12:AE15) -> 53 | AG17: =IF(AE17=0," ",AE17/$N17) -> 0.02338923213 | AH17: =SUM(AH12:AH15) -> 686 | AJ17: =IF(AH17=0," ",AH17/$N17) -> 0.3027360989
B20: % par rapport aux VOTANTS | L20: =IF(L17=0," ",L17/$I17) -> 0.03574468085 | N20: =IF(N17=0," ",N17/$I17) -> 0.9642553191
B21: % par rapport aux INSCRITS | L21: =IF(L17=0," ",L17/$G17) -> 0.01981599434 | N21: =IF(N17=0," ",N17/$G17) -> 0.5345600377 | P21: =IF(P17=0," ",P17/$G17) -> 0.02382637414 | S21: =IF(S17=0," ",S17/$G17) -> 0.0731304553 | V21: =IF(V17=0," ",V17/$G17) -> 0.1349374853 | Y21: =IF(Y17=0," ",Y17/$G17) -> 0.06770464732 | AB21: =IF(AB17=0," ",AB17/$G17) -> 0.06062750649 | AE21: =IF(AE17=0," ",AE17/$G17) -> 0.01250294881 | AH21: =IF(AH17=0," ",AH17/$G17) -> 0.1618306204

Sheet RESULTATS
G2: RÉSULTATS du 1er Tour | X2: =COUNTIF($I$12:$I$18,">0")+COUNTIF($I$20:$I$25,">0")+COUNTIF($I$27:$I$31,">0")+COUNTIF($I$33:$I$38,">0")+COUNTIF($I$40:$I$43,">0") -> 28 | AA2: Bureaux sur | AC2: 28
X5: =SUMIF($I$12:$I$18,">0",$E$12:$E$18)+SUMIF($I$20:$I$25,">0",$E$20:$E$25)+SUMIF($I$27:$I$31,">0",$E$27:$E$31)+SUMIF($I$33:$I$38,">0",$E$33:$E$38)+SUMIF($I$40:$I$43,">0",$E$40:$E$43) -> 26948 | AA5: Inscrits sur | AC5: =$E$47 -> 26948 | AE5: soit | AF5: : | AG5: =$X$5/$AC$5 -> 1
S8: % / | U8: =Candidats!A2 -> Bertrand | X8: =Candidats!A3 -> Marc | AA8: =Candidats!A4 -> Étienne | AD8: =Candidats!A5 -> Bastien | AG8: =Candidats!A6 -> Christophe | AJ8: =Candidats!A7 -> Jean-Marie | AM8: =Candidats!A8 -> Damien
D9: BUREAUX | E9: Inscrits | G9: Emargements | I9: Votants | K9: Abstentions | M9: Participation | O9: Nuls | Q9: Exprimés | S9: Inscrits | U9: =Candidats!B2 -> CHEVALIER | W9: % | X9: =Candidats!B3 -> ARCHAMBAULT | Z9: % | AA9: =Candidats!B4 -> BUTZBACH | AC9: % | AD9: =Candidats!B5 -> FAUDOT | AF9: % | AG9: =Candidats!B6 -> GRUDLER | AI9: % | AJ9: =Candidats!B7 -> PHEULPIN | AL9: % | AM9: =Candidats!B8 -> MESLOT | AO9: %
B12: A1 - Hôtel de Ville | E12: =IF('A1'!$E7="","",'A1'!$E7) -> 949 | G12: =IF('A1'!$E8="","",'A1'!$E8) -> 508 | I12: =IF('A1'!$E9="","",'A1'!$E9) -> 508 | K12: =IF(G12<>"",E12-I12,"") -> 441 | M12: =IF(I12=""," ",I12/$E12) -> 0.5353003161 | O12: =IF('A1'!$E10="","",'A1'!$E10) -> 12 | Q12: =IF('A1'!$E11="","",'A1'!$E11) -> 496 | S12: =IF(Q12=""," ",Q12/$E12) -> 0.5226554268 | U12: =IF('A1'!$E12="","",'A1'!$E12) -> 20 | W12: =IF(U12="","",U12/$Q12) -> 0.04032258065 | X12: =IF('A1'!$E13="","",'A1'!$E13) -> 32 | Z12: =IF(X12="","",X12/$Q12) -> 0.06451612903 | AA12: =IF('A1'!$E14="","",'A1'!$E14) -> 104 | AC12: =IF(AA12="","",AA12/$Q12) -> 0.2096774194 | AD12: =IF('A1'!$E15="","",'A1'!$E15) -> 60 | AF12: =IF(AD12="","",AD12/$Q12) -> 0.1209677419 | AG12: =IF('A1'!$E18="","",'A1'!$E16) -> 105 | AI12: =IF(AG12="","",AG12/$Q12) -> 0.2116935484 | AJ12: =IF('A1'!$E18="","",'A1'!$E17) -> 8 | AL12: =IF(AJ12="","",AJ12/$Q12) -> 0.01612903226 | AM12: =IF('A1'!$E18="","",'A1'!$E18) -> 167 | AO12: =IF(AM12="","",AM12/$Q12) -> 0.3366935484
B13: A2 - Salle des fêtes | E13: =IF('A2'!$E7="","",'A2'!$E7) -> 956 | G13: =IF('A2'!$E8="","",'A2'!$E8) -> 610 | I13: =IF('A2'!$E9="","",'A2'!$E9) -> 610 | K13: =IF(G13<>"",E13-I13,"") -> 346 | M13: =IF(I13=""," ",I13/$E13) -> 0.6380753138 | O13: =IF('A2'!$E10="","",'A2'!$E10) -> 18 | Q13: =IF('A2'!$E11="","",'A2'!$E11) -> 592 | S13: =IF(Q13=""," ",Q13/$E13) -> 0.6192468619 | U13: =IF('A2'!$E12="","",'A2'!$E12) -> 29 | W13: 0.04898648649 | X13: =IF('A2'!$E13="","",'A2'!$E13) -> 42 | Z13: 0.07094594595 | AA13: =IF('A2'!$E14="","",'A2'!$E14) -> 107 | AC13: 0.1807432432 | AD13: =IF('A2'!$E15="","",'A2'!$E15) -> 69 | AF13: 0.1165540541 | AG13: =IF('A2'!E16="","",'A2'!E16) -> 105 | AI13: 0.1773648649 | AJ13: =IF('A2'!E17="","",'A2'!E17) -> 7 | AL13: 0.01182432432 | AM13: =IF('A2'!E18="","",'A2'!E18) -> 233 | AO13: 0.3935810811
B14: B1 - Victor Hugo | E14: =IF('B1'!$E7="","",'B1'!$E7) -> 1096 | G14: =IF('B1'!$E8="","",'B1'!$E8) -> 623 | I14: =IF('B1'!$E9="","",'B1'!$E9) -> 622 | K14: =IF(G14<>"",E14-I14,"") -> 474 | M14: 0.5675182482 | O14: =IF('B1'!$E10="","",'B1'!$E10) -> 11 | Q14: =IF('B1'!$E11="","",'B1'!$E11) -> 611 | S14: 0.5574817518 | U14: =IF('B1'!$E12="","",'B1'!$E12) -> 26 | W14: 0.04255319149 | X14: =IF('B1'!$E13="","",'B1'!$E13) -> 46 | Z14: 0.07528641571 | AA14: =IF('B1'!$E14="","",'B1'!$E14) -> 132 | AC14: 0.2160392799 | AD14: =IF('B1'!$E15="","",'B1'!$E15) -> 71 | AF14: 0.116202946 | AG14: =IF('B1'!E16="","",'B1'!E16) -> 115 | AI14: 0.1882160393 | AJ14: =IF('B1'!E17="","",'B1'!E17) -> 9 | AL14: 0.0147299509 | AM14: =IF('B1'!E18="","",'B1'!E18) -> 212 | AO14: 0.3469721768
B15: B2 - Victor Hugo | E15: =IF('B2'!$E7="","",'B2'!$E7) -> 1167 | G15: =IF('B2'!$E8="","",'B2'!$E8) -> 715 | I15: =IF('B2'!$E9="","",'B2'!$E9) -> 715 | K15: 452 | M15: 0.6126820908 | O15: =IF('B2'!$E10="","",'B2'!$E10) -> 15 | Q15: =IF('B2'!$E11="","",'B2'!$E11) -> 700 | S15: 0.5998286204 | U15: =IF('B2'!$E12="","",'B2'!$E12) -> 37 | W15: 0.05285714286 | X15: =IF('B2'!$E13="","",'B2'!$E13) -> 57 | Z15: 0.08142857143 | AA15: =IF('B2'!$E14="","",'B2'!$E14) -> 126 | AC15: 0.18 | AD15: =IF('B2'!$E15="","",'B2'!$E15) -> 87 | AF15: 0.1242857143 | AG15: =IF('B2'!E16="","",'B2'!E16) -> 126 | AI15: 0.18 | AJ15: =IF('B2'!E17="","",'B2'!E17) -> 12 | AL15: 0.01714285714 | AM15: =IF('B2'!E18="","",'B2'!E18) -> 255 | AO15: 0.3642857143
B16: M1 - Saint-Exupéry | E16: =IF('M1'!$E7="","",'M1'!$E7) -> 1306 | G16: =IF('M1'!$E8="","",'M1'!$E8) -> 599 | I16: =IF('M1'!$E9="","",'M1'!$E9) -> 599 | K16: 707 | M16: 0.4586523737 | O16: =IF('M1'!$E10="","",'M1'!$E10) -> 18 | Q16: =IF('M1'!$E11="","",'M1'!$E11) -> 581 | S16: 0.4448698315 | U16: =IF('M1'!$E12="","",'M1'!$E12) -> 23 | W16: 0.0395869191 | X16: =IF('M1'!$E13="","",'M1'!$E13) -> 50 | Z16: 0.08605851979 | AA16: =IF('M1'!$E14="","",'M1'!$E14) -> 215 | AC16: 0.3700516351 | AD16: =IF('M1'!$E15="","",'M1'!$E15) -> 50 | AF16: 0.08605851979 | AG16: =IF('M1'!E16="","",'M1'!E16) -> 112 | AI16: 0.1927710843 | AJ16: =IF('M1'!E17="","",'M1'!E17) -> 8 | AL16: 0.01376936317 | AM16: =IF('M1'!E18="","",'M1'!E18) -> 123 | AO16: 0.2117039587
B17: N1 - Jean Moulin | E17: =IF('N1'!$E7="","",'N1'!$E7) -> 1456 | G17: =IF('N1'!$E8="","",'N1'!$E8) -> 825 | I17: =IF('N1'!$E9="","",'N1'!$E9) -> 825 | K17: 631 | M17: 0.5666208791 | O17: =IF('N1'!$E10="","",'N1'!$E10) -> 17 | Q17: =IF('N1'!$E11="","",'N1'!$E11) -> 808 | S17: 0.5549450549 | U17: =IF('N1'!$E12="","",'N1'!$E12) -> 32 | W17: 0.0396039604 | X17: =IF('N1'!$E13="","",'N1'!$E13) -> 111 | Z17: 0.1373762376 | AA17: =IF('N1'!$E14="","",'N1'!$E14) -> 150 | AC17: 0.1856435644 | AD17: =IF('N1'!$E15="","",'N1'!$E15) -> 78 | AF17: 0.09653465347 | AG17: =IF('N1'!E16="","",'N1'!E16) -> 176 | AI17: 0.2178217822 | AJ17: =IF('N1'!E17="","",'N1'!E17) -> 12 | AL17: 0.01485148515 | AM17: =IF('N1'!E18="","",'N1'!E18) -> 249 | AO17: 0.3081683168
B18: N2 - Cité des Associations | E18: =IF('N2'!$E7="","",'N2'!$E7) -> 905 | G18: =IF('N2'!$E8="","",'N2'!$E8) -> 577 | I18: =IF('N2'!$E9="","",'N2'!$E9) -> 577 | K18: 328 | M18: 0.6375690608 | O18: =IF('N2'!$E10="","",'N2'!$E10) -> 11 | Q18: =IF('N2'!$E11="","",'N2'!$E11) -> 566 | S18: 0.6254143646 | U18: =IF('N2'!$E12="","",'N2'!$E12) -> 25 | W18: 0.04416961131 | X18: =IF('N2'!$E13="","",'N2'!$E13) -> 44 | Z18: 0.0777385159 | AA18: =IF('N2'!$E14="","",'N2'!$E14) -> 113 | AC18: 0.1996466431 | AD18: =IF('N2'!$E15="","",'N2'!$E15) -> 67 | AF18: 0.1183745583 | AG18: =IF('N2'!E16="","",'N2'!E16) -> 167 | AI18: 0.2950530035 | AJ18: =IF('N2'!E17="","",'N2'!E17) -> 5 | AL18: 0.008833922261 | AM18: =IF('N2'!E18="","",'N2'!E18) -> 145 | AO18: 0.2561837456
B19: Canton EST | E19: =SUM(E$12:E$18) -> 7835 | G19: =SUM(G12:G18) -> 4457 | I19: =SUM(I12:I18) -> 4456 | K19: 3379 | M19: 0.5687300574 | O19: =SUM(O12:O18) -> 102 | Q19: =SUM(Q12:Q18) -> 4354 | S19: 0.5557115507 | U19: =SUM(U12:U18) -> 192 | W19: =IF(U19=0,"",U19/$Q19) -> 0.04409738172 | X19: =SUM(X12:X18) -> 382 | Z19: =IF(X19=0,"",X19/$Q19) -> 0.08773541571 | AA19: =SUM(AA12:AA18) -> 947 | AC19: =IF(AA19=0,"",AA19/$Q19) -> 0.2175011484 | AD19: =SUM(AD12:AD18) -> 482 | AF19: =IF(AD19=0,"",AD19/$Q19) -> 0.110702802 | AG19: =SUM(AG12:AG18) -> 906 | AI19: =IF(AG19=0,"",AG19/$Q19) -> 0.20808452 | AJ19: =SUM(AJ12:AJ18) -> 61 | AL19: =IF(AJ19=0,"",AJ19/$Q19) -> 0.01401010565 | AM19: =SUM(AM12:AM18) -> 1384 | AO19: =IF(AM19=0,"",AM19/$Q19) -> 0.3178686266
B20: C1 - Victor Schoelcher | E20: =IF('C1'!$E7="","",'C1'!$E7) -> 1210 | G20: =IF('C1'!$E8="","",'C1'!$E8) -> 719 | I20: =IF('C1'!$E9="","",'C1'!$E9) -> 719 | K20: 491 | M20: 0.594214876 | O20: =IF('C1'!$E10="","",'C1'!$E10) -> 17 | Q20: =IF('C1'!$E11="","",'C1'!$E11) -> 702 | S20: 0.5801652893 | U20: =IF('C1'!$E12="","",'C1'!$E12) -> 24 | W20: =IF(U20="","",U20/$Q20) -> 0.03418803419 | X20: =IF('C1'!$E13="","",'C1'!$E13) -> 65 | Z20: =IF(X20="","",X20/$Q20) -> 0.09259259259 | AA20: =IF('C1'!$E14="","",'C1'!$E14) -> 153 | AC20: =IF(AA20="","",AA20/$Q20) -> 0.2179487179 | AD20: =IF('C1'!$E15="","",'C1'!$E15) -> 89 | AF20: =IF(AD20="","",AD20/$Q20) -> 0.1267806268 | AG20: =IF('C1'!E16="","",'C1'!E16) -> 92 | AI20: =IF(AG20="","",AG20/$Q20) -> 0.1310541311 | AJ20: =IF('C1'!E17="","",'C1'!E17) -> 9 | AL20: =IF(AJ20="","",AJ20/$Q20) -> 0.01282051282 | AM20: =IF('C1'!E18="","",'C1'!E18) -> 270 | AO20: =IF(AM20="","",AM20/$Q20) -> 0.3846153846
B21: C2 - Maison du Peuple | E21: =IF('C2'!$E7="","",'C2'!$E7) -> 763 | G21: =IF('C2'!$E8="","",'C2'!$E8) -> 474 | I21: =IF('C2'!$E9="","",'C2'!$E9) -> 474 | K21: 289 | M21: 0.621231979 | O21: =IF('C2'!$E10="","",'C2'!$E10) -> 11 | Q21: =IF('C2'!$E11="","",'C2'!$E11) -> 463 | S21: 0.6068152031 | U21: =IF('C2'!$E12="","",'C2'!$E12) -> 23 | W21: 0.04967602592 | X21: =IF('C2'!$E13="","",'C2'!$E13) -> 43 | Z21: 0.09287257019 | AA21: =IF('C2'!$E14="","",'C2'!$E14) -> 82 | AC21: 0.1771058315 | AD21: =IF('C2'!$E15="","",'C2'!$E15) -> 54 | AF21: 0.1166306695 | AG21: =IF('C2'!E16="","",'C2'!E16) -> 58 | AI21: 0.1252699784 | AJ21: =IF('C2'!E17="","",'C2'!E17) -> 5 | AL21: 0.01079913607 | AM21: =IF('C2'!E18="","",'C2'!E18) -> 198 | AO21: 0.4276457883
B22: C3 - Maison du Peuple | E22: =IF('C3'!$E7="","",'C3'!$E7) -> 921 | G22: =IF('C3'!$E8="","",'C3'!$E8) -> 564 | I22: =IF('C3'!$E9="","",'C3'!$E9) -> 564 | K22: 357 | M22: 0.6123778502 | O22: =IF('C3'!$E10="","",'C3'!$E10) -> 12 | Q22: =IF('C3'!$E11="","",'C3'!$E11) -> 552 | S22: 0.5993485342 | U22: =IF('C3'!$E12="","",'C3'!$E12) -> 19 | W22: 0.03442028986 | X22: =IF('C3'!$E13="","",'C3'!$E13) -> 48 | Z22: 0.08695652174 | AA22: =IF('C3'!$E14="","",'C3'!$E14) -> 105 | AC22: 0.1902173913 | AD22: =IF('C3'!$E15="","",'C3'!$E15) -> 56 | AF22: 0.1014492754 | AG22: =IF('C3'!E16="","",'C3'!E16) -> 62 | AI22: 0.1123188406 | AJ22: =IF('C3'!E17="","",'C3'!E17) -> 6 | AL22: 0.01086956522 | AM22: =IF('C3'!E18="","",'C3'!E18) -> 256 | AO22: 0.4637681159
B23: D1 - Châteaudun | E23: =IF('D1'!$E7="","",'D1'!$E7) -> 1074 | G23: =IF('D1'!$E8="","",'D1'!$E8) -> 613 | I23: =IF('D1'!$E9="","",'D1'!$E9) -> 613 | K23: 461 | M23: 0.5707635009 | O23: =IF('D1'!$E10="","",'D1'!$E10) -> 17 | Q23: =IF('D1'!$E11="","",'D1'!$E11) -> 596 | S23: 0.5549348231 | U23: =IF('D1'!$E12="","",'D1'!$E12) -> 14 | W23: 0.02348993289 | X23: =IF('D1'!$E13="","",'D1'!$E13) -> 70 | Z23: 0.1174496644 | AA23: =IF('D1'!$E14="","",'D1'!$E14) -> 103 | AC23: 0.1728187919 | AD23: =IF('D1'!$E15="","",'D1'!$E15) -> 51 | AF23: 0.0855704698 | AG23: =IF('D1'!E16="","",'D1'!E16) -> 80 | AI23: 0.1342281879 | AJ23: =IF('D1'!E17="","",'D1'!E17) -> 7 | AL23: 0.01174496644 | AM23: =IF('D1'!E18="","",'D1'!E18) -> 271 | AO23: 0.4546979866
B24: D2 - Châteaudun | E24: =IF('D2'!$E7="","",'D2'!$E7) -> 838 | G24: =IF('D2'!$E8="","",'D2'!$E8) -> 503 | I24: =IF('D2'!$E9="","",'D2'!$E9) -> 503 | K24: 335 | M24: 0.6002386635 | O24: =IF('D2'!$E10="","",'D2'!$E10) -> 22 | Q24: =IF('D2'!$E11="","",'D2'!$E11) -> 481 | S24: 0.5739856802 | U24: =IF('D2'!$E12="","",'D2'!$E12) -> 20 | W24: 0.04158004158 | X24: =IF('D2'!$E13="","",'D2'!$E13) -> 56 | Z24: 0.1164241164 | AA24: =IF('D2'!$E14="","",'D2'!$E14) -> 67 | AC24: 0.1392931393 | AD24: =IF('D2'!$E15="","",'D2'!$E15) -> 56 | AF24: 0.1164241164 | AG24: =IF('D2'!E16="","",'D2'!E16) -> 78 | AI24: 0.1621621622 | AJ24: =IF('D2'!E17="","",'D2'!E17) -> 7 | AL24: 0.01455301455 | AM24: =IF('D2'!E18="","",'D2'!E18) -> 197 | AO24: 0.4095634096
B25: D3 - Châteaudun | E25: =IF('D3'!$E7="","",'D3'!$E7) -> 912 | G25: =IF('D3'!$E8="","",'D3'!$E8) -> 554 | I25: =IF('D3'!$E9="","",'D3'!$E9) -> 554 | K25: 358 | M25: 0.6074561404 | O25: =IF('D3'!$E10="","",'D3'!$E10) -> 18 | Q25: =IF('D3'!$E11="","",'D3'!$E11) -> 536 | S25: 0.5877192982 | U25: =IF('D3'!$E12="","",'D3'!$E12) -> 37 | W25: 0.06902985075 | X25: =IF('D3'!$E13="","",'D3'!$E13) -> 91 | Z25: 0.1697761194 | AA25: =IF('D3'!$E14="","",'D3'!$E14) -> 70 | AC25: 0.1305970149 | AD25: =IF('D3'!$E15="","",'D3'!$E15) -> 47 | AF25: 0.08768656716 | AG25: =IF('D3'!E16="","",'D3'!E16) -> 76 | AI25: 0.1417910448 | AJ25: =IF('D3'!E17="","",'D3'!E17) -> 16 | AL25: 0.02985074627 | AM25: =IF('D3'!E18="","",'D3'!E18) -> 199 | AO25: 0.3712686567
B26: Canton CENTRE | E26: =SUM(E$20:E$25) -> 5718 | G26: =SUM(G20:G25) -> 3427 | I26: =SUM(I20:I25) -> 3427 | K26: 2291 | M26: 0.599335432 | O26: =SUM(O20:O25) -> 97 | Q26: =SUM(Q20:Q25) -> 3330 | S26: 0.5823714586 | U26: =SUM(U20:U25) -> 137 | W26: =IF(U26=0,"",U26/$Q26) -> 0.04114114114 | X26: =SUM(X20:X25) -> 373 | Z26: =IF(X26=0,"",X26/$Q26) -> 0.112012012 | AA26: =SUM(AA20:AA25) -> 580 | AC26: =IF(AA26=0,"",AA26/$Q26) -> 0.1741741742 | AD26: =SUM(AD20:AD25) -> 353 | AF26: =IF(AD26=0,"",AD26/$Q26) -> 0.106006006 | AG26: =SUM(AG20:AG25) -> 446 | AI26: =IF(AG26=0,"",AG26/$Q26) -> 0.1339339339 | AJ26: =SUM(AJ20:AJ25) -> 50 | AL26: =IF(AJ26=0,"",AJ26/$Q26) -> 0.01501501502 | AM26: =SUM(AM20:AM25) -> 1391 | AO26: =IF(AM26=0,"",AM26/$Q26) -> 0.4177177177
B27: E1 - Raymond Aubert | E27: =IF('E1'!E$7="","",'E1'!E$7) -> 1181 | G27: =IF('E1'!$E8="","",'E1'!$E8) -> 668 | I27: =IF('E1'!$E9="","",'E1'!$E9) -> 668 | K27: 513 | M27: 0.5656223539 | O27: =IF('E1'!$E10="","",'E1'!$E10) -> 19 | Q27: =IF('E1'!$E11="","",'E1'!$E11) -> 649 | S27: 0.549534293 | U27: =IF('E1'!$E12="","",'E1'!$E12) -> 23 | W27: =IF(U27="","",U27/$Q27) -> 0.03543913713 | X27: =IF('E1'!$E13="","",'E1'!$E13) -> 96 | Z27: =IF(X27="","",X27/$Q27) -> 0.1479198767 | AA27: =IF('E1'!$E14="","",'E1'!$E14) -> 88 | AC27: =IF(AA27="","",AA27/$Q27) -> 0.1355932203 | AD27: =IF('E1'!$E15="","",'E1'!$E15) -> 88 | AF27: =IF(AD27="","",AD27/$Q27) -> 0.1355932203 | AG27: =IF('E1'!E16="","",'E1'!E16) -> 92 | AI27: =IF(AG27="","",AG27/$Q27) -> 0.1417565485 | AJ27: =IF('E1'!E17="","",'E1'!E17) -> 18 | AL27: =IF(AJ27="","",AJ27/$Q27) -> 0.02773497689 | AM27: =IF('E1'!E18="","",'E1'!E18) -> 244 | AO27: =IF(AM27="","",AM27/$Q27) -> 0.37596302
B28: E2 - Raymond Aubert | E28: =IF('E2'!$E7="","",'E2'!$E7) -> 1212 | G28: =IF('E2'!$E8="","",'E2'!$E8) -> 680 | I28: =IF('E2'!$E9="","",'E2'!$E9) -> 681 | K28: 531 | M28: 0.5618811881 | O28: =IF('E2'!$E10="","",'E2'!$E10) -> 28 | Q28: =IF('E2'!$E11="","",'E2'!$E11) -> 653 | S28: 0.5387788779 | U28: =IF('E2'!$E12="","",'E2'!$E12) -> 18 | W28: =IF(U28="","",U28/$Q28) -> 0.02756508423 | X28: =IF('E2'!$E13="","",'E2'!$E13) -> 115 | Z28: =IF(X28="","",X28/$Q28) -> 0.1761102603 | AA28: =IF('E2'!$E14="","",'E2'!$E14) -> 122 | AC28: =IF(AA28="","",AA28/$Q28) -> 0.1868300153 | AD28: =IF('E2'!$E15="","",'E2'!$E15) -> 51 | AF28: =IF(AD28="","",AD28/$Q28) -> 0.07810107198 | AG28: =IF('E2'!E16="","",'E2'!E16) -> 92 | AI28: =IF(AG28="","",AG28/$Q28) -> 0.1408882083 | AJ28: =IF('E2'!E17="","",'E2'!E17) -> 14 | AL28: =IF(AJ28="","",AJ28/$Q28) -> 0.02143950995 | AM28: =IF('E2'!E18="","",'E2'!E18) -> 241 | AO28: =IF(AM28="","",AM28/$Q28) -> 0.3690658499
B29: E3 - Raymond Aubert | E29: =IF('E3'!$E7="","",'E3'!$E7) -> 1038 | G29: =IF('E3'!$E8="","",'E3'!$E8) -> 564 | I29: =IF('E3'!$E9="","",'E3'!$E9) -> 564 | K29: 474 | M29: 0.5433526012 | O29: =IF('E3'!$E10="","",'E3'!$E10) -> 24 | Q29: =IF('E3'!$E11="","",'E3'!$E11) -> 540 | S29: 0.5202312139 | U29: =IF('E3'!$E12="","",'E3'!$E12) -> 21 | W29: =IF(U29="","",U29/$Q29) -> 0.03888888889 | X29: =IF('E3'!$E13="","",'E3'!$E13) -> 94 | Z29: =IF(X29="","",X29/$Q29) -> 0.1740740741 | AA29: =IF('E3'!$E14="","",'E3'!$E14) -> 121 | AC29: =IF(AA29="","",AA29/$Q29) -> 0.2240740741 | AD29: =IF('E3'!$E15="","",'E3'!$E15) -> 60 | AF29: =IF(AD29="","",AD29/$Q29) -> 0.1111111111 | AG29: =IF('E3'!E16="","",'E3'!E16) -> 61 | AI29: =IF(AG29="","",AG29/$Q29) -> 0.112962963 | AJ29: =IF('E3'!E17="","",'E3'!E17) -> 16 | AL29: =IF(AJ29="","",AJ29/$Q29) -> 0.02962962963 | AM29: =IF('E3'!E18="","",'E3'!E18) -> 167 | AO29: =IF(AM29="","",AM29/$Q29) -> 0.3092592593
B30: F1 - Maison de l'enfant | E30: =IF('F1'!$E7="","",'F1'!$E7) -> 776 | G30: =IF('F1'!$E8="","",'F1'!$E8) -> 459 | I30: =IF('F1'!$E9="","",'F1'!$E9) -> 459 | K30: 317 | M30: 0.5914948454 | O30: =IF('F1'!$E10="","",'F1'!$E10) -> 18 | Q30: =IF('F1'!$E11="","",'F1'!$E11) -> 441 | S30: 0.5682989691 | U30: =IF('F1'!$E12="","",'F1'!$E12) -> 29 | W30: =IF(U30="","",U30/$Q30) -> 0.06575963719 | X30: =IF('F1'!$E13="","",'F1'!$E13) -> 57 | Z30: =IF(X30="","",X30/$Q30) -> 0.1292517007 | AA30: =IF('F1'!$E14="","",'F1'!$E14) -> 106 | AC30: =IF(AA30="","",AA30/$Q30) -> 0.2403628118 | AD30: =IF('F1'!$E15="","",'F1'!$E15) -> 31 | AF30: =IF(AD30="","",AD30/$Q30) -> 0.07029478458 | AG30: =IF('F1'!E16="","",'F1'!E16) -> 94 | AI30: =IF(AG30="","",AG30/$Q30) -> 0.2131519274 | AJ30: =IF('F1'!E17="","",'F1'!E17) -> 9 | AL30: =IF(AJ30="","",AJ30/$Q30) -> 0.02040816327 | AM30: =IF('F1'!E18="","",'F1'!E18) -> 115 | AO30: =IF(AM30="","",AM30/$Q30) -> 0.2607709751
B31: F2 - Émile Géhant | E31: =IF('F2'!$E7="","",'F2'!$E7) -> 522 | G31: =IF('F2'!$E8="","",'F2'!$E8) -> 299 | I31: =IF('F2'!$E9="","",'F2'!$E9) -> 299 | K31: 223 | M31: 0.5727969349 | O31: =IF('F2'!$E10="","",'F2'!$E10) -> 13 | Q31: =IF('F2'!$E11="","",'F2'!$E11) -> 286 | S31: 0.5478927203 | U31: =IF('F2'!$E12="","",'F2'!$E12) -> 27 | W31: =IF(U31="","",U31/$Q31) -> 0.09440559441 | X31: =IF('F2'!$E13="","",'F2'!$E13) -> 53 | Z31: =IF(X31="","",X31/$Q31) -> 0.1853146853 | AA31: =IF('F2'!$E14="","",'F2'!$E14) -> 49 | AC31: =IF(AA31="","",AA31/$Q31) -> 0.1713286713 | AD31: =IF('F2'!$E15="","",'F2'!$E15) -> 34 | AF31: =IF(AD31="","",AD31/$Q31) -> 0.1188811189 | AG31: =IF('F2'!E16="","",'F2'!E16) -> 40 | AI31: =IF(AG31="","",AG31/$Q31) -> 0.1398601399 | AJ31: =IF('F2'!E17="","",'F2'!E17) -> 24 | AL31: =IF(AJ31="","",AJ31/$Q31) -> 0.08391608392 | AM31: =IF('F2'!E18="","",'F2'!E18) -> 59 | AO31: =IF(AM31="","",AM31/$Q31) -> 0.2062937063
B32: Canton NORD | E32: =SUM(E$27:E$31) -> 4729 | G32: =SUM(G27:G31) -> 2670 | I32: =SUM(I27:I31) -> 2671 | K32: 2058 | M32: 0.5648128568 | O32: =SUM(O27:O31) -> 102 | Q32: =SUM(Q27:Q31) -> 2569 | S32: 0.5432438148 | U32: =SUM(U27:U31) -> 118 | W32: =IF(U32=0,"",U32/$Q32) -> 0.04593226937 | X32: =SUM(X27:X31) -> 415 | Z32: =IF(X32=0,"",X32/$Q32) -> 0.1615414558 | AA32: =SUM(AA27:AA31) -> 486 | AC32: =IF(AA32=0,"",AA32/$Q32) -> 0.1891786687 | AD32: =SUM(AD27:AD31) -> 264 | AF32: =IF(AD32=0,"",AD32/$Q32) -> 0.1027637213 | AG32: =SUM(AG27:AG31) -> 379 | AI32: =IF(AG32=0,"",AG32/$Q32) -> 0.1475282211 | AJ32: =SUM(AJ27:AJ31) -> 81 | AL32: =IF(AJ32=0,"",AJ32/$Q32) -> 0.03152977812 | AM32: =SUM(AM27:AM31) -> 826 | AO32: =IF(AM32=0,"",AM32/$Q32) -> 0.3215258856
B33: G1 - Hubert Metzger | E33: =IF('G1'!$E7="","",'G1'!$E7) -> 653 | G33: =IF('G1'!$E8="","",'G1'!$E8) -> 414 | I33: =IF('G1'!$E9="","",'G1'!$E9) -> 414 | K33: 239 | M33: 0.6339969372 | O33: =IF('G1'!$E10="","",'G1'!$E10) -> 18 | Q33: =IF('G1'!$E11="","",'G1'!$E11) -> 396 | S33: 0.606431853 | U33: =IF('G1'!$E12="","",'G1'!$E12) -> 36 | W33: =IF(U33="","",U33/$Q33) -> 0.09090909091 | X33: =IF('G1'!$E13="","",'G1'!$E13) -> 54 | Z33: =IF(X33="","",X33/$Q33) -> 0.1363636364 | AA33: =IF('G1'!$E14="","",'G1'!$E14) -> 97 | AC33: =IF(AA33="","",AA33/$Q33) -> 0.2449494949 | AD33: =IF('G1'!$E15="","",'G1'!$E15) -> 33 | AF33: =IF(AD33="","",AD33/$Q33) -> 0.08333333333 | AG33: =IF('G1'!E16="","",'G1'!E16) -> 68 | AI33: =IF(AG33="","",AG33/$Q33) -> 0.1717171717 | AJ33: =IF('G1'!E17="","",'G1'!E17) -> 9 | AL33: =IF(AJ33="","",AJ33/$Q33) -> 0.02272727273 | AM33: =IF('G1'!E18="","",'G1'!E18) -> 99 | AO33: =IF(AM33="","",AM33/$Q33) -> 0.25
B34: G2 - Hubert Metzger | E34: =IF('G2'!$E7="","",'G2'!$E7) -> 755 | G34: =IF('G2'!$E8="","",'G2'!$E8) -> 419 | I34: =IF('G2'!$E9="","",'G2'!$E9) -> 419 | K34: 336 | M34: 0.5549668874 | O34: =IF('G2'!$E10="","",'G2'!$E10) -> 15 | Q34: =IF('G2'!$E11="","",'G2'!$E11) -> 404 | S34: 0.5350993377 | U34: =IF('G2'!$E12="","",'G2'!$E12) -> 59 | W34: 0.146039604 | X34: =IF('G2'!$E13="","",'G2'!$E13) -> 64 | Z34: 0.1584158416 | AA34: =IF('G2'!$E14="","",'G2'!$E14) -> 97 | AC34: 0.2400990099 | AD34: =IF('G2'!$E15="","",'G2'!$E15) -> 31 | AF34: 0.07673267327 | AG34: =IF('G2'!E16="","",'G2'!E16) -> 50 | AI34: 0.1237623762 | AJ34: =IF('G2'!E17="","",'G2'!E17) -> 6 | AL34: 0.01485148515 | AM34: =IF('G2'!E18="","",'G2'!E18) -> 97 | AO34: 0.2400990099
B35: H1 - Léonard de Vinci | E35: =IF('H1'!$E7="","",'H1'!$E7) -> 1042 | G35: =IF('H1'!$E8="","",'H1'!$E8) -> 574 | I35: =IF('H1'!$E9="","",'H1'!$E9) -> 574 | K35: 468 | M35: 0.5508637236 | O35: =IF('H1'!$E10="","",'H1'!$E10) -> 26 | Q35: =IF('H1'!$E11="","",'H1'!$E11) -> 548 | S35: 0.5259117083 | U35: =IF('H1'!$E12="","",'H1'!$E12) -> 29 | W35: 0.05291970803 | X35: =IF('H1'!$E13="","",'H1'!$E13) -> 64 | Z35: 0.1167883212 | AA35: =IF('H1'!$E14="","",'H1'!$E14) -> 133 | AC35: 0.2427007299 | AD35: =IF('H1'!$E15="","",'H1'!$E15) -> 61 | AF35: 0.1113138686 | AG35: =IF('H1'!E16="","",'H1'!E16) -> 64 | AI35: 0.1167883212 | AJ35: =IF('H1'!E17="","",'H1'!E17) -> 15 | AL35: 0.02737226277 | AM35: =IF('H1'!E18="","",'H1'!E18) -> 182 | AO35: 0.3321167883
B36: J1 - René Rucklin | E36: =IF('J1'!$E7="","",'J1'!$E7) -> 597 | G36: =IF('J1'!$E8="","",'J1'!$E8) -> 266 | I36: =IF('J1'!$E9="","",'J1'!$E9) -> 266 | K36: 331 | M36: 0.445561139 | O36: =IF('J1'!$E10="","",'J1'!$E10) -> 9 | Q36: =IF('J1'!$E11="","",'J1'!$E11) -> 257 | S36: 0.4304857621 | U36: =IF('J1'!$E12="","",'J1'!$E12) -> 7 | W36: 0.02723735409 | X36: =IF('J1'!$E13="","",'J1'!$E13) -> 50 | Z36: 0.1945525292 | AA36: =IF('J1'!$E14="","",'J1'!$E14) -> 63 | AC36: 0.2451361868 | AD36: =IF('J1'!$E15="","",'J1'!$E15) -> 28 | AF36: 0.1089494163 | AG36: =IF('J1'!E16="","",'J1'!E16) -> 43 | AI36: 0.1673151751 | AJ36: =IF('J1'!E17="","",'J1'!E17) -> 3 | AL36: 0.01167315175 | AM36: =IF('J1'!E18="","",'J1'!E18) -> 63 | AO36: 0.2451361868
B37: J2 - René Rucklin | E37: =IF('J2'!$E7="","",'J2'!$E7) -> 818 | G37: =IF('J2'!$E8="","",'J2'!$E8) -> 438 | I37: =IF('J2'!$E9="","",'J2'!$E9) -> 438 | K37: 380 | M37: 0.5354523227 | O37: =IF('J2'!$E10="","",'J2'!$E10) -> 14 | Q37: =IF('J2'!$E11="","",'J2'!$E11) -> 424 | S37: 0.5183374083 | U37: =IF('J2'!$E12="","",'J2'!$E12) -> 8 | W37: 0.01886792453 | X37: =IF('J2'!$E13="","",'J2'!$E13) -> 42 | Z37: 0.09905660377 | AA37: =IF('J2'!$E14="","",'J2'!$E14) -> 102 | AC37: 0.2405660377 | AD37: =IF('J2'!$E15="","",'J2'!$E15) -> 43 | AF37: 0.1014150943 | AG37: =IF('J2'!E16="","",'J2'!E16) -> 79 | AI37: 0.1863207547 | AJ37: =IF('J2'!E17="","",'J2'!E17) -> 13 | AL37: 0.03066037736 | AM37: =IF('J2'!E18="","",'J2'!E18) -> 137 | AO37: 0.3231132075
B38: J3 - René Rucklin | E38: =IF('J3'!$E7="","",'J3'!$E7) -> 562 | G38: =IF('J3'!$E8="","",'J3'!$E8) -> 277 | I38: =IF('J3'!$E9="","",'J3'!$E9) -> 277 | K38: 285 | M38: 0.4928825623 | O38: =IF('J3'!$E10="","",'J3'!$E10) -> 20 | Q38: =IF('J3'!$E11="","",'J3'!$E11) -> 257 | S38: 0.4572953737 | U38: =IF('J3'!$E12="","",'J3'!$E12) -> 17 | W38: 0.06614785992 | X38: =IF('J3'!$E13="","",'J3'!$E13) -> 26 | Z38: 0.1011673152 | AA38: =IF('J3'!$E14="","",'J3'!$E14) -> 88 | AC38: 0.3424124514 | AD38: =IF('J3'!$E15="","",'J3'!$E15) -> 35 | AF38: 0.1361867704 | AG38: =IF('J3'!E16="","",'J3'!E16) -> 29 | AI38: 0.1128404669 | AJ38: =IF('J3'!E17="","",'J3'!E17) -> 2 | AL38: 0.007782101167 | AM38: =IF('J3'!E18="","",'J3'!E18) -> 60 | AO38: 0.233463035
B39: Canton SUD | E39: =SUM(E$33:E$38) -> 4427 | G39: =SUM(G33:G38) -> 2388 | I39: =SUM(I33:I38) -> 2388 | K39: 2039 | M39: 0.5394172126 | O39: =SUM(O33:O38) -> 102 | Q39: =SUM(Q33:Q38) -> 2286 | S39: 0.5163767789 | U39: =SUM(U33:U38) -> 156 | W39: =IF(U39=0,"",U39/$Q39) -> 0.06824146982 | X39: =SUM(X33:X38) -> 300 | Z39: =IF(X39=0,"",X39/$Q39) -> 0.1312335958 | AA39: =SUM(AA33:AA38) -> 580 | AC39: =IF(AA39=0,"",AA39/$Q39) -> 0.2537182852 | AD39: =SUM(AD33:AD38) -> 231 | AF39: =IF(AD39=0,"",AD39/$Q39) -> 0.1010498688 | AG39: =SUM(AG33:AG38) -> 333 | AI39: =IF(AG39=0,"",AG39/$Q39) -> 0.1456692913 | AJ39: =SUM(AJ33:AJ38) -> 48 | AL39: =IF(AJ39=0,"",AJ39/$Q39) -> 0.02099737533 | AM39: =SUM(AM33:AM38) -> 638 | AO39: =IF(AM39=0,"",AM39/$Q39) -> 0.2790901137
B40: K1 - Louis Pergaud | E40: =IF('K1'!$E7="","",'K1'!$E7) -> 959 | G40: =IF('K1'!$E8="","",'K1'!$E8) -> 487 | I40: =IF('K1'!$E9="","",'K1'!$E9) -> 487 | K40: 472 | M40: 0.5078206465 | O40: =IF('K1'!$E10="","",'K1'!$E10) -> 18 | Q40: =IF('K1'!$E11="","",'K1'!$E11) -> 469 | S40: 0.4890510949 | U40: =IF('K1'!$E12="","",'K1'!$E12) -> 11 | W40: =IF(U40="","",U40/$Q40) -> 0.02345415778 | X40: =IF('K1'!$E13="","",'K1'!$E13) -> 53 | Z40: =IF(X40="","",X40/$Q40) -> 0.1130063966 | AA40: =IF('K1'!$E14="","",'K1'!$E14) -> 153 | AC40: =IF(AA40="","",AA40/$Q40) -> 0.3262260128 | AD40: =IF('K1'!$E15="","",'K1'!$E15) -> 39 | AF40: =IF(AD40="","",AD40/$Q40) -> 0.08315565032 | AG40: =IF('K1'!E16="","",'K1'!E16) -> 30 | AI40: =IF(AG40="","",AG40/$Q40) -> 0.06396588486 | AJ40: =IF('K1'!E17="","",'K1'!E17) -> 10 | AL40: =IF(AJ40="","",AJ40/$Q40) -> 0.02132196162 | AM40: =IF('K1'!E18="","",'K1'!E18) -> 173 | AO40: =IF(AM40="","",AM40/$Q40) -> 0.368869936
B41: K2 - Louis Pergaud | E41: =IF('K2'!$E7="","",'K2'!$E7) -> 789 | G41: =IF('K2'!$E8="","",'K2'!$E8) -> 395 | I41: =IF('K2'!$E9="","",'K2'!$E9) -> 395 | K41: 394 | M41: 0.5006337136 | O41: =IF('K2'!$E10="","",'K2'!$E10) -> 12 | Q41: =IF('K2'!$E11="","",'K2'!$E11) -> 383 | S41: 0.4854245881 | U41: =IF('K2'!$E12="","",'K2'!$E12) -> 9 | W41: =IF(U41="","",U41/$Q41) -> 0.02349869452 | X41: =IF('K2'!$E13="","",'K2'!$E13) -> 46 | Z41: =IF(X41="","",X41/$Q41) -> 0.1201044386 | AA41: =IF('K2'!$E14="","",'K2'!$E14) -> 128 | AC41: =IF(AA41="","",AA41/$Q41) -> 0.3342036554 | AD41: =IF('K2'!$E15="","",'K2'!$E15) -> 30 | AF41: =IF(AD41="","",AD41/$Q41) -> 0.07832898172 | AG41: =IF('K2'!E16="","",'K2'!E16) -> 28 | AI41: =IF(AG41="","",AG41/$Q41) -> 0.07310704961 | AJ41: =IF('K2'!E17="","",'K2'!E17) -> 9 | AL41: =IF(AJ41="","",AJ41/$Q41) -> 0.02349869452 | AM41: =IF('K2'!E18="","",'K2'!E18) -> 133 | AO41: =IF(AM41="","",AM41/$Q41) -> 0.3472584856
B42: L1 - Les Barres | E42: =IF('L1'!$E7="","",'L1'!$E7) -> 1336 | G42: =IF('L1'!$E8="","",'L1'!$E8) -> 759 | I42: =IF('L1'!$E9="","",'L1'!$E9) -> 759 | K42: 577 | M42: 0.5681137725 | O42: =IF('L1'!$E10="","",'L1'!$E10) -> 19 | Q42: =IF('L1'!$E11="","",'L1'!$E11) -> 740 | S42: 0.5538922156 | U42: =IF('L1'!$E12="","",'L1'!$E12) -> 34 | W42: =IF(U42="","",U42/$Q42) -> 0.04594594595 | X42: =IF('L1'!$E13="","",'L1'!$E13) -> 108 | Z42: =IF(X42="","",X42/$Q42) -> 0.1459459459 | AA42: =IF('L1'!$E14="","",'L1'!$E14) -> 143 | AC42: =IF(AA42="","",AA42/$Q42) -> 0.1932432432 | AD42: =IF('L1'!$E15="","",'L1'!$E15) -> 132 | AF42: =IF(AD42="","",AD42/$Q42) -> 0.1783783784 | AG42: =IF('L1'!E16="","",'L1'!E16) -> 97 | AI42: =IF(AG42="","",AG42/$Q42) -> 0.1310810811 | AJ42: =IF('L1'!E17="","",'L1'!E17) -> 16 | AL42: =IF(AJ42="","",AJ42/$Q42) -> 0.02162162162 | AM42: =IF('L1'!E18="","",'L1'!E18) -> 210 | AO42: =IF(AM42="","",AM42/$Q42) -> 0.2837837838
B43: L2 - Les Barres | E43: =IF('L2'!$E7="","",'L2'!$E7) -> 1155 | G43: =IF('L2'!$E8="","",'L2'!$E8) -> 709 | I43: =IF('L2'!$E9="","",'L2'!$E9) -> 709 | K43: 446 | M43: 0.6138528139 | O43: =IF('L2'!$E10="","",'L2'!$E10) -> 35 | Q43: =IF('L2'!$E11="","",'L2'!$E11) -> 674 | S43: 0.5835497835 | U43: =IF('L2'!$E12="","",'L2'!$E12) -> 47 | W43: =IF(U43="","",U43/$Q43) -> 0.06973293769 | X43: =IF('L2'!$E13="","",'L2'!$E13) -> 103 | Z43: =IF(X43="","",X43/$Q43) -> 0.1528189911 | AA43: =IF('L2'!$E14="","",'L2'!$E14) -> 148 | AC43: =IF(AA43="","",AA43/$Q43) -> 0.2195845697 | AD43: =IF('L2'!$E15="","",'L2'!$E15) -> 86 | AF43: =IF(AD43="","",AD43/$Q43) -> 0.1275964392 | AG43: =IF('L2'!E16="","",'L2'!E16) -> 102 | AI43: =IF(AG43="","",AG43/$Q43) -> 0.1513353116 | AJ43: =IF('L2'!E17="","",'L2'!E17) -> 18 | AL43: =IF(AJ43="","",AJ43/$Q43) -> 0.02670623145 | AM43: =IF('L2'!E18="","",'L2'!E18) -> 170 | AO43: =IF(AM43="","",AM43/$Q43) -> 0.2522255193
B44: Canton OUEST | E44: =SUM(E$40:E$43) -> 4239 | G44: =SUM(G40:G43) -> 2350 | I44: =SUM(I40:I43) -> 2350 | K44: 1889 | M44: 0.5543760321 | O44: =SUM(O40:O43) -> 84 | Q44: =SUM(Q40:Q43) -> 2266 | S44: 0.5345600377 | U44: =SUM(U40:U43) -> 101 | W44: =IF(U44=0,"",U44/$Q44) -> 0.04457193292 | X44: =SUM(X40:X43) -> 310 | Z44: =IF(X44=0,"",X44/$Q44) -> 0.1368049426 | AA44: =SUM(AA40:AA43) -> 572 | AC44: =IF(AA44=0,"",AA44/$Q44) -> 0.2524271845 | AD44: =SUM(AD40:AD43) -> 287 | AF44: =IF(AD44=0,"",AD44/$Q44) -> 0.1266548985 | AG44: =SUM(AG40:AG43) -> 257 | AI44: =IF(AG44=0,"",AG44/$Q44) -> 0.1134157105 | AJ44: =SUM(AJ40:AJ43) -> 53 | AL44: =IF(AJ44=0,"",AJ44/$Q44) -> 0.02338923213 | AM44: =SUM(AM40:AM43) -> 686 | AO44: =IF(AM44=0,"",AM44/$Q44) -> 0.3027360989
B47: TOTAUX | E47: =E$19+E$26+E$32+E$39+E$44 -> 26948 | G47: =G$19+G$26+G$32+G$39+G$44 -> 15292 | I47: =I$19+I$26+I$32+I$39+I$44 -> 15292 | K47: =K$19+K$26+K$32+K$39+K$44 -> 11656 | M47: =IF(I47=""," ",I47/$E47) -> 0.5674632626 | O47: =O$19+O$26+O$32+O$39+O$44 -> 487 | Q47: =Q$19+Q$26+Q$32+Q$39+Q$44 -> 14805 | U47: =U$19+U$26+U$32+U$39+U$44 -> 704 | W47: =IF(U47=0,"",U47/$Q47) -> 0.04755150287 | X47: =X$19+X$26+X$32+X$39+X$44 -> 1780 | Z47: =IF(X47=0,"",X47/$Q47) -> 0.1202296521 | AA47: =AA$19+AA$26+AA$32+AA$39+AA$44 -> 3165 | AC47: =IF(AA47=0,"",AA47/$Q47) -> 0.2137791287 | AD47: =AD$19+AD$26+AD$32+AD$39+AD$44 -> 1617 | AF47: =IF(AD47=0,"",AD47/$Q47) -> 0.1092198582 | AG47: =AG$19+AG$26+AG$32+AG$39+AG$44 -> 2321 | AI47: =IF(AG47=0,"",AG47/$Q47) -> 0.156771361 | AJ47: =AJ$19+AJ$26+AJ$32+AJ$39+AJ$44 -> 293 | AL47: =IF(AJ47=0,"",AJ47/$Q47) -> 0.01979061128 | AM47: =AM$19+AM$26+AM$32+AM$39+AM$44 -> 4925 | AO47: =IF(AM47=0,"",AM47/$Q47) -> 0.3326578858
B49: % / Inscrits | O49: =IF(I47=0,0,O47/E47) -> 0.01807184207 | Q49: =IF(I47=0,0,Q47/E47) -> 0.5493914205 | U49: =IF(Q47=0,0,U47/E47) -> 0.02612438771 | X49: =IF(Q47=0,0,X47/E47) -> 0.06605313938 | AA49: =IF(Q47=0,0,AA47/E47) -> 0.1174484192 | AD49: =IF(Q47=0,0,AD47/E47) -> 0.06000445302 | AG49: =IF($Q$47=0,0,AG47/E47) -> 0.08612884073 | AJ49: =IF($Q$47=0,0,AJ47/E47) -> 0.01087279204 | AM49: =IF($Q$47=0,0,AM47/E47) -> 0.1827593885
A50: =IF(OR(('REPART VdB 1T'!C16>='REPART VdB 1T'!$P$5),('REPART VdB 1T'!$E$16>='REPART VdB 1T'!$P$5),('REPART VdB 1T'!$G$16>='REPART VdB 1T'!$P$5),('REPART VdB 1T'!$I$16>='REPART VdB 1T'!$P$5),('REPART VdB 1T'!$O$16>='REPART VdB 1T'!$P$5)),"","Second tour") -> Second tour | U50: =IF('REPART VdB 1T'!$C16=0,"",IF(AND('REPART VdB 1T'!$C16>='REPART VdB 1T'!$P5,'REPART VdB 1T'!$C16>='REPART VdB 1T'!$P6),"ELU",IF('REPART VdB 1T'!$P10="Non",IF('REPART VdB 1T'!$C16>='REPART VdB 1T'!$P7,"Maintien possible",IF('REPART VdB 1T'!$C16>='REPART VdB 1T'!$P8,"Fusion possible","")),""))) ->  | X50: =IF('REPART VdB 1T'!$E16=0,"",IF(AND('REPART VdB 1T'!$E16>='REPART VdB 1T'!$P5,'REPART VdB 1T'!$E16>='REPART VdB 1T'!$P6),"ELU",IF('REPART VdB 1T'!$P10="Non",IF('REPART VdB 1T'!$E16>='REPART VdB 1T'!$P7,"Maintien possible",IF('REPART VdB 1T'!$E16>='REPART VdB 1T'!$P8,"Fusion possible","")),""))) -> Maintien possible | AA50: =IF('REPART VdB 1T'!$G16=0,"",IF(AND('REPART VdB 1T'!$G16>='REPART VdB 1T'!$P5,'REPART VdB 1T'!$G16>='REPART VdB 1T'!$P6),"ELU",IF('REPART VdB 1T'!$P10="Non",IF('REPART VdB 1T'!$G16>='REPART VdB 1T'!$P7,"Maintien possible",IF('REPART VdB 1T'!$G16>='REPART VdB 1T'!$P8,"Fusion possible","")),""))) -> Maintien possible | AD50: =IF('REPART VdB 1T'!$I16=0,"",IF(AND('REPART VdB 1T'!$I16>='REPART VdB 1T'!$P5,'REPART VdB 1T'!$I16>='REPART VdB 1T'!$P6),"ELU",IF('REPART VdB 1T'!$P10="Non",IF('REPART VdB 1T'!$I16>='REPART VdB 1T'!$P7,"Maintien possible",IF('REPART VdB 1T'!$I16>='REPART VdB 1T'!$P8,"Fusion possible","")),""))) -> Maintien possible | AG50: =IF('REPART VdB 1T'!$K16=0,"",IF(AND('REPART VdB 1T'!$K16>='REPART VdB 1T'!$P5,'REPART VdB 1T'!$K16>='REPART VdB 1T'!$P6),"ELU",IF('REPART VdB 1T'!$P10="Non",IF('REPART VdB 1T'!$K16>='REPART VdB 1T'!$P7,"Maintien possible",IF('REPART VdB 1T'!$K16>='REPART VdB 1T'!$P8,"Fusion possible","")),""))) -> Maintien possible | AJ50: =IF('REPART VdB 1T'!$M16=0,"",IF(AND('REPART VdB 1T'!$M16>='REPART VdB 1T'!$P5,'REPART VdB 1T'!$M16>='REPART VdB 1T'!$P6),"ELU",IF('REPART VdB 1T'!$P10="Non",IF('REPART VdB 1T'!$M16>='REPART VdB 1T'!$P7,"Maintien possible",IF('REPART VdB 1T'!$M16>='REPART VdB 1T'!$P8,"Fusion possible","")),""))) ->  | AM50: =IF('REPART VdB 1T'!$O16=0,"",IF(AND('REPART VdB 1T'!$O16>='REPART VdB 1T'!$P5,'REPART VdB 1T'!$O16>='REPART VdB 1T'!$P6),"ELU",IF('REPART VdB 1T'!$P10="Non",IF('REPART VdB 1T'!$O16>='REPART VdB 1T'!$P7,"Maintien possible",IF('REPART VdB 1T'!$O16>='REPART VdB 1T'!$P8,"Fusion possible","")),""))) -> Maintien possible

Sheet RECENS 1T
G3: R E C E N S E M E N T par B U R E A U
R8: =Candidats!A2 -> Bertrand | T8: =Candidats!A3 -> Marc | V8: =Candidats!A4 -> Étienne | X8: =Candidats!A5 -> Bastien | Z8: =Candidats!A6 -> Christophe | AB8: =Candidats!A7 -> Jean-Marie | AD8: =Candidats!A8 -> Damien
D9: BUREAUX | F9: Inscrits | H9: Émargements | J9: Abstentions | L9: Votants | N9: Nuls | P9: Exprimés | R9: =Candidats!B2 -> CHEVALIER | T9: =Candidats!B3 -> ARCHAMBAULT | V9: =Candidats!B4 -> BUTZBACH | X9: =Candidats!B5 -> FAUDOT | Z9: =Candidats!B6 -> GRUDLER | AB9: =Candidats!B7 -> PHEULPIN | AD9: =Candidats!B8 -> MESLOT
D10: 1 | F10: 2 | H10: 3 | J10: 4 | L10: 5 | N10: 6 | P10: 7 | R10: 8 | T10: 9 | V10: 10 | X10: 11 | Z10: 12 | AB10: 13 | AD10: 14
A13: A | B13: 01 | C13: - | D13: Hôtel de Ville | E13: E | F13: =RESULTATS!E12 -> 949 | H13: =RESULTATS!G12 -> 508 | J13: =RESULTATS!K12 -> 441 | L13: =RESULTATS!I12 -> 508 | N13: =RESULTATS!O12 -> 12 | P13: =RESULTATS!Q12 -> 496 | R13: =RESULTATS!U12 -> 20 | T13: =RESULTATS!X12 -> 32 | V13: =RESULTATS!AA12 -> 104 | X13: =RESULTATS!AD12 -> 60 | Z13: =RESULTATS!AG12 -> 105 | AB13: =RESULTATS!AJ12 -> 8 | AD13: =RESULTATS!AM12 -> 167
A14: A | B14: 02 | C14: - | D14: Salle des fêtes | E14: E | F14: =RESULTATS!E13 -> 956 | H14: =RESULTATS!G13 -> 610 | J14: =RESULTATS!K13 -> 346 | L14: =RESULTATS!I13 -> 610 | N14: =RESULTATS!O13 -> 18 | P14: =RESULTATS!Q13 -> 592 | R14: =RESULTATS!U13 -> 29 | T14: =RESULTATS!X13 -> 42 | V14: =RESULTATS!AA13 -> 107 | X14: =RESULTATS!AD13 -> 69 | Z14: =RESULTATS!AG13 -> 105 | AB14: =RESULTATS!AJ13 -> 7 | AD14: =RESULTATS!AM13 -> 233
A15: B | B15: 01 | C15: - | D15: Victor Hugo | E15: E | F15: =RESULTATS!E14 -> 1096 | H15: =RESULTATS!G14 -> 623 | J15: =RESULTATS!K14 -> 474 | L15: =RESULTATS!I14 -> 622 | N15: =RESULTATS!O14 -> 11 | P15: =RESULTATS!Q14 -> 611 | R15: =RESULTATS!U14 -> 26 | T15: =RESULTATS!X14 -> 46 | V15: =RESULTATS!AA14 -> 132 | X15: =RESULTATS!AD14 -> 71 | Z15: =RESULTATS!AG14 -> 115 | AB15: =RESULTATS!AJ14 -> 9 | AD15: =RESULTATS!AM14 -> 212
A16: B | B16: 02 | C16: - | D16: Victor Hugo | E16: E | F16: =RESULTATS!E15 -> 1167 | H16: =RESULTATS!G15 -> 715 | J16: =RESULTATS!K15 -> 452 | L16: =RESULTATS!I15 -> 715 | N16: =RESULTATS!O15 -> 15 | P16: =RESULTATS!Q15 -> 700 | R16: =RESULTATS!U15 -> 37 | T16: =RESULTATS!X15 -> 57 | V16: =RESULTATS!AA15 -> 126 | X16: =RESULTATS!AD15 -> 87 | Z16: =RESULTATS!AG15 -> 126 | AB16: =RESULTATS!AJ15 -> 12 | AD16: =RESULTATS!AM15 -> 255
A17: M | B17: 01 | C17: - | D17: Saint-Exupéry | E17: E | F17: =RESULTATS!E16 -> 1306 | H17: =RESULTATS!G16 -> 599 | J17: =RESULTATS!K16 -> 707 | L17: =RESULTATS!I16 -> 599 | N17: =RESULTATS!O16 -> 18 | P17: =RESULTATS!Q16 -> 581 | R17: =RESULTATS!U16 -> 23 | T17: =RESULTATS!X16 -> 50 | V17: =RESULTATS!AA16 -> 215 | X17: =RESULTATS!AD16 -> 50 | Z17: =RESULTATS!AG16 -> 112 | AB17: =RESULTATS!AJ16 -> 8 | AD17: =RESULTATS!AM16 -> 123
A18: N | B18: 01 | C18: - | D18: Jean Moulin | E18: E | F18: =RESULTATS!E17 -> 1456 | H18: =RESULTATS!G17 -> 825 | J18: =RESULTATS!K17 -> 631 | L18: =RESULTATS!I17 -> 825 | N18: =RESULTATS!O17 -> 17 | P18: =RESULTATS!Q17 -> 808 | R18: =RESULTATS!U17 -> 32 | T18: =RESULTATS!X17 -> 111 | V18: =RESULTATS!AA17 -> 150 | X18: =RESULTATS!AD17 -> 78 | Z18: =RESULTATS!AG17 -> 176 | AB18: =RESULTATS!AJ17 -> 12 | AD18: =RESULTATS!AM17 -> 249
A19: N | B19: 02 | C19: - | D19: Cité des Associations | E19: E | F19: =RESULTATS!E18 -> 905 | H19: =RESULTATS!G18 -> 577 | J19: =RESULTATS!K18 -> 328 | L19: =RESULTATS!I18 -> 577 | N19: =RESULTATS!O18 -> 11 | P19: =RESULTATS!Q18 -> 566 | R19: =RESULTATS!U18 -> 25 | T19: =RESULTATS!X18 -> 44 | V19: =RESULTATS!AA18 -> 113 | X19: =RESULTATS!AD18 -> 67 | Z19: =RESULTATS!AG18 -> 167 | AB19: =RESULTATS!AJ18 -> 5 | AD19: =RESULTATS!AM18 -> 145
A20: C | B20: 01 | C20: - | D20: Victor Schoelcher | E20: C | F20: =RESULTATS!E20 -> 1210 | H20: =RESULTATS!G20 -> 719 | J20: =RESULTATS!K20 -> 491 | L20: =RESULTATS!I20 -> 719 | N20: =RESULTATS!O20 -> 17 | P20: =RESULTATS!Q20 -> 702 | R20: =RESULTATS!U20 -> 24 | T20: =RESULTATS!X20 -> 65 | V20: =RESULTATS!AA20 -> 153 | X20: =RESULTATS!AD20 -> 89 | Z20: =RESULTATS!AG20 -> 92 | AB20: =RESULTATS!AJ20 -> 9 | AD20: =RESULTATS!AM20 -> 270
A21: C | B21: 02 | C21: - | D21: Maison du Peuple | E21: C | F21: =RESULTATS!E21 -> 763 | H21: =RESULTATS!G21 -> 474 | J21: =RESULTATS!K21 -> 289 | L21: =RESULTATS!I21 -> 474 | N21: =RESULTATS!O21 -> 11 | P21: =RESULTATS!Q21 -> 463 | R21: =RESULTATS!U21 -> 23 | T21: =RESULTATS!X21 -> 43 | V21: =RESULTATS!AA21 -> 82 | X21: =RESULTATS!AD21 -> 54 | Z21: =RESULTATS!AG21 -> 58 | AB21: =RESULTATS!AJ21 -> 5 | AD21: =RESULTATS!AM21 -> 198
A22: C | B22: 03 | C22: - | D22: Maison du Peuple | E22: C | F22: =RESULTATS!E22 -> 921 | H22: =RESULTATS!G22 -> 564 | J22: =RESULTATS!K22 -> 357 | L22: =RESULTATS!I22 -> 564 | N22: =RESULTATS!O22 -> 12 | P22: =RESULTATS!Q22 -> 552 | R22: =RESULTATS!U22 -> 19 | T22: =RESULTATS!X22 -> 48 | V22: =RESULTATS!AA22 -> 105 | X22: =RESULTATS!AD22 -> 56 | Z22: =RESULTATS!AG22 -> 62 | AB22: =RESULTATS!AJ22 -> 6 | AD22: =RESULTATS!AM22 -> 256
A23: D | B23: 01 | C23: - | D23: Châteaudun | E23: C | F23: =RESULTATS!E23 -> 1074 | H23: =RESULTATS!G23 -> 613 | J23: =RESULTATS!K23 -> 461 | L23: =RESULTATS!I23 -> 613 | N23: =RESULTATS!O23 -> 17 | P23: =RESULTATS!Q23 -> 596 | R23: =RESULTATS!U23 -> 14 | T23: =RESULTATS!X23 -> 70 | V23: =RESULTATS!AA23 -> 103 | X23: =RESULTATS!AD23 -> 51 | Z23: =RESULTATS!AG23 -> 80 | AB23: =RESULTATS!AJ23 -> 7 | AD23: =RESULTATS!AM23 -> 271
A24: D | B24: 02 | C24: - | D24: Châteaudun | E24: C | F24: =RESULTATS!E24 -> 838 | H24: =RESULTATS!G24 -> 503 | J24: =RESULTATS!K24 -> 335 | L24: =RESULTATS!I24 -> 503 | N24: =RESULTATS!O24 -> 22 | P24: =RESULTATS!Q24 -> 481 | R24: =RESULTATS!U24 -> 20 | T24: =RESULTATS!X24 -> 56 | V24: =RESULTATS!AA24 -> 67 | X24: =RESULTATS!AD24 -> 56 | Z24: =RESULTATS!AG24 -> 78 | AB24: =RESULTATS!AJ24 -> 7 | AD24: =RESULTATS!AM24 -> 197
A25: D | B25: 03 | C25: - | D25: Châteaudun | E25: C | F25: =RESULTATS!E25 -> 912 | H25: =RESULTATS!G25 -> 554 | J25: =RESULTATS!K25 -> 358 | L25: =RESULTATS!I25 -> 554 | N25: =RESULTATS!O25 -> 18 | P25: =RESULTATS!Q25 -> 536 | R25: =RESULTATS!U25 -> 37 | T25: =RESULTATS!X25 -> 91 | V25: =RESULTATS!AA25 -> 70 | X25: =RESULTATS!AD25 -> 47 | Z25: =RESULTATS!AG25 -> 76 | AB25: =RESULTATS!AJ25 -> 16 | AD25: =RESULTATS!AM25 -> 199
A26: E | B26: 01 | C26: - | D26: Raymond Aubert | E26: N | F26: =RESULTATS!E27 -> 1181 | H26: =RESULTATS!G27 -> 668 | J26: =RESULTATS!K27 -> 513 | L26: =RESULTATS!I27 -> 668 | N26: =RESULTATS!O27 -> 19 | P26: =RESULTATS!Q27 -> 649 | R26: =RESULTATS!U27 -> 23 | T26: =RESULTATS!X27 -> 96 | V26: =RESULTATS!AA27 -> 88 | X26: =RESULTATS!AD27 -> 88 | Z26: =RESULTATS!AG27 -> 92 | AB26: =RESULTATS!AJ27 -> 18 | AD26: =RESULTATS!AM27 -> 244
A27: E | B27: 02 | C27: - | D27: Raymond Aubert | E27: N | F27: =RESULTATS!E28 -> 1212 | H27: =RESULTATS!G28 -> 680 | J27: =RESULTATS!K27 -> 513 | L27: =RESULTATS!I28 -> 681 | N27: =RESULTATS!O28 -> 28 | P27: =RESULTATS!Q28 -> 653 | R27: =RESULTATS!U28 -> 18 | T27: =RESULTATS!X28 -> 115 | V27: =RESULTATS!AA28 -> 122 | X27: =RESULTATS!AD28 -> 51 | Z27: =RESULTATS!AG28 -> 92 | AB27: =RESULTATS!AJ28 -> 14 | AD27: =RESULTATS!AM28 -> 241
A28: E | B28: 03 | C28: - | D28: Raymond Aubert | E28: N | F28: =RESULTATS!E29 -> 1038 | H28: =RESULTATS!G29 -> 564 | J28: =RESULTATS!K28 -> 531 | L28: =RESULTATS!I29 -> 564 | N28: =RESULTATS!O29 -> 24 | P28: =RESULTATS!Q29 -> 540 | R28: =RESULTATS!U29 -> 21 | T28: =RESULTATS!X29 -> 94 | V28: =RESULTATS!AA29 -> 121 | X28: =RESULTATS!AD29 -> 60 | Z28: =RESULTATS!AG29 -> 61 | AB28: =RESULTATS!AJ29 -> 16 | AD28: =RESULTATS!AM29 -> 167
A29: F | B29: 01 | C29: - | D29: Maison de l'enfant | E29: N | F29: =RESULTATS!E30 -> 776 | H29: =RESULTATS!G30 -> 459 | J29: =RESULTATS!K29 -> 474 | L29: =RESULTATS!I30 -> 459 | N29: =RESULTATS!O30 -> 18 | P29: =RESULTATS!Q30 -> 441 | R29: =RESULTATS!U30 -> 29 | T29: =RESULTATS!X30 -> 57 | V29: =RESULTATS!AA30 -> 106 | X29: =RESULTATS!AD30 -> 31 | Z29: =RESULTATS!AG30 -> 94 | AB29: =RESULTATS!AJ30 -> 9 | AD29: =RESULTATS!AM30 -> 115
A30: F | B30: 02 | C30: - | D30: Émile Géhant | E30: N | F30: =RESULTATS!E31 -> 522 | H30: =RESULTATS!G31 -> 299 | J30: =RESULTATS!K30 -> 317 | L30: =RESULTATS!I31 -> 299 | N30: =RESULTATS!O31 -> 13 | P30: =RESULTATS!Q31 -> 286 | R30: =RESULTATS!U31 -> 27 | T30: =RESULTATS!X31 -> 53 | V30: =RESULTATS!AA31 -> 49 | X30: =RESULTATS!AD31 -> 34 | Z30: =RESULTATS!AG31 -> 40 | AB30: =RESULTATS!AJ31 -> 24 | AD30: =RESULTATS!AM31 -> 59
A31: G | B31: 01 | C31: - | D31: Hubert Metzger | E31: S | F31: =RESULTATS!E33 -> 653 | H31: =RESULTATS!G33 -> 414 | J31: =RESULTATS!K31 -> 223 | L31: =RESULTATS!I33 -> 414 | N31: =RESULTATS!O33 -> 18 | P31: =RESULTATS!Q33 -> 396 | R31: =RESULTATS!U33 -> 36 | T31: =RESULTATS!X33 -> 54 | V31: =RESULTATS!AA33 -> 97 | X31: =RESULTATS!AD33 -> 33 | Z31: =RESULTATS!AG33 -> 68 | AB31: =RESULTATS!AJ33 -> 9 | AD31: =RESULTATS!AM33 -> 99
A32: G | B32: 02 | C32: - | D32: Hubert Metzger | E32: S | F32: =RESULTATS!E34 -> 755 | H32: =RESULTATS!G34 -> 419 | J32: =RESULTATS!K34 -> 336 | L32: =RESULTATS!I34 -> 419 | N32: =RESULTATS!O34 -> 15 | P32: =RESULTATS!Q34 -> 404 | R32: =RESULTATS!U34 -> 59 | T32: =RESULTATS!X34 -> 64 | V32: =RESULTATS!AA34 -> 97 | X32: =RESULTATS!AD34 -> 31 | Z32: =RESULTATS!AG34 -> 50 | AB32: =RESULTATS!AJ34 -> 6 | AD32: =RESULTATS!AM34 -> 97
A33: H | B33: 01 | C33: - | D33: Léonard de Vinci | E33: S | F33: =RESULTATS!E35 -> 1042 | H33: =RESULTATS!G35 -> 574 | J33: =RESULTATS!K35 -> 468 | L33: =RESULTATS!I35 -> 574 | N33: =RESULTATS!O35 -> 26 | P33: =RESULTATS!Q35 -> 548 | R33: =RESULTATS!U35 -> 29 | T33: =RESULTATS!X35 -> 64 | V33: =RESULTATS!AA35 -> 133 | X33: =RESULTATS!AD35 -> 61 | Z33: =RESULTATS!AG35 -> 64 | AB33: =RESULTATS!AJ35 -> 15 | AD33: =RESULTATS!AM35 -> 182
A34: J | B34: 01 | C34: - | D34: René Rucklin | E34: S | F34: =RESULTATS!E36 -> 597 | H34: =RESULTATS!G36 -> 266 | J34: =RESULTATS!K36 -> 331 | L34: =RESULTATS!I36 -> 266 | N34: =RESULTATS!O36 -> 9 | P34: =RESULTATS!Q36 -> 257 | R34: =RESULTATS!U36 -> 7 | T34: =RESULTATS!X36 -> 50 | V34: =RESULTATS!AA36 -> 63 | X34: =RESULTATS!AD36 -> 28 | Z34: =RESULTATS!AG36 -> 43 | AB34: =RESULTATS!AJ36 -> 3 | AD34: =RESULTATS!AM36 -> 63
A35: J | B35: 02 | C35: - | D35: René Rucklin | E35: S | F35: =RESULTATS!E37 -> 818 | H35: =RESULTATS!G37 -> 438 | J35: =RESULTATS!K37 -> 380 | L35: =RESULTATS!I37 -> 438 | N35: =RESULTATS!O37 -> 14 | P35: =RESULTATS!Q37 -> 424 | R35: =RESULTATS!U37 -> 8 | T35: =RESULTATS!X37 -> 42 | V35: =RESULTATS!AA37 -> 102 | X35: =RESULTATS!AD37 -> 43 | Z35: =RESULTATS!AG37 -> 79 | AB35: =RESULTATS!AJ37 -> 13 | AD35: =RESULTATS!AM37 -> 137
A36: J | B36: 03 | C36: - | D36: René Rucklin | E36: S | F36: =RESULTATS!E38 -> 562 | H36: =RESULTATS!G38 -> 277 | J36: =RESULTATS!K38 -> 285 | L36: =RESULTATS!I38 -> 277 | N36: =RESULTATS!O38 -> 20 | P36: =RESULTATS!Q38 -> 257 | R36: =RESULTATS!U38 -> 17 | T36: =RESULTATS!X38 -> 26 | V36: =RESULTATS!AA38 -> 88 | X36: =RESULTATS!AD38 -> 35 | Z36: =RESULTATS!AG38 -> 29 | AB36: =RESULTATS!AJ38 -> 2 | AD36: =RESULTATS!AM38 -> 60
A37: K | B37: 01 | C37: - | D37: Louis Pergaud | E37: O | F37: =RESULTATS!E40 -> 959 | H37: =RESULTATS!G40 -> 487 | J37: =RESULTATS!K40 -> 472 | L37: =RESULTATS!I40 -> 487 | N37: =RESULTATS!O40 -> 18 | P37: =RESULTATS!Q40 -> 469 | R37: =RESULTATS!U40 -> 11 | T37: =RESULTATS!X40 -> 53 | V37: =RESULTATS!AA40 -> 153 | X37: =RESULTATS!AD40 -> 39 | Z37: =RESULTATS!AG40 -> 30 | AB37: =RESULTATS!AJ40 -> 10 | AD37: =RESULTATS!AM40 -> 173
A38: K | B38: 02 | C38: - | D38: Louis Pergaud | E38: O | F38: =RESULTATS!E41 -> 789 | H38: =RESULTATS!G41 -> 395 | J38: =RESULTATS!K41 -> 394 | L38: =RESULTATS!I41 -> 395 | N38: =RESULTATS!O41 -> 12 | P38: =RESULTATS!Q41 -> 383 | R38: =RESULTATS!U41 -> 9 | T38: =RESULTATS!X41 -> 46 | V38: =RESULTATS!AA41 -> 128 | X38: =RESULTATS!AD41 -> 30 | Z38: =RESULTATS!AG41 -> 28 | AB38: =RESULTATS!AJ41 -> 9 | AD38: =RESULTATS!AM41 -> 133
A39: L | B39: 01 | C39: - | D39: Les Barres | E39: O | F39: =RESULTATS!E42 -> 1336 | H39: =RESULTATS!G42 -> 759 | J39: =RESULTATS!K42 -> 577 | L39: =RESULTATS!I42 -> 759 | N39: =RESULTATS!O42 -> 19 | P39: =RESULTATS!Q42 -> 740 | R39: =RESULTATS!U42 -> 34 | T39: =RESULTATS!X42 -> 108 | V39: =RESULTATS!AA42 -> 143 | X39: =RESULTATS!AD42 -> 132 | Z39: =RESULTATS!AG42 -> 97 | AB39: =RESULTATS!AJ42 -> 16 | AD39: =RESULTATS!AM42 -> 210
A40: L | B40: 02 | C40: - | D40: Les Barres | E40: O | F40: =RESULTATS!E43 -> 1155 | H40: =RESULTATS!G43 -> 709 | J40: =RESULTATS!K43 -> 446 | L40: =RESULTATS!I43 -> 709 | N40: =RESULTATS!O43 -> 35 | P40: =RESULTATS!Q43 -> 674 | R40: =RESULTATS!U43 -> 47 | T40: =RESULTATS!X43 -> 103 | V40: =RESULTATS!AA43 -> 148 | X40: =RESULTATS!AD43 -> 86 | Z40: =RESULTATS!AG43 -> 102 | AB40: =RESULTATS!AJ43 -> 18 | AD40: =RESULTATS!AM43 -> 170
D42: TOTAUX | F42: =SUM(F13:F41) -> 26948 | H42: =SUM(H13:H41) -> 15292 | J42: =SUM(J13:J41) -> 11930 | L42: =SUM(L13:L41) -> 15292 | N42: =SUM(N13:N41) -> 487 | P42: =SUM(P13:P41) -> 14805 | R42: =SUM(R13:R41) -> 704 | T42: =SUM(T13:T41) -> 1780 | V42: =SUM(V13:V41) -> 3165 | X42: =SUM(X13:X41) -> 1617 | Z42: =SUM(Z13:Z41) -> 2321 | AB42: =SUM(AB13:AB41) -> 293 | AD42: =SUM(AD13:AD41) -> 4925

Sheet REPART VdB 1T
C2: R É P A R T I T I O N des S I È G E S V.d.B.
O3: Nombre de sièges à répartir | P3: 45
O4: Majorité absolue des sièges | P4: =INT($P$3/2)+1 -> 23
O5: Majorité absolue des Exprimés | P5: =INT(RESULTATS!Q47/2)+1 -> 7403
O6: 25% des Inscrits | P6: =INT(SUM(RESULTATS!X5*25%)) -> 6737
O7: 10% des Exprimés | P7: =INT(SUM(RESULTATS!Q47*10%)) -> 1480
A8: =IF(OR(($C$16>=$P$5),($E$16>=$P$5),($G$16>=$P$5),($I$16>=$P$5),($O$16>=$P$5)),"1er TOUR","AUCUNE LISTE NE REUNIT LA MOITIE DES SUFFRAGES, IL Y A NECESSITE D'UN SECOND TOUR") -> AUCUNE LISTE NE REUNIT LA MOITIE DES SUFFRAGES, IL Y A NECESSITE D'UN SECOND TOUR | O8: 5% des Exprimés | P8: =INT(SUM(RESULTATS!Q47*5%)) -> 740
O9: Quotient Electoral (1) | P9: =INT(SUMIF(C22:O22,">0",C16:O16)/(P3-P4)) -> 627
O10: 1 élu | P10: =IF(OR(AND(C16>=P5,C16>=P6),AND(E16>=P5,E16>=P6),AND(G16>=P5,G16>=P6),AND(I16>=P5,I16>=P6),AND(O16>=P5,O16>=P6)),"Oui","Non") -> Non
C13: =Candidats!A2&" "&Candidats!B2 -> Bertrand CHEVALIER | E13: =Candidats!A3&" "&Candidats!B3 -> Marc ARCHAMBAULT | G13: =Candidats!A4&" "&Candidats!B4 -> Étienne BUTZBACH | I13: =Candidats!A5&" "&Candidats!B5 -> Bastien FAUDOT | K13: =Candidats!A6&" "&Candidats!B6 -> Christophe GRUDLER | M13: =Candidats!A7&" "&Candidats!B7 -> Jean-Marie PHEULPIN | O13: =Candidats!A8&" "&Candidats!B8 -> Damien MESLOT
A16: Suffrages Exprimés | C16: =RESULTATS!U47 -> 704 | E16: =RESULTATS!X47 -> 1780 | G16: =RESULTATS!AA47 -> 3165 | I16: =RESULTATS!AD47 -> 1617 | K16: =RESULTATS!AG47 -> 2321 | M16: =RESULTATS!AJ47 -> 293 | O16: =RESULTATS!AM47 -> 4925
A18: % des Suffrages Exprimés | C18: =IF(RESULTATS!$Q$47=0,0,RESULTATS!U47/RESULTATS!$Q$47) -> 0.04755150287 | E18: =IF(RESULTATS!$Q$47=0,0,RESULTATS!X47/RESULTATS!$Q$47) -> 0.1202296521 | G18: =IF(RESULTATS!$Q$47=0,0,RESULTATS!$AA47/RESULTATS!$Q$47) -> 0.2137791287 | I18: =IF(RESULTATS!$Q$47=0,0,RESULTATS!$AD47/RESULTATS!$Q$47) -> 0.1092198582 | K18: =IF(RESULTATS!$Q$47=0,0,RESULTATS!AG47/RESULTATS!$Q$47) -> 0.156771361 | M18: =IF(RESULTATS!$Q$47=0,0,RESULTATS!$AJ47/RESULTATS!$Q$47) -> 0.01979061128 | O18: =IF(RESULTATS!$Q$47=0,0,RESULTATS!$AM47/RESULTATS!$Q$47) -> 0.3326578858
A20: Sièges à répartir | B20: =P3 -> 45
A22: Suffrages à prendre en compte (2) | C22: =IF(C16>=$P$8,C16,0) -> 0 | E22: =IF(E16>=$P$8,E16,0) -> 1780 | G22: =IF(G16>=$P$8,G16,0) -> 3165 | I22: =IF(I16>=$P$8,I16,0) -> 1617 | K22: =IF(K16>=$P$8,K16,0) -> 2321 | M22: =IF(M16>=$P$8,M16,0) -> 0 | O22: =IF(O16>=$P$8,O16,0) -> 4925
A24: =IF(OR(($C$16>=$P$5),($E$16>=$P$5),($G$16>=$P$5),($I$16>=$P$5),($O$16>=$P$5)),"","Second tour") -> Second tour | C24: =IF(OR(($C$16>=$P$5),($E$16>=$P$5),($G$16>=$P$5),($I$16>=$P$5),($O$16>=$P$5)),"",IF(C$16>=$P$7,"Maintien possible",IF(C$16>=$P$8,"Fusion possible",""))) ->  | E24: =IF(OR(($C$16>=$P$5),($E$16>=$P$5),($G$16>=$P$5),($I$16>=$P$5),($O$16>=$P$5)),"",IF(E$16>=$P$7,"Maintien possible",IF(E$16>=$P$8,"Fusion possible",""))) -> Maintien possible | G24: =IF(OR(($C$16>=$P$5),($E$16>=$P$5),($G$16>=$P$5),($I$16>=$P$5),($O$16>=$P$5)),"",IF(G$16>=$P$7,"Maintien possible",IF(G$16>=$P$8,"Fusion possible",""))) -> Maintien possible | I24: =IF(OR(($C$16>=$P$5),($E$16>=$P$5),($G$16>=$P$5),($I$16>=$P$5),($O$16>=$P$5)),"",IF(I$16>=$P$7,"Maintien possible",IF(I$16>=$P$8,"Fusion possible",""))) -> Maintien possible | K24: =IF(OR(($C$16>=$P$5),($E$16>=$P$5),($G$16>=$P$5),($I$16>=$P$5),($O$16>=$P$5)),"",IF(K$16>=$P$7,"Maintien possible",IF(K$16>=$P$8,"Fusion possible",""))) -> Maintien possible | M24: =IF(OR(($C$16>=$P$5),($E$16>=$P$5),($G$16>=$P$5),($I$16>=$P$5),($O$16>=$P$5)),"",IF(M$16>=$P$7,"Maintien possible",IF(M$16>=$P$8,"Fusion possible",""))) ->  | O24: =IF(OR(($C$16>=$P$5),($E$16>=$P$5),($G$16>=$P$5),($I$16>=$P$5),($O$16>=$P$5)),"",IF(O$16>=$P$7,"Maintien possible",IF(O$16>=$P$8,"Fusion possible",""))) -> Maintien possible
A25: Sièges attribués au scrutin majoritaire (3) | C25: =IF(AND(C$16>=P6,C$16>=$P$5),$P$4,0) -> 0 | E25: =IF(AND(E$16>=$P$6,E$16>=$P$5),$P$4,0) -> 0 | G25: =IF(AND(G$16>=$P$6,G$16>=$P$5),$P$4,0) -> 0 | I25: =IF(AND(I$16>=$P$6,I$16>=$P$5),$P$4,0) -> 0 | K25: =IF(AND(K$16>=$P$6,K$16>=$P$5),$P$4,0) -> 0 | M25: =IF(AND(M$16>=$P$6,M$16>=$P$5),$P$4,0) -> 0 | O25: =IF(AND(O$16>=$P$6,O$16>=$P$5),$P$4,0) -> 0
A27: Sièges restants | B27: =$B$20-SUM($C$25:$O$25) -> 45
A29: Sièges attribués à la proportionnelle (4) | C29: =IF(OR(SUM($C$25:$O$25)=0,$P$9=0,C22=0),0,INT(C16/$P$9)) -> 0 | E29: =IF(OR(SUM($C$25:$O$25)=0,$P$9=0,E22=0),0,INT(E16/$P$9)) -> 0 | G29: =IF(OR(SUM($C$25:$O$25)=0,$P$9=0,G22=0),0,INT(G16/$P$9)) -> 0 | I29: =IF(OR(SUM($C$25:$O$25)=0,$P$9=0,I22=0),0,INT(I16/$P$9)) -> 0 | K29: =IF(OR(SUM($C$25:$O$25)=0,$P$9=0,K22=0),0,INT(K16/$P$9)) -> 0 | M29: =IF(OR(SUM($C$25:$O$25)=0,$P$9=0,M22=0),0,INT(M16/$P$9)) -> 0 | O29: =IF(OR(SUM($C$25:$O$25)=0,$P$9=0,O22=0),0,INT(O16/$P$9)) -> 0
A31: Sièges restants | B31: =$B$27-SUM($C$29:$O$29) -> 45
A33: 1ère moyenne des listes | C33: =IF(AND($B$31>=1,$B$31<>$B$27,C22<>0),C16/(C29+1),0) -> 0 | E33: =IF(AND($B$31>=1,$B$31<>$B$27,E22<>0),E16/(E29+1),0) -> 0 | G33: =IF(AND($B$31>=1,$B$31<>$B$27,G22<>0),G16/(G29+1),0) -> 0 | I33: =IF(AND($B$31>=1,$B$31<>$B$27,I22<>0),I16/(I29+1),0) -> 0 | K33: =IF(AND($B$31>=1,$B$31<>$B$27,K22<>0),K16/(K29+1),0) -> 0 | M33: =IF(AND($B$31>=1,$B$31<>$B$27,M22<>0),M16/(M29+1),0) -> 0 | O33: =IF(AND($B$31>=1,$B$31<>$B$27,O22<>0),O16/(O29+1),0) -> 0
A35: Sièges attribués à la 1ère plus forte moyenne | C35: =IF(AND(MAX($C33:$O33)=C33,$B$31<>0,$B$31<>$B$27),1,0) -> 0 | E35: =IF(AND(MAX($C33:$O33)=E33,$B$31<>0,$B$31<>$B$27),1,0) -> 0 | G35: =IF(AND(MAX($C33:$O33)=G33,$B$31<>0,$B$31<>$B$27),1,0) -> 0 | I35: =IF(AND(MAX($C33:$O33)=I33,$B$31<>0,$B$31<>$B$27),1,0) -> 0 | K35: =IF(AND(MAX($C33:$O33)=K33,$B$31<>0,$B$31<>$B$27),1,0) -> 0 | M35: =IF(AND(MAX($C33:$O33)=M33,$B$31<>0,$B$31<>$B$27),1,0) -> 0 | O35: =IF(AND(MAX($C33:$O33)=O33,$B$31<>0,$B$31<>$B$27),1,0) -> 0
A37: Sièges restants | B37: =$B$31-SUM($C$35:$O$35) -> 45
A39: 2ème moyenne des listes | C39: =IF(AND($B$37>=1,$B$37<>$B$31,C22<>0),C16/(C29+C35+1),0) -> 0 | E39: =IF(AND($B$37>=1,$B$37<>$B$31,E22<>0),E16/(E29+E35+1),0) -> 0 | G39: =IF(AND($B$37>=1,$B$37<>$B$31,G22<>0),G16/(G29+G35+1),0) -> 0 | I39: =IF(AND($B$37>=1,$B$37<>$B$31,I22<>0),I16/(I29+I35+1),0) -> 0 | K39: =IF(AND($B$37>=1,$B$37<>$B$31,K22<>0),K16/(K29+K35+1),0) -> 0 | M39: =IF(AND($B$37>=1,$B$37<>$B$31,M22<>0),M16/(M29+M35+1),0) -> 0 | O39: =IF(AND($B$37>=1,$B$37<>$B$31,O22<>0),O16/(O29+O35+1),0) -> 0
A41: Sièges attribués à la 2ème plus forte moyenne | C41: =IF(AND(MAX($C39:$O39)=C39,$B$37<>0,$B$37<>$B$31),1,0) -> 0 | E41: =IF(AND(MAX($C39:$O39)=E39,$B$37<>0,$B$37<>$B$31),1,0) -> 0 | G41: =IF(AND(MAX($C39:$O39)=G39,$B$37<>0,$B$37<>$B$31),1,0) -> 0 | I41: =IF(AND(MAX($C39:$O39)=I39,$B$37<>0,$B$37<>$B$31),1,0) -> 0 | K41: =IF(AND(MAX($C39:$O39)=K39,$B$37<>0,$B$37<>$B$31),1,0) -> 0 | M41: =IF(AND(MAX($C39:$O39)=M39,$B$37<>0,$B$37<>$B$31),1,0) -> 0 | O41: =IF(AND(MAX($C39:$O39)=O39,$B$37<>0,$B$37<>$B$31),1,0) -> 0
A43: Sièges restants | B43: =$B$37-SUM($C$41:$O$41) -> 45
A45: 3ème moyenne des listes | C45: =IF(AND($B$43>=1,$B$43<>$B$37,C22<>0),C16/(C29+C35+C41+1),0) -> 0 | E45: =IF(AND($B$43>=1,$B$43<>$B$37,E22<>0),E16/(E29+E35+E41+1),0) -> 0 | G45: =IF(AND($B$43>=1,$B$43<>$B$37,G22<>0),G16/(G29+G35+G41+1),0) -> 0 | I45: =IF(AND($B$43>=1,$B$43<>$B$37,I22<>0),I16/(I29+I35+I41+1),0) -> 0 | K45: =IF(AND($B$43>=1,$B$43<>$B$37,K22<>0),K16/(K29+K35+K41+1),0) -> 0 | M45: =IF(AND($B$43>=1,$B$43<>$B$37,M22<>0),M16/(M29+M35+M41+1),0) -> 0 | O45: =IF(AND($B$43>=1,$B$43<>$B$37,O22<>0),O16/(O29+O35+O41+1),0) -> 0
A47: Sièges attribués à la 3ème plus forte moyenne | C47: =IF(AND(MAX($C45:$O45)=C45,$B$43<>0,$B$43<>$B$37),1,0) -> 0 | E47: =IF(AND(MAX($C45:$O45)=E45,$B$43<>0,$B$43<>$B$37),1,0) -> 0 | G47: =IF(AND(MAX($C45:$O45)=G45,$B$43<>0,$B$43<>$B$37),1,0) -> 0 | I47: =IF(AND(MAX($C45:$O45)=I45,$B$43<>0,$B$43<>$B$37),1,0) -> 0 | K47: =IF(AND(MAX($C45:$O45)=K45,$B$43<>0,$B$43<>$B$37),1,0) -> 0 | M47: =IF(AND(MAX($C45:$O45)=M45,$B$43<>0,$B$43<>$B$37),1,0) -> 0 | O47: =IF(AND(MAX($C45:$O45)=O45,$B$43<>0,$B$43<>$B$37),1,0) -> 0
A49: Sièges restants | B49: =$B$43-SUM($C$47:$O$47) -> 45
A52: TOTAL DES SIÈGES RÉPARTIS | C52: =SUM(C25+C29+C35+C41+C47) -> 0 | E52: =SUM(E25+E29+E35+E41+E47) -> 0 | G52: =SUM(G25+G29+G35+G41+G47) -> 0 | I52: =SUM(I25+I29+I35+I41+I47) -> 0 | K52: =SUM(K25+K29+K35+K41+K47) -> 0 | M52: =SUM(M25+M29+M35+M41+M47) -> 0 | O52: =SUM(O25+O29+O35+O41+O47) -> 0
C54: (1) Somme des Suffrages Exprimés des listes >= 5% du total des Exprimés / le nombre de sièges restant après répartition au scrutin majoritaire
C55: (2) Listes ayant obtenues au mois 5% du total des Exprimés
C56: (3) Affectation de la Majorité absolue des sièges (23) à la liste qui a obtenu au moins la majorité absolue des Exprimés
C57: (4) Suffrages Exprimés de la liste / Quotient Electoral

Sheet REPART CAB 1T
C2: R É P A R T I T I O N des S I È G E S C.A.B.
O3: Nombre de sièges à répartir | P3: 30
O4: Majorité absolue des sièges | P4: =INT($P$3/2)+1 -> 16
O5: Majorité absolue des Exprimés | P5: =INT(RESULTATS!Q47/2)+1 -> 7403
O6: 25% des Inscrits | P6: =INT(SUM(RESULTATS!X5*25%)) -> 6737
O7: 10% des Exprimés | P7: =INT(SUM(RESULTATS!Q47*10%)) -> 1480
A8: =IF(OR(($C$16>=$P$5),($E$16>=$P$5),($G$16>=$P$5),($I$16>=$P$5),($O$16>=$P$5)),"1er TOUR","AUCUNE LISTE NE REUNIT LA MOITIE DES SUFFRAGES, IL Y A NECESSITE D'UN SECOND TOUR") -> AUCUNE LISTE NE REUNIT LA MOITIE DES SUFFRAGES, IL Y A NECESSITE D'UN SECOND TOUR | O8: 5% des Exprimés | P8: =INT(SUM(RESULTATS!Q47*5%)) -> 740
O9: Quotient Electoral (1) | P9: =INT(SUMIF(C22:O22,">0",C16:O16)/(P3-P4)) -> 986
O10: 1 élu | P10: =IF(OR(AND(C16>=P5,C16>=P6),AND(E16>=P5,E16>=P6),AND(G16>=P5,G16>=P6),AND(I16>=P5,I16>=P6),AND(O16>=P5,O16>=P6)),"Oui","Non") -> Non
C13: =Candidats!A2&" "&Candidats!B2 -> Bertrand CHEVALIER | E13: =Candidats!A3&" "&Candidats!B3 -> Marc ARCHAMBAULT | G13: =Candidats!A4&" "&Candidats!B4 -> Étienne BUTZBACH | I13: =Candidats!A5&" "&Candidats!B5 -> Bastien FAUDOT | K13: =Candidats!A6&" "&Candidats!B6 -> Christophe GRUDLER | M13: =Candidats!A7&" "&Candidats!B7 -> Jean-Marie PHEULPIN | O13: =Candidats!A8&" "&Candidats!B8 -> Damien MESLOT
A16: Suffrages Exprimés | C16: =RESULTATS!U47 -> 704 | E16: =RESULTATS!X47 -> 1780 | G16: =RESULTATS!AA47 -> 3165 | I16: =RESULTATS!AD47 -> 1617 | K16: =RESULTATS!AG47 -> 2321 | M16: =RESULTATS!AJ47 -> 293 | O16: =RESULTATS!AM47 -> 4925
A18: % des Suffrages Exprimés | C18: =IF(RESULTATS!$Q$47=0,0,RESULTATS!U47/RESULTATS!$Q$47) -> 0.04755150287 | E18: =IF(RESULTATS!$Q$47=0,0,RESULTATS!X47/RESULTATS!$Q$47) -> 0.1202296521 | G18: =IF(RESULTATS!$Q$47=0,0,RESULTATS!$AA47/RESULTATS!$Q$47) -> 0.2137791287 | I18: =IF(RESULTATS!$Q$47=0,0,RESULTATS!$AD47/RESULTATS!$Q$47) -> 0.1092198582 | K18: =IF(RESULTATS!$Q$47=0,0,RESULTATS!AG47/RESULTATS!$Q$47) -> 0.156771361 | M18: =IF(RESULTATS!$Q$47=0,0,RESULTATS!$AJ47/RESULTATS!$Q$47) -> 0.01979061128 | O18: =IF(RESULTATS!$Q$47=0,0,RESULTATS!$AM47/RESULTATS!$Q$47) -> 0.3326578858
A20: Sièges à répartir | B20: =P3 -> 30
A22: Suffrages à prendre en compte (2) | C22: =IF(C16>=$P$8,C16,0) -> 0 | E22: =IF(E16>=$P$8,E16,0) -> 1780 | G22: =IF(G16>=$P$8,G16,0) -> 3165 | I22: =IF(I16>=$P$8,I16,0) -> 1617 | K22: =IF(K16>=$P$8,K16,0) -> 2321 | M22: =IF(M16>=$P$8,M16,0) -> 0 | O22: =IF(O16>=$P$8,O16,0) -> 4925
A24: =IF(OR(($C$16>=$P$5),($E$16>=$P$5),($G$16>=$P$5),($I$16>=$P$5),($O$16>=$P$5)),"","Second tour") -> Second tour | C24: =IF(OR(($C$16>=$P$5),($E$16>=$P$5),($G$16>=$P$5),($I$16>=$P$5),($O$16>=$P$5)),"",IF(C$16>=$P$7,"Maintien possible",IF(C$16>=$P$8,"Fusion possible",""))) ->  | E24: =IF(OR(($C$16>=$P$5),($E$16>=$P$5),($G$16>=$P$5),($I$16>=$P$5),($O$16>=$P$5)),"",IF(E$16>=$P$7,"Maintien possible",IF(E$16>=$P$8,"Fusion possible",""))) -> Maintien possible | G24: =IF(OR(($C$16>=$P$5),($E$16>=$P$5),($G$16>=$P$5),($I$16>=$P$5),($O$16>=$P$5)),"",IF(G$16>=$P$7,"Maintien possible",IF(G$16>=$P$8,"Fusion possible",""))) -> Maintien possible | I24: =IF(OR(($C$16>=$P$5),($E$16>=$P$5),($G$16>=$P$5),($I$16>=$P$5),($O$16>=$P$5)),"",IF(I$16>=$P$7,"Maintien possible",IF(I$16>=$P$8,"Fusion possible",""))) -> Maintien possible | K24: =IF(OR(($C$16>=$P$5),($E$16>=$P$5),($G$16>=$P$5),($I$16>=$P$5),($O$16>=$P$5)),"",IF(K$16>=$P$7,"Maintien possible",IF(K$16>=$P$8,"Fusion possible",""))) -> Maintien possible | M24: =IF(OR(($C$16>=$P$5),($E$16>=$P$5),($G$16>=$P$5),($I$16>=$P$5),($O$16>=$P$5)),"",IF(M$16>=$P$7,"Maintien possible",IF(M$16>=$P$8,"Fusion possible",""))) ->  | O24: =IF(OR(($C$16>=$P$5),($E$16>=$P$5),($G$16>=$P$5),($I$16>=$P$5),($O$16>=$P$5)),"",IF(O$16>=$P$7,"Maintien possible",IF(O$16>=$P$8,"Fusion possible",""))) -> Maintien possible
A25: Sièges attribués au scrutin majoritaire (3) | C25: =IF(AND(C$16>=P6,C$16>=$P$5),$P$4,0) -> 0 | E25: =IF(AND(E$16>=$P$6,E$16>=$P$5),$P$4,0) -> 0 | G25: =IF(AND(G$16>=$P$6,G$16>=$P$5),$P$4,0) -> 0 | I25: =IF(AND(I$16>=$P$6,I$16>=$P$5),$P$4,0) -> 0 | K25: =IF(AND(K$16>=$P$6,K$16>=$P$5),$P$4,0) -> 0 | M25: =IF(AND(M$16>=$P$6,M$16>=$P$5),$P$4,0) -> 0 | O25: =IF(AND(O$16>=$P$6,O$16>=$P$5),$P$4,0) -> 0
A27: Sièges restants | B27: =$B$20-SUM($C$25:$O$25) -> 30
A29: Sièges attribués à la proportionnelle (4) | C29: =IF(OR(SUM($C$25:$O$25)=0,$P$9=0,C22=0),0,INT(C16/$P$9)) -> 0 | E29: =IF(OR(SUM($C$25:$O$25)=0,$P$9=0,E22=0),0,INT(E16/$P$9)) -> 0 | G29: =IF(OR(SUM($C$25:$O$25)=0,$P$9=0,G22=0),0,INT(G16/$P$9)) -> 0 | I29: =IF(OR(SUM($C$25:$O$25)=0,$P$9=0,I22=0),0,INT(I16/$P$9)) -> 0 | K29: =IF(OR(SUM($C$25:$O$25)=0,$P$9=0,K22=0),0,INT(K16/$P$9)) -> 0 | M29: =IF(OR(SUM($C$25:$O$25)=0,$P$9=0,M22=0),0,INT(M16/$P$9)) -> 0 | O29: =IF(OR(SUM($C$25:$O$25)=0,$P$9=0,O22=0),0,INT(O16/$P$9)) -> 0
A31: Sièges restants | B31: =$B$27-SUM($C$29:$O$29) -> 30
A33: 1ère moyenne des listes | C33: =IF(AND($B$31>=1,$B$31<>$B$27,C22<>0),C16/(C29+1),0) -> 0 | E33: =IF(AND($B$31>=1,$B$31<>$B$27,E22<>0),E16/(E29+1),0) -> 0 | G33: =IF(AND($B$31>=1,$B$31<>$B$27,G22<>0),G16/(G29+1),0) -> 0 | I33: =IF(AND($B$31>=1,$B$31<>$B$27,I22<>0),I16/(I29+1),0) -> 0 | K33: =IF(AND($B$31>=1,$B$31<>$B$27,K22<>0),K16/(K29+1),0) -> 0 | M33: =IF(AND($B$31>=1,$B$31<>$B$27,M22<>0),M16/(M29+1),0) -> 0 | O33: =IF(AND($B$31>=1,$B$31<>$B$27,O22<>0),O16/(O29+1),0) -> 0
A35: Sièges attribués à la 1ère plus forte moyenne | C35: =IF(AND(MAX($C33:$O33)=C33,$B$31<>0,$B$31<>$B$27),1,0) -> 0 | E35: =IF(AND(MAX($C33:$O33)=E33,$B$31<>0,$B$31<>$B$27),1,0) -> 0 | G35: =IF(AND(MAX($C33:$O33)=G33,$B$31<>0,$B$31<>$B$27),1,0) -> 0 | I35: =IF(AND(MAX($C33:$O33)=I33,$B$31<>0,$B$31<>$B$27),1,0) -> 0 | K35: =IF(AND(MAX($C33:$O33)=K33,$B$31<>0,$B$31<>$B$27),1,0) -> 0 | M35: =IF(AND(MAX($C33:$O33)=M33,$B$31<>0,$B$31<>$B$27),1,0) -> 0 | O35: =IF(AND(MAX($C33:$O33)=O33,$B$31<>0,$B$31<>$B$27),1,0) -> 0
A37: Sièges restants | B37: =$B$31-SUM($C$35:$O$35) -> 30
A39: 2ème moyenne des listes | C39: =IF(AND($B$37>=1,$B$37<>$B$31,C22<>0),C16/(C29+C35+1),0) -> 0 | E39: =IF(AND($B$37>=1,$B$37<>$B$31,E22<>0),E16/(E29+E35+1),0) -> 0 | G39: =IF(AND($B$37>=1,$B$37<>$B$31,G22<>0),G16/(G29+G35+1),0) -> 0 | I39: =IF(AND($B$37>=1,$B$37<>$B$31,I22<>0),I16/(I29+I35+1),0) -> 0 | K39: =IF(AND($B$37>=1,$B$37<>$B$31,K22<>0),K16/(K29+K35+1),0) -> 0 | M39: =IF(AND($B$37>=1,$B$37<>$B$31,M22<>0),M16/(M29+M35+1),0) -> 0 | O39: =IF(AND($B$37>=1,$B$37<>$B$31,O22<>0),O16/(O29+O35+1),0) -> 0
A41: Sièges attribués à la 2ème plus forte moyenne | C41: =IF(AND(MAX($C39:$O39)=C39,$B$37<>0,$B$37<>$B$31),1,0) -> 0 | E41: =IF(AND(MAX($C39:$O39)=E39,$B$37<>0,$B$37<>$B$31),1,0) -> 0 | G41: =IF(AND(MAX($C39:$O39)=G39,$B$37<>0,$B$37<>$B$31),1,0) -> 0 | I41: =IF(AND(MAX($C39:$O39)=I39,$B$37<>0,$B$37<>$B$31),1,0) -> 0 | K41: =IF(AND(MAX($C39:$O39)=K39,$B$37<>0,$B$37<>$B$31),1,0) -> 0 | M41: =IF(AND(MAX($C39:$O39)=M39,$B$37<>0,$B$37<>$B$31),1,0) -> 0 | O41: =IF(AND(MAX($C39:$O39)=O39,$B$37<>0,$B$37<>$B$31),1,0) -> 0
A43: Sièges restants | B43: =$B$37-SUM($C$41:$O$41) -> 30
A45: 3ème moyenne des listes | C45: =IF(AND($B$43>=1,$B$43<>$B$37,C22<>0),C16/(C29+C35+C41+1),0) -> 0 | E45: =IF(AND($B$43>=1,$B$43<>$B$37,E22<>0),E16/(E29+E35+E41+1),0) -> 0 | G45: =IF(AND($B$43>=1,$B$43<>$B$37,G22<>0),G16/(G29+G35+G41+1),0) -> 0 | I45: =IF(AND($B$43>=1,$B$43<>$B$37,I22<>0),I16/(I29+I35+I41+1),0) -> 0 | K45: =IF(AND($B$43>=1,$B$43<>$B$37,K22<>0),K16/(K29+K35+K41+1),0) -> 0 | M45: =IF(AND($B$43>=1,$B$43<>$B$37,M22<>0),M16/(M29+M35+M41+1),0) -> 0 | O45: =IF(AND($B$43>=1,$B$43<>$B$37,O22<>0),O16/(O29+O35+O41+1),0) -> 0
A47: Sièges attribués à la 3ème plus forte moyenne | C47: =IF(AND(MAX($C45:$O45)=C45,$B$43<>0,$B$43<>$B$37),1,0) -> 0 | E47: =IF(AND(MAX($C45:$O45)=E45,$B$43<>0,$B$43<>$B$37),1,0) -> 0 | G47: =IF(AND(MAX($C45:$O45)=G45,$B$43<>0,$B$43<>$B$37),1,0) -> 0 | I47: =IF(AND(MAX($C45:$O45)=I45,$B$43<>0,$B$43<>$B$37),1,0) -> 0 | K47: =IF(AND(MAX($C45:$O45)=K45,$B$43<>0,$B$43<>$B$37),1,0) -> 0 | M47: =IF(AND(MAX($C45:$O45)=M45,$B$43<>0,$B$43<>$B$37),1,0) -> 0 | O47: =IF(AND(MAX($C45:$O45)=O45,$B$43<>0,$B$43<>$B$37),1,0) -> 0
A49: Sièges restants | B49: =$B$43-SUM($C$47:$O$47) -> 30
A52: TOTAL DES SIÈGES RÉPARTIS | C52: =SUM(C25+C29+C35+C41+C47) -> 0 | E52: =SUM(E25+E29+E35+E41+E47) -> 0 | G52: =SUM(G25+G29+G35+G41+G47) -> 0 | I52: =SUM(I25+I29+I35+I41+I47) -> 0 | K52: =SUM(K25+K29+K35+K41+K47) -> 0 | M52: =SUM(M25+M29+M35+M41+M47) -> 0 | O52: =SUM(O25+O29+O35+O41+O47) -> 0
C54: (1) Somme des Suffrages Exprimés des listes >= 5% du total des Exprimés / le nombre de sièges restant après répartition au scrutin majoritaire
C55: (2) Listes ayant obtenues au mois 5% du total des Exprimés
C56: (3) Affectation de la Majorité absolue des sièges (23) à la liste qui a obtenu au moins la majorité absolue des Exprimés
C57: (4) Suffrages Exprimés de la liste / Quotient Electoral

Sheet ELUS 1T
J1: DÉSIGNATION des ÉLUS au 1er TOUR
C2: VdB | D2: CAB | G2: VdB | H2: CAB | K2: VdB | L2: CAB | O2: VdB | P2: CAB | S2: VdB | T2: CAB | W2: VdB | X2: CAB | AA2: VdB | AB2: CAB
B3: =CONCATENATE(Candidats!$A2," ",Candidats!$B2) -> Bertrand CHEVALIER | C3: =SUM('REPART VdB 1T'!C52) -> 0 | D3: =SUM('REPART CAB 1T'!C52) -> 0 | F3: =CONCATENATE(Candidats!$A3," ",Candidats!$B3) -> Marc ARCHAMBAULT | G3: =SUM('REPART VdB 1T'!E52) -> 0 | H3: =SUM('REPART CAB 1T'!E52) -> 0 | J3: =CONCATENATE(Candidats!$A4," ",Candidats!$B4) -> Étienne BUTZBACH | K3: =SUM('REPART VdB 1T'!G52) -> 0 | L3: =SUM('REPART CAB 1T'!G52) -> 0 | N3: =CONCATENATE(Candidats!$A5," ",Candidats!$B5) -> Bastien FAUDOT | O3: =SUM('REPART VdB 1T'!I52) -> 0 | P3: =SUM('REPART CAB 1T'!I52) -> 0 | R3: =CONCATENATE(Candidats!$A6," ",Candidats!$B6) -> Christophe GRUDLER | S3: =SUM('REPART VdB 1T'!K52) -> 0 | T3: =SUM('REPART CAB 1T'!K52) -> 0 | V3: =CONCATENATE(Candidats!$A7," ",Candidats!$B7) -> Jean-Marie PHEULPIN | W3: =SUM('REPART VdB 1T'!M52) -> 0 | X3: =SUM('REPART CAB 1T'!M52) -> 0 | Z3: =CONCATENATE(Candidats!$A8," ",Candidats!$B8) -> Damien MESLOT | AA3: =SUM('REPART VdB 1T'!O52) -> 0 | AB3: =SUM('REPART CAB 1T'!O52) -> 0
A5: 1 | B5: Bertrand CHEVALIER | C5: =IF((C$3>=$A5),"ÉLU","") ->  | D5: =IF((D$3>=$A5),"ÉLU","") ->  | E5: 1 | F5: Marc ARCHAMBAULT | G5: =IF((G$3>=$A5),"ÉLU","") ->  | I5: 1 | J5: Etienne BUTZBACH | K5: =IF((K$3>=$A5),"ÉLU","") ->  | M5: 1 | N5: Bastien FAUDOT | O5: =IF((O$3>=$A5),"ÉLU","") ->  | Q5: 1 | R5: Christophe GRUDLER | S5: =IF((S$3>=$A5),"ÉLU","") ->  | U5: 1 | V5: Jean-Marie PHEULPIN | W5: =IF((W$3>=$A5),"ÉLU","") ->  | Y5: 1 | Z5: Damien MESLOT | AA5: =IF((AA$3>=$A5),"ÉLU","") -> 
A6: 2 | B6: Muriel TERNANT | C6: =IF((C$3>=$A6),"ÉLU","") ->  | E6: 2 | F6: Marie-Eloïse NARDINI | I6: 2 | J6: Samia JABER | M6: 2 | N6: Isabelle LOPEZ | Q6: 2 | R6: Béatrice CUENIN | U6: 2 | V6: Estelle ROUSSEAUX | Y6: 2 | Z6: Florence BESANCENOT
A7: 3 | B7: Damien PAGNONCELLI | E7: 3 | F7: Thibaut MONNIER | I7: 3 | J7: Gérard SIMON | M7: 3 | N7: Bruno KERN | Q7: 3 | R7: Dominique PERRIN | U7: 3 | V7: Daniel ROUILLON | Y7: 3 | Z7: Sébastien VIVOT
A8: 4 | B8: Jocelyne GRASSELER | E8: 4 | F8: Patricia BOISUMEAU | I8: 4 | J8: Eva PEDROCCHI | M8: 4 | N8: Gwénaëlle RADAIS | Q8: 4 | R8: Julie DE BREZA | U8: 4 | V8: Christiane PETITOT | Y8: 4 | Z8: Marie-Hélène IVOL
A9: 5 | B9: Jacques MEISTER | E9: 5 | F9: Eric WIEDMANN | I9: 5 | J9: Robert BELOT | M9: 5 | N9: Alain LETAILLEUR | Q9: 5 | R9: Jean-Claude GIROUD | U9: 5 | V9: Jean LHEUREUX | Y9: 5 | Z9: Mustapha LOUNES
A10: 6 | B10: Stéphanie EVRARD | E10: 6 | F10: Marie-Jose LEHMANN | I10: 6 | J10: Jacqueline GUIOT | M10: 6 | N10: Nagia MEGHRICHE | Q10: 6 | R10: Touria ACAR | U10: 6 | V10: Éliane LACAILLE | Y10: 6 | Z10: Delphine MENTRE
A11: 7 | B11: Aurélien ARAMINI | E11: 7 | F11: Claude FRANÇOIS | I11: 7 | J11: Mazouz BENLAZERI | M11: 7 | N11: Olivier PREVOT | Q11: 7 | R11: Jean-Christophe MESSIN | U11: 7 | V11: Jean-Luc DESHAYES | Y11: 7 | Z11: Ian BOUCARD
A12: 8 | B12: Josette COUQUEBERG | E12: 8 | F12: Olivia SCHNOEBELEN | I12: 8 | J12: Armelle LELEUP | M12: 8 | N12: Nadine DANTON-SCHALK | Q12: 8 | R12: Laetitia GUILBERT | U12: 8 | V12: Nadine BOUDINET | Y12: 8 | Z12: Marie ROCHETTE DE LEMPDES
A13: 9 | B13: Michel BARDOT | E13: 9 | F13: Franck FOURE | I13: 9 | J13: René SCHMITT | M13: 9 | N13: Lakhdar CHERFAOUI | Q13: 9 | R13: Renaud ROUSSELET | U13: 9 | V13: Patrice BOUILLON | Y13: 9 | Z13: Jean-Marie HERZOG
A14: 10 | B14: Dominique BOURGON | E14: 10 | F14: Céline MAIROT | I14: 10 | J14: Francine GALLIEN | M14: 10 | N14: Géraldine SIMON | Q14: 10 | R14: Nicole VALENTIN | U14: 10 | V14: Sylvie MARTIN | Y14: 10 | Z14: Monique MONNOT
A15: 11 | B15: Jacques LALANDE | E15: 11 | F15: Hervé BRUNET | I15: 11 | J15: Alain DREYFUS-SCHMIDT | M15: 11 | N15: Jean-Michel GLON-VILLENEUVE | Q15: 11 | R15: Joseph ILLANA | U15: 11 | V15: Guy CAMOZZI | Y15: 11 | Z15: Jean-Pierre MARCHAND
A16: 12 | B16: Brigitte FRICKERT | E16: 12 | F16: Ginette PETITPERRIN | I16: 12 | J16: Latifa GILLIOTTE | M16: 12 | N16: Véronique SOHIER | Q16: 12 | R16: Khadija EL MACHMOUR | U16: 12 | V16: Véronique ZUCCHELI | Y16: 12 | Z16: Marion VALLET
A17: 13 | B17: Raynald PEDROSA | E17: 13 | F17: René CARDOT | I17: 13 | J17: Selim GUEMAZI | M17: 13 | N17: Philippe PEQUIGNOT | Q17: 13 | R17: Jean-Michel COLLINO | U17: 13 | V17: Abderrazak HADDADOU | Y17: 13 | Z17: Gérard PIQUEPAILLE
A18: 14 | B18: Marie-Claude BEURET | E18: 14 | F18: Chloé BABELOT | I18: 14 | J18: Céline SOUAKRIA | M18: 14 | N18: Noura BOUGUERRA | Q18: 14 | R18: Dominique MAZZUCCHELLI | U18: 14 | V18: Corinne LAHSSEN | Y18: 14 | Z18: Frieda BACHARETTI
A19: 15 | B19: Jean RAUSHER | E19: 15 | F19: Jean RECEVEUR | I19: 15 | J19: Hubert BELZ | M19: 15 | N19: Maurice SCHWARTZ | Q19: 15 | R19: Ouahem BOUDJADJA | U19: 15 | V19: Anthony ROPELE | Y19: 15 | Z19: Alain PICARD
A20: 16 | B20: Assika JARDIN | E20: 16 | F20: Leslie BROCARD | I20: 16 | J20: Marie-Christine MOREL | M20: 16 | N20: Marie-Laure SCHNEIDER | Q20: 16 | R20: Sylvie FRANCOIS | U20: 16 | V20: Christiane ROUPLY | Y20: 16 | Z20: Marie STABILE
A21: 17 | B21: Martial PEUGEOT | E21: 17 | F21: Dominique FREUND | I21: 17 | J21: Pascal MARTIN | M21: 17 | N21: Dominique MEA | Q21: 17 | R21: Aziz DAOUDI | U21: 17 | V21: Pierre CAILLE | Y21: 17 | Z21: Pierre-Jérôme COLLARD
A22: 18 | B22: Sylvie BERNARD | E22: 18 | F22: Cindy BURGKHALTER | I22: 18 | J22: Nicole LARCAT | M22: 18 | N22: Aurélie JEANGERARD | Q22: 18 | R22: Frédérique HENNEQUIN | U22: 18 | V22: Françoise DOUTEY | Y22: 18 | Z22: Parvin CERF
A23: 19 | B23: Jacques DATO-BRACONNIER | E23: 19 | F23: Roger GUILLAUME | I23: 19 | J23: Azeddine GOUTAS | M23: 19 | N23: Abdel Jalil ABBAS-TURKI | Q23: 19 | R23: Pierre-Olivier FAVRE | U23: 19 | V23: Christian MATHIE | Y23: 19 | Z23: Yves VOLA
A24: 20 | B24: Edith JOUQUEZ | E24: 20 | F24: Alexandra GROSS | I24: 20 | J24: Marie-Antoinette VACELET | M24: 20 | N24: Charline COUTHERUT | Q24: 20 | R24: Céline RINGENBACH | U24: 20 | V24: Kheira DAOUD | Y24: 20 | Z24: Loubna CHEKOUAT
A25: 21 | B25: Isidore N'DOLIAM | E25: 21 | F25: Gaëtan DEVILLERS | G25: =IF((G$3>=$A25),"ÉLU","") ->  | I25: 21 | J25: Bertrand THIEBAUD | K25: =IF((K$3>=$A25),"ÉLU","") ->  | M25: 21 | N25: Vladimir DJORDJEVIC | O25: =IF((O$3>=$A25),"ÉLU","") ->  | Q25: 21 | R25: Alban CHATIN | S25: =IF((S$3>=$A25),"ÉLU","") ->  | U25: 21 | V25: Arnaud CLETY | W25: =IF((W$3>=$A25),"ÉLU","") ->  | Y25: 21 | Z25: Tony KNEIP | AA25: =IF((AA$3>=$A25),"ÉLU","") -> 
A26: 22 | B26: Françoise BOUILLON | E26: 22 | F26: Denise MICHALLAND | I26: 22 | J26: Corinne BOHLINGER | M26: 22 | N26: Josée MARTINEZ | Q26: 22 | R26: Martine FRANCOIS | U26: 22 | V26: Nathalie NIDDEGER | Y26: 22 | Z26: Claude JOLY
A27: 23 | B27: Jean PARENTY | E27: 23 | F27: Maurice FERNEL | I27: 23 | J27: Abdelghani NIAME | M27: 23 | N27: Christian PROUST | Q27: 23 | R27: Christian VUILLIER DEVILLERS | U27: 23 | V27: Christian DANNECKER | Y27: 23 | Z27: Brice MICHEL
A28: 24 | B28: Maeva DURAND | E28: 24 | F28: Marie-Antoinette DECLE | I28: 24 | J28: Martine DAERON | M28: 24 | N28: Monique NANINO | Q28: 24 | R28: Cindy GIRARD | U28: 24 | V28: Lætitia MARCHANDOT | Y28: 24 | Z28: Marie-Thérèse FOHRER
A29: 25 | B29: Lucien MERGER | E29: 25 | F29: Germain THONNESSEN | I29: 25 | J29: Joël BIGNAMI | M29: 25 | N29: Yacine HOUADEF | Q29: 25 | R29: Patrick FERRAIN | U29: 25 | V29: Arnaud VERMELLE | Y29: 25 | Z29: François BORON
A30: 26 | B30: Arlette CLERC | E30: 26 | F30: Sophie CANET | I30: 26 | J30: Anny MOREL-GRUNBLATT | M30: 26 | N30: Madeleine FLEURY | Q30: 26 | R30: Rachida KIAS | U30: 26 | V30: Dominique LEGER | Y30: 26 | Z30: Pascale CHAGUE
A31: 27 | B31: Daniel BARDOT | E31: 27 | F31: Manuel CHANTERANNE | I31: 27 | J31: Salih AKTAS | M31: 27 | N31: Jean-Paul BOURREAU | Q31: 27 | R31: Alain GRADELER | U31: 27 | V31: Dominique GIMENO | Y31: 27 | Z31: Guy CORVEC
A32: 28 | B32: Sandra JOLY | E32: 28 | F32: Chantal TOURDOT | I32: 28 | J32: Marie-José JOURD'HEUIL | M32: 28 | N32: Eva GUYOT | Q32: 28 | R32: Jennifer LEDUC | U32: 28 | V32: Alexandra GIULIANI | Y32: 28 | Z32: Léa MANGUIN
A33: 29 | B33: Robert RETG | E33: 29 | F33: Cyril BURGKHALTER | I33: 29 | J33: Francis COTTET | M33: 29 | N33: Guillaume ASTIER | Q33: 29 | R33: Eric CARON | U33: 29 | V33: François MAIGNE | Y33: 29 | Z33: David DIMEY
A34: 30 | B34: Juliette HAMARD | E34: 30 | F34: Marie DENIZET | I34: 30 | J34: Christine POWOLNY | M34: 30 | N34: Fabienne DERRIEN | Q34: 30 | R34: Marie-Hélène GRANDJEAN | U34: 30 | V34: Geneviève RIVIERE | Y34: 30 | Z34: Christiane EINHORN
A35: 31 | B35: Benoit JOUQUEZ | E35: 31 | F35: Mathieu KAMINSKI | I35: 31 | J35: Philippe VENCK | M35: 31 | N35: Denis GREVILLOT | Q35: 31 | R35: Nicolas VIGNOS | U35: 31 | V35: Bruno BLIND | Y35: 31 | Z35: Olivier DEROY
A36: 32 | B36: Germaine TRIBOT | E36: 32 | F36: Florence OUDRY | I36: 32 | J36: Lorène BAUDET | M36: 32 | N36: Zoé RUNDSTADLER | Q36: 32 | R36: Véronique MANGE | U36: 32 | V36: Senoussia HADJICI | Y36: 32 | Z36: Brigitte BRUN
A37: 33 | B37: Michel GIRARD | E37: 33 | F37: Philippe WITTLING | I37: 33 | J37: Dominique SIESS | M37: 33 | N37: Guy DESGRANGES | Q37: 33 | R37: Michel RENAUD | U37: 33 | V37: Joël WERMEILLE | Y37: 33 | Z37: Emmanuel FILLAUDEAU
A38: 34 | B38: Laurence JACQUIN | E38: 34 | F38: Juliette BRULLOT | I38: 34 | J38: Evelyne GIULIANI | M38: 34 | N38: Cécilia PAUVRET | Q38: 34 | R38: Nathalie DUFFNER | U38: 34 | V38: Rhaphaele ROBBIANO | Y38: 34 | Z38: Isabelle HELIOT
A39: 35 | B39: Gérard HEIBERGER | E39: 35 | F39: Eric NICOLAS | I39: 35 | J39: Pascal BROGGI | M39: 35 | N39: Jérémy GRESSOT | Q39: 35 | R39: Cherif ALKMA | U39: 35 | V39: Philippe CUZIN | Y39: 35 | Z39: Patrick FORESTIER
A40: 36 | B40: Chantal PERRON | E40: 36 | F40: Sabrina LE-FEVRE | I40: 36 | J40: Rahima HOUADEF | M40: 36 | N40: Noëmie HENNEQUIN | Q40: 36 | R40: Patricia TOURDOT | U40: 36 | V40: Sibylle IELSCH | Y40: 36 | Z40: Dominique CHIPEAUX
A41: 37 | B41: Jacques GRASSELER | E41: 37 | F41: François RITZMANN | I41: 37 | J41: Claude PAUFERT | M41: 37 | N41: Dominique FUMEY | Q41: 37 | R41: Alexandre GRIEDER | U41: 37 | V41: Matthieu HENRY | Y41: 37 | Z41: Ugur UCAL
A42: 38 | B42: Jacqueline GIRARDOT | E42: 38 | F42: Lucette LAMBERT | I42: 38 | J42: Chantal GAMMA | M42: 38 | N42: Alexandra KRSTIC | Q42: 38 | R42: Alicia PACIOS | U42: 38 | V42: Christiane VOISINET | Y42: 38 | Z42: Michelle BECUE
A43: 39 | B43: Claude ROMMEVAUX | E43: 39 | F43: Nicolas OBRY | I43: 39 | J43: Philippe LEGROS | M43: 39 | N43: André DA COL | Q43: 39 | R43: David BARDOT | U43: 39 | V43: Mokdad KHADRAOUI | Y43: 39 | Z43: Gérard THOUVEREZ
A44: 40 | B44: Michèle CHEVROLET | E44: 40 | F44: Andrée LAMIELLE | I44: 40 | J44: Hermine LIBAI | M44: 40 | N44: Christelle BOISSON | Q44: 40 | R44: Gisèle TEKLER | U44: 40 | V44: Bernadette BARLOY | Y44: 40 | Z44: Cécile DAVID
A45: 41 | B45: Frédéric ESCAFFIT | E45: 41 | F45: Denis FURDERER | I45: 41 | J45: Nicolas FRIOT | M45: 41 | N45: Jean-Michel PERCHE | Q45: 41 | R45: Geoffroy KUHN | U45: 41 | V45: David CAMPY | Y45: 41 | Z45: Alain COULOT
A46: 42 | B46: Angélique LUDWIG | E46: 42 | F46: Germaine MEYER | I46: 42 | J46: Linda BOUSSAHA | M46: 42 | N46: Renée REMY | Q46: 42 | R46: Alison PFIFFER | U46: 42 | V46: Charlotte GINDRE | Y46: 42 | Z46: Karine BOSSU
A47: 43 | B47: René LEBOEUF | E47: 43 | F47: Denis LE-FEVRE | I47: 43 | J47: Mohamed BOULGUID | M47: 43 | N47: Paul COLLIN | Q47: 43 | R47: Jean-Pierre THURNHERR | U47: 43 | V47: Albert IELSCH | Y47: 43 | Z47: Alain AIMMEUR
A48: 44 | B48: Paulette DRZEWIECKI | E48: 44 | F48: Louisette BRULLOT | I48: 44 | J48: Myriam LATOUR | M48: 44 | N48: Dominique ROGNON | Q48: 44 | R48: Iabelle BRUGNONI | U48: 44 | V48: Claudine LHEUREUX | Y48: 44 | Z48: Jocelyne JECKER
A49: 45 | B49: Joël NIESS | E49: 45 | F49: René THIRIET | I49: 45 | J49: Arthur COURTY | M49: 45 | N49: Édouard BONTEMPS | Q49: 45 | R49: François ZIEGLER | U49: 45 | V49: Philippe CORDONNIER | Y49: 45 | Z49: Christian BEAUSEIGNEUR

Sheet Candidats
A1: Prénom | B1: Nom | C1: Parti | D1: Photo | E1: Commentaire
A2: Bertrand | B2: CHEVALIER | C2: Pour Belfort, l'humain d'abord | D2: bchevalier | E2: =IF(RESULTATS!$X$2=28,'REPART VdB 1T'!C$24,"") -> 
A3: Marc | B3: ARCHAMBAULT | C3: Belfort Bleu marine | D3: marchambault | E3: =IF(RESULTATS!$X$2=28,'REPART VdB 1T'!E$24,"") -> Maintien possible
A4: Étienne | B4: BUTZBACH | C4: Belfort, Innovante et bienveillante | D4: ebutzbach | E4: =IF(RESULTATS!$X$2=28,'REPART VdB 1T'!G$24,"") -> Maintien possible
A5: Bastien | B5: FAUDOT | C5: Oser Belfort | D5: bfaudot | E5: =IF(RESULTATS!$X$2=28,'REPART VdB 1T'!I$24,"") -> Maintien possible
A6: Christophe | B6: GRUDLER | C6: Un nouveau souffle pour Belfort | D6: cgrudler | E6: =IF(RESULTATS!$X$2=28,'REPART VdB 1T'!K$24,"") -> Maintien possible
A7: Jean-Marie | B7: PHEULPIN | C7: Lutte Ouvrière Faire entendre le camp des Travailleurs | D7: jmpheulpin | E7: =IF(RESULTATS!$X$2=28,'REPART VdB 1T'!M$24,"") -> 
A8: Damien | B8: MESLOT | C8: Tous ensemble pour Belfort | D8: dmeslot | E8: =IF(RESULTATS!$X$2=28,'REPART VdB 1T'!O$24,"") -> Maintien possible

Sheet GRAPHE
A1: Mairie de Belfort | C1: ÉLECTIONS MUNICIPALES | K1: 2014-03-23
C3: =COUNTIF(RESULTATS!$I$12:$I$18,">0")+COUNTIF(RESULTATS!$I$20:$I$25,">0")+COUNTIF(RESULTATS!$I$27:$I$31,">0")+COUNTIF(RESULTATS!$I$33:$I$38,">0")+COUNTIF(RESULTATS!$I$40:$I$43,">0") -> 28 | D3: Bureaux sur | F3: =COUNTIF(RESULTATS!$E$12:$E$18,">0")+COUNTIF(RESULTATS!$E$20:$E$25,">0")+COUNTIF(RESULTATS!$E$27:$E$31,">0")+COUNTIF(RESULTATS!$E$33:$E$38,">0")+COUNTIF(RESULTATS!$E$40:$E$43,">0") -> 28
C4: =SUMIF(RESULTATS!$I$12:$I$18,">0",RESULTATS!$E$12:$E$18)+SUMIF(RESULTATS!$I$20:$I$25,">0",RESULTATS!$E$20:$E$25)+SUMIF(RESULTATS!$I$27:$I$31,">0",RESULTATS!$E$27:$E$31)+SUMIF(RESULTATS!$I$33:$I$38,">0",RESULTATS!$E$33:$E$38)+SUMIF(RESULTATS!$I$40:$I$43,">0",RESULTATS!$E$40:$E$43) -> 26948 | D4: Inscrits sur | F4: =RESULTATS!E47 -> 26948 | G4: soit | H4: : | I4: =C4/F4 -> 1
